Workbook

Sheet Home
... 10 more rows

Sheet Quadrant
... 8 more rows

Sheet Quadrant 2
... 6 more rows

Sheet Spine
G9: Selected measures for Barking & Dagenham | H9: Local value | I9: Z score | J9: National | K9: PHE centre | L9: ONS cluster | M9: Deprivation decile
I10: 0
G11: Public Health | I11: 0.5
G12: Total Public Health (RO) | H12: 89.133 | I12: 1.5 | J12: 74.9302 | K12: 88.5651 | L12: 65.2735 | M12: 108.8369
G13: Life Expectancy at birth (All ages, Female) | H13: 81.88093 | I13: 2.5 | J13: 82.98929553 | K13: 84.21588438 | L13: 83.99879 | M13: 80.8897
G14: Life Expectancy at birth (All ages, Male) | H14: 77.49818 | I14: 3.5 | J14: 79.24968247 | K14: 80.36809062 | L14: 80.309646 | M14: 76.75404625
I15: 4.5
... 18 more rows

Sheet Spine 2
G9: Selected measures for Barking & Dagenham | H9: Local value | I9: Z score | J9: National | K9: PHE centre | L9: ONS cluster | M9: Deprivation decile
I10: 0
G11: Public Health | I11: 0.5
G12: Total Public Health (RO) | H12: 89.133 | I12: 1.5 | J12: 74.9302 | K12: 88.5651 | L12: 65.2735 | M12: 108.8369
G13: Life Expectancy at birth (All ages, Female) | H13: 81.88093 | I13: 2.5 | J13: 82.98929553 | K13: 84.21588438 | L13: 83.99879 | M13: 80.8897
G14: Life Expectancy at birth (All ages, Male) | H14: 77.49818 | I14: 3.5 | J14: 79.24968247 | K14: 80.36809062 | L14: 80.309646 | M14: 76.75404625
G15: Healthy life expectancy at birth (All ages, Female) | H15: 60.67723 | I15: 4.5 | J15: 63.14355487 | K15: 64.19383812 | L15: 63.948363 | M15: 58.20808937
... 18 more rows

Sheet Bar

Sheet Compare

Sheet Outliers
H10: Spend | I10: Outcome
G11: Low/worse outliers | H11: 5 | I11: 21
G12: High/better outliers | H12: 37 | I12: 9
G13: No data | H13: 1 | I13: 33
G14: All measures | H14: 305 | I14: 340
... 18 more rows

Sheet Boxplot SP

Sheet Boxplot OC

Sheet Quad Detail
... 4 more rows

Sheet Next

Sheet Peers
G9: Group membership
G10: Collection | H10: Group | I10: Count
G11: Local authority type | H11: Outer London Borough | I11: 20
G12: PHE centre | H12: London | I12: 33
G13: Core city status | H13: London | I13: 33
G14: ONS cluster | H14: Multicultural Suburbs | I14: 10
G15: Deprivation decile | H15: Deprivation decile 9 - Most deprived | I15: 16
... 18 more rows

Sheet FAQ
G9: This sheet includes answers to common questions:
G12: Contact the authors if you have further questions or other comments.
G14: Q: | H14: What is a Z score?
G15: A: | H15: A z score essentially measures the distance of a value from the mean (average) in units of standard deviations. A positive z score indicates that the value is above the mean, whereas a negative z score indicates that the value is below the mean. A measure with a z score below -2 or above +2 is categorised as an outlier and may indicate the need to investigate further.
... 12 more rows

Sheet Reference
G9: Quadrant chart - Local Authority - weighted | N9: 1
G10: Programme shortname | H10: Programme name | I10: Spend measure | J10: Spend measure name | K10: Outcome measure | L10: Outcome measure name | M10: weight | N10: 2
G11: PH | H11: Public Health | I11: SP_390_RO | J11: Total Public Health (RO) | K11: ID | L11: weighted outcome measures used | M11: weight | N11: 3
K12: PHOF_0.1i_F | L12: Healthy life expectancy at birth (All ages, Female) | M12: 0.25 | N12: 4
K13: PHOF_0.1i_M | L13: Healthy life expectancy at birth (All ages, Male) | M13: 0.25 | N13: 5
K14: PHOF_0.1ii_F | L14: Life Expectancy at birth (All ages, Female) | M14: 0.25 | N14: 6
K15: PHOF_0.1ii_M | L15: Life Expectancy at birth (All ages, Male) | M15: 0.25 | N15: 7
... 18 more rows

Sheet SP Measures
G11: Spend measures reference
G12: Programme ID | H12: Programme name | I12: Programme fullname | J12: short name
G13: Public Health | H13: Public Health | I13: Public Health | J13: PH
G14: Measure ID | H14: Measure name | I14: Measure fullname | J14: Start year | K14: End year | L14: Outliers | M14: Link
G15: SP_390_RO | H15: Total Public Health (RO) | I15: Public Health (RO) | J15: 2014 | K15: 2017 | L15: 3 | M15: https://www.gov.uk/government/collections/local-authority-revenue-expenditure-and-financing
... 18 more rows

Sheet OC Measures
G11: Outcome measures reference
G12: Programme ID | H12: Programme name | I12: Programme fullname | J12: short name
G13: Public Health | H13: Public Health | I13: Public Health | J13: PH
G14: Measure ID | H14: Measure name | I14: Measure fullname | J14: Start year | K14: End year | L14: Polarity | M14: Outliers | N14: Link
G15: PHOF_1.05_P | H15: 16-18 year olds not in education employment or training (NEETs) | I15: 16-18 year olds not in education employment or training (16-18 yrs, Persons) | J15: 2014 | K15: 2017 | L15: -1 | M15: 5 | N15: http://www.phoutcomes.info/
... 18 more rows

Sheet MD_Vars (hidden)
E2: Overall Product Settings | H2: User-defined Variables
E4: Variable | F4: Value | H4: Selected Organisation | I4: Menu Selection
E5: Selected structure Menu Position | F5: 1 | H5: Selected Organisation Menu Position | I5: 1
E6: Organisation structure | F6: =INDEX(MENUS_structure_ID,SELECTED_structure_menupos) -> LA | H6: Selected Unique ID | I6: =INDEX(MENUS_ORG_ID,SELECTED_unit_menupos) -> E09000002
E7: Structure units | F7: =PROPER(INDEX(MENUS_structure_names,SELECTED_structure_menupos)) -> Local Authorities | H7: Selected Unit Name | I7: =INDEX(MENUS_ORG_names,SELECTED_unit_menupos) -> Barking & Dagenham
E8: Structure scope | F8: England | H8: Selected Unit Filename | I8: =INDEX(MENUS_ORG_filenames,SELECTED_unit_menupos) -> Barking
E9: Publication Name | F9: Spend and outcome tool
B10: Show/Hide Tabs | E10: Publication Short Name | F10: SPOT | H10: Comparator Organisation | I10: Menu Selection
E11: Publisher | F11: Public Health England | H11: Selected Geography Menu Position | I11: 138
E12: Show splash on next startup? | F12: Yes | H12: Selected Comparator Unique ID | I12: =INDEX(MENUS_ORG_ID,SELECTED_unitcomp_menupos) -> E09000031
E13: Version number (manual) | F13: 3.11.381 | H13: Selected Comparator Unit Name | I13: =INDEX(MENUS_ORG_names,SELECTED_unitcomp_menupos) -> Waltham Forest
E14: Version date (manual) | F14: 2018-05-14
H15: Comparator Group | I15: Menu Selection
... 18 more rows

Sheet MD_performance (hidden)
A1: Date | B1: version | C1: Computer | D1: process | E1: time (sec)
A2: 2014-10-17 | B2: 250 | C2: rory phe laptop | D2: change organisation | E2: 12
D3: change year | E3: 19
D4: change structure | E4: 19-20
D5: change programme | E5: 4
D6: change spend/outcome | E6: 1
D7: QA check | E7: 1
D8: measureref | E8: 6
D9: quadrantdata | E9: 1-3
D10: weightingchange | E10: 1
D11: changecharts_2 | E11: 3
D13: full process | E13: 1260 | F13: 21 min
E14: 1226 | F14: 21 min
D15: process z scores | E15: 12-30
... 15 more rows

Sheet MD_QA (hidden)
A1: Quality assurance report on input dataset
A2: Warning: Non-keyword (identifier, group, parameter, chart): misc found in MD_Prog_LA, column AF
A3: Warning: Non-keyword (identifier, group, parameter): nonGroup found in MD_ORG_LA, column O
A4: Warning: Non-keyword (identifier, group, parameter): nongroup found in MD_ORG_LA, column S
A5: Warning: Non-keyword (identifier, group, parameter): nongroup found in MD_ORG_LA, column T
A6: Warning: Non-keyword (identifier, group, parameter): nongroup found in MD_ORG_LA, column U
A7: Warning: Non-keyword (identifier, group, parameter): nongroup found in MD_ORG_LA, column V
A8: Warning: Non-keyword (identifier, group, parameter): nongroup found in MD_ORG_LA, column W
A9: Warning: Non-keyword (identifier, group, parameter): nongroup found in MD_ORG_LA, column X
A10: Warning: Non-keyword (identifier, group, parameter): nongroup found in MD_ORG_LA, column Y
A11: Warning: Non-keyword (identifier, group, parameter): nonGroup found in MD_ORG_LA, column Z
A12: Warning: Non-keyword (identifier, group, parameter): nonGroup found in MD_ORG_LA, column AA
A13: Warning: Non-keyword (identifier, group, parameter): nonGroup found in MD_ORG_LA, column AB
A14: Warning: Non-keyword (identifier, group, parameter): nonGroup found in MD_ORG_LA, column AC
A15: Warning: Non-keyword (identifier, group, parameter): nonGroup found in MD_ORG_LA, column AD
A16: Warning: Non-keyword (identifier, group, parameter): nonGroup found in MD_ORG_LA, column AE
A17: Warning: Non-keyword (identifier, group, parameter): nonGroup found in MD_ORG_LA, column AF
A18: Warning: Non-keyword (identifier, group, parameter): nonGroup found in MD_ORG_LA, column AH
A19: Warning: Non-keyword (identifier, group, parameter): nonGroup found in MD_ORG_LA, column AI
A20: Warning: Non-keyword (identifier, group, parameter): ex parameter found in MD_ORG_LA, column AJ
A21: Warning: Non-keyword (identifier, group, parameter, chart, source): x found in MD_SP_LA, column F
A22: Warning: Non-keyword (identifier, group, parameter, chart, source): nonGroup found in MD_SP_LA, column L
A23: Warning: Non-keyword (identifier, group, parameter, chart, source): misc found in MD_OC_LA, column G
A24: Warning: Non-keyword (identifier, group, parameter, chart, source): misc found in MD_OC_LA, column L
A25: Warning: Non-keyword (identifier, group, parameter, chart, source): x found in MD_OC_LA, column AC
A26: No Heading label errors found
A27: No critically incorrect values found
A28: Duplicates found in MD_SP_LA - measure IDs
A29: measure row 458, SP_799_RO, duplicate
A30: measure row 459, SP_799_RO, duplicate
A31: Some duplicate row and column identifiers will need amending

Sheet MD_changes (hidden)
A1: Date | B1: Version | C1: Dev version | D1: Changes
A2: 41870 | B2: v3.0.215 | C2: 215 | D2: first LA version released
A3: 41904 | B3: v3.1.229 | C3: 229 | D3: revised LA version released
D4: updated PH spine chart, amended quad chart - sum/weight
A5: 41927 | B5: v3.2. | C5: 248 | D5: added change control tab
A6: 2014-10-16 | C6: 249 | D6: amended ccg 23 - £ format
A7: 2014-10-18 | C7: 250 | D7: added spend measures tab
C8: 251 | D8: add performance markers
D9: amend CCG YLL causes amenable to healthcare
C10: 252 | D10: processed CCG YLL causes
C11: 253 | D11: amended spine chart axis sizing
D12: work on performance
A13: 2014-10-27 | C13: 254 | D13: roll forward CCG PCMD mortality 2013-> 2014
D14: update spend/outcome measure count totals in outlier report
A15: 2014-10-28 | C15: 255 | D15: change polarity of QOF DEM 1 from -1 to +1 (dementia prevalence)
... 18 more rows

Sheet MD_ORG_LA (hidden)
A1: Organisation metadata | B1: identifier | C1: identifier | D1: identifier | E1: identifier | F1: identifier | G1: identifier | H1: identifier | I1: identifier | J1: identifier | K1: identifier | L1: identifier | M1: identifier | N1: group | O1: nonGroup | P1: group | Q1: group | R1: group | S1: nongroup | T1: nongroup | U1: nongroup | V1: nongroup | W1: nongroup | X1: nongroup | Y1: nongroup | Z1: nonGroup | AA1: nonGroup | AB1: nonGroup | AC1: nonGroup | AD1: nonGroup | AE1: nonGroup | AF1: nonGroup | AG1: group | AH1: nonGroup | AI1: nonGroup | AJ1: ex parameter | AK1: parameter | AL1: parameter | AM1: parameter | AN1: parameter | AO1: parameter | AP1: parameter | AQ1: parameter | AR1: parameter | AS1: parameter | AT1: parameter | AU1: parameter | AV1: parameter | AW1: parameter | AX1: parameter | AY1: parameter | AZ1: parameter | BA1: parameter | BB1: parameter | BC1: parameter | BD1: parameter | BE1: parameter | BF1: parameter | BG1: parameter
A2: GSS Code | B2: DCLG Code | C2: Old ONS Code | D2: Old DfE Code | E2: name | F2: filename | G2: name no suffix | H2: ASCOF name | I2: waste disposal name | J2: transport authority code | K2: fire region authority name | L2: DFE LEA name | M2: DFE LEA code | N2: Local authority type | O2: Region | P2: PHE centre | Q2: Core city status | R2: ONS cluster | S2: ONS cluster 2011 supergroup code | T2: ONS cluster 2011 supergroup label | U2: ONS cluster 2011 group code | V2: ONS cluster 2011 group label | W2: ONS cluster 2011 subgroup code | X2: ONS cluster 2011 subgroup label | Y2: ONS cluster 2001 | Z2: Deprivation decile (old) | AA2: Deprivation Decile code | AB2: Government Office Region | AC2: ONS Cluster 2001 code | AD2: Strategic Health Authority | AE2: IMD Score 2010 | AF2: IMD Score 2015 | AG2: Deprivation decile | AH2: old PHE Centre | AI2: NHSE LAT | AJ2: old most similar organisation ID | AK2: most similar organisation ID | AL2: most similar organisation name | AM2: start year | AN2: end year | AO2: Total Population | AP2: Population (0-4) | AQ2: Population (0-17) | AR2: Population (19+) | AS2: Population (18-64) | AT2: Population (65+) | AU2: Number of Pupils | AV2: Motor Vehicle Traffic | AW2: Km of Roads Maintained | AX2: Housing Stock | AY2: Households | AZ2: Active Businesses | BA2: ONS mid year population 2011 persons | BB2: ONS mid year population 2012 persons | BC2: ONS mid year population 2013 persons | BD2: ONS mid year population 2014 persons | BE2: ONS mid year population 2015 persons | BF2: ONS mid year population children 2012 persons | BG2: ONS mid year population children 2013 persons
A3: E09000002 | B3: E5030 | C3: 00AB | D3: 301 | E3: Barking & Dagenham | F3: Barking | G3: Barking and Dagenham | H3: Barking and Dagenham | I3: Barking and Dagenham LB | J3: E12000007 | K3: Greater London | L3: Barking and Dagenham | M3: 301 | N3: Outer London Borough | O3: London | P3: London | Q3: London | R3: Multicultural Suburbs | S3: 4 | T3: Suburban Traits | U3: 4b | V3: Multicultural Suburbs | W3: 4b1 | X3: Multicultural Suburbs | Y3: Centres with Industry | Z3: Deprivation deciles 8-9 | AA3: Dep8 | AB3: H | AC3: ONS1.2 | AD3: Q36 | AE3: 34.24768281 | AF3: 34.635 | AG3: Deprivation decile 9 - Most deprived | AH3: PHEC10 | AI3: Q61 | AJ3: E09000011 | AK3: E09000031 | AL3: =VLOOKUP(AK:AK,A:E,4,FALSE) -> 320 | AM3: 2014 | AN3: 2017 | AO3: 190600 | AP3: 19200 | AQ3: 55600 | AR3: 132300 | AS3: 115400 | AT3: 19500 | AU3: 37862 | AV3: 346 | AW3: 332.8 | AX3: 19114 | AY3: 73034 | AZ3: 4580 | BA3: 187029 | BB3: 190560 | BC3: 194352 | BD3: 198294 | BE3: 201979 | BF3: 55000 | BG3: 57000
A4: E09000003 | B4: E5031 | C4: 00AC | D4: 302 | E4: Barnet | F4: Barnet | G4: Barnet | H4: Barnet | I4: Barnet LB | J4: E12000007 | K4: Greater London | L4: Barnet | M4: 302 | N4: Outer London Borough | O4: London | P4: London | Q4: London | R4: Multicultural Suburbs | S4: 4 | T4: Suburban Traits | U4: 4b | V4: Multicultural Suburbs | W4: 4b1 | X4: Multicultural Suburbs | Y4: London Suburbs | Z4: Deprivation decile 4 | AA4: Dep4 | AB4: H | AC4: ONS2.4 | AD4: Q36 | AE4: 16.68132705 | AF4: 17.813 | AG4: Deprivation decile 2 - More affluent | AH4: PHEC10 | AI4: Q61 | AJ4: E09000024 | AK4: E09000015 | AL4: 310 | AM4: 2014 | AN4: 2017 | AO4: 364000 | AP4: 27300 | AQ4: 85300 | AR4: 274300 | AS4: 229400 | AT4: 49300 | AU4: 59969 | AV4: 1013 | AW4: 765.9 | AX4: 10820 | AY4: 141922 | AZ4: 22110 | BA4: 357538 | BB4: 363956 | BC4: 369088 | BD4: 374915 | BE4: 379691 | BF4: 84800 | BG4: 86700
A5: E08000016 | B5: E4401 | C5: 00CC | D5: 370 | E5: Barnsley | F5: Barnsley | G5: Barnsley | H5: Barnsley | I5: Barnsley MBC | J5: E11000003 | K5: South Yorkshire | L5: Barnsley | M5: 370 | N5: Metropolitan District | O5: Yorkshire & Humber | P5: Yorkshire & Humber | Q5: Non-Core City | R5: Mining Heritage | S5: 8 | T5: Mining Heritage and Manufacturing | U5: 8b | V5: Mining Heritage | W5: 8b3 | X5: Mining Heritage and Manufacturing | Y5: Manufacturing Towns | Z5: Deprivation decile 7 | AA5: Dep7 | AB5: D | AC5: ONS7.12 | AD5: Q32 | AE5: 28.50758983 | AF5: 29.568 | AG5: Deprivation decile 8 - Most deprived | AH5: PHEC03 | AI5: Q51 | AJ5: E08000018 | AK5: E08000018 | AL5: 372 | AM5: 2014 | AN5: 2017 | AO5: 233700 | AP5: 14400 | AQ5: 49100 | AR5: 181600 | AS5: 142700 | AT5: 41800 | AU5: 32550 | AV5: 1138 | AW5: 1211.2 | AX5: 19027 | AY5: 102509 | AZ5: 5690 | BA5: 231865 | BB5: 233671 | BC5: 235757 | BD5: 237843 | BE5: 239319 | BF5: 48900 | BG5: 49200
A6: E06000022 | B6: E0101 | C6: 00HA | D6: 800 | E6: Bath & North East Somerset UA | F6: Bath | G6: Bath and North East Somerset | H6: Bath and North East Somerset | I6: Bath and North East Somerset Council | J6: E06000022 | K6: Avon | L6: Bath and North East Somerset | M6: 800 | N6: Unitary Authority | O6: South West | P6: South West | Q6: Non-Core City | R6: Heritage Centres | S6: 6 | T6: Coast and Heritage | U6: 6b | V6: Heritage Centres | W6: 6b1 | X6: Heritage Centres | Y6: Prospering Smaller Towns | Z6: Deprivation deciles 0-3 | AA6: Dep3 | AB6: K | AC6: ONS5.7 | AD6: Q39 | AE6: 12.05429337 | AF6: 12.094 | AG6: Deprivation decile 0 - Most affluent | AH6: PHEC15 | AI6: Q64 | AJ6: E06000014 | AK6: E06000049 | AL6: 895 | AM6: 2014 | AN6: 2017 | AO6: 177600 | AP6: 9300 | AQ6: 33900 | AR6: 141200 | AS6: 110600 | AT6: 33200 | AU6: 29134 | AV6: 702 | AW6: 1059.4 | AY6: 74278 | AZ6: 7875 | BA6: 175538 | BB6: 177643 | BC6: 180097 | BD6: 182021 | BE6: 184874 | BF6: 33700 | BG6: 34100
A7: E06000055 | B7: E0202 | C7: 00KB | D7: 822 | E7: Bedford UA | F7: Bedford | G7: Bedford | H7: Bedford | I7: Bedford | J7: E06000055 | K7: Bedfordshire | L7: Bedford Borough | M7: 822 | N7: Unitary Authority | O7: Eastern | P7: East of England | Q7: Non-Core City | R7: Growth Areas and Cities | S7: 4 | T7: Suburban Traits | U7: 4a | V7: Growth Areas and Cities | W7: 4a2 | X7: Expanding Areas and Established Cities | Y7: New and Growing Towns | Z7: Deprivation decile 5 | AA7: Dep5 | AB7: G | AC7: ONS5.8 | AD7: Q35 | AE7: 17.77902196 | AF7: 19.238 | AG7: Deprivation decile 3 - More affluent | AH7: PHEC09 | AI7: Q58 | AJ7: E08000009 | AK7: E06000030 | AL7: 866 | AM7: 2014 | AN7: 2017 | AO7: 159200 | AP7: 10500 | AQ7: 36100 | AR7: 120900 | AS7: 97000 | AT7: 26100 | AU7: 30432 | AV7: 738 | AW7: 905.17 | AY7: 65733 | AZ7: 6045 | BA7: 157840 | BB7: 159207 | BC7: 161382 | BD7: 163924 | BE7: 166252 | BF7: 35900 | BG7: 36400
A8: E09000004 | B8: E5032 | C8: 00AD | D8: 303 | E8: Bexley | F8: Bexley | G8: Bexley | H8: Bexley | I8: Bexley LB | J8: E12000007 | K8: Greater London | L8: Bexley | M8: 303 | N8: Outer London Borough | O8: London | P8: London | Q8: London | R8: Growth Areas and Cities | S8: 4 | T8: Suburban Traits | U8: 4a | V8: Growth Areas and Cities | W8: 4a1 | X8: City Periphery | Y8: New and Growing Towns | Z8: Deprivation decile 4 | AA8: Dep4 | AB8: H | AC8: ONS5.8 | AD8: Q36 | AE8: 16.78503 | AF8: 16.17 | AG8: Deprivation decile 2 - More affluent | AH8: PHEC10 | AI8: Q63 | AJ8: E09000016 | AK8: E09000016 | AL8: 311 | AM8: 2014 | AN8: 2017 | AO8: 234300 | AP8: 15700 | AQ8: 54600 | AR8: 176400 | AS8: 141200 | AT8: 38500 | AU8: 43042 | AV8: 559 | AW8: 544.3 | AY8: 94871 | AZ8: 7390 | BA8: 232774 | BB8: 234271 | BC8: 236687 | BD8: 239865 | BE8: 242142 | BF8: 54700 | BG8: 55100
A9: E08000025 | B9: E4601 | C9: 00CN | D9: 330 | E9: Birmingham | F9: Birmingham | G9: Birmingham | H9: Birmingham | I9: Birmingham City Council | J9: E11000005 | K9: West Midlands | L9: Birmingham | M9: 330 | N9: Metropolitan District | O9: West Midlands | P9: West Midlands | Q9: Core City | R9: Business and Education Centres | S9: 5 | T9: Business and Education Centres | U9: 5a | V9: Business and Education Centres | W9: 5a1 | X9: Business Centres | Y9: Centres with Industry | Z9: Deprivation deciles 8-9 | AA9: Dep8 | AB9: F | AC9: ONS1.2 | AD9: Q34 | AE9: 37.57620858 | AF9: 37.768 | AG9: Deprivation decile 9 - Most deprived | AH9: PHEC07 | AI9: Q54 | AJ9: E08000031 | AK9: E08000032 | AL9: 380 | AM9: 2014 | AN9: 2017 | AO9: 1085400 | AP9: 83900 | AQ9: 277100 | AR9: 792500 | AS9: 667300 | AT9: 141000 | AU9: 193090 | AV9: 3621 | AW9: 2533.1 | AX9: 64618 | AY9: 418452 | AZ9: 30860 | BA9: 1074283 | BB9: 1085417 | BC9: 1092330 | BD9: 1101360 | BE9: 1111307 | BF9: 275900 | BG9: 278900
A10: E06000008 | B10: E2301 | C10: 00EX | D10: 889 | E10: Blackburn with Darwen UA | F10: Blackburn | G10: Blackburn with Darwen | H10: Blackburn with Darwen | I10: Blackburn with Darwen Borough Council | J10: E06000008 | K10: Lancashire | L10: Blackburn with Darwen | M10: 889 | N10: Unitary Authority | O10: North West | P10: North West | Q10: Non-Core City | R10: Manufacturing Traits | S10: 8 | T10: Mining Heritage and Manufacturing | U10: 8a | V10: Manufacturing Traits | W10: 8a2 | X10: Manufacturing Centres | Y10: Centres with Industry | Z10: Deprivation deciles 8-9 | AA10: Dep8 | AB10: B | AC10: ONS1.2 | AD10: Q31 | AE10: 35.3165999 | AF10: 34.189 | AG10: Deprivation decile 9 - Most deprived | AH10: PHEC02 | AI10: Q47 | AJ10: E08000032 | AK10: E08000004 | AL10: 353 | AM10: 2014 | AN10: 2017 | AO10: 147700 | AP10: 11300 | AQ10: 38600 | AR10: 107000 | AS10: 89300 | AT10: 19800 | AU10: 27587 | AV10: 431 | AW10: 549.1 | AY10: 57496 | AZ10: 4365 | BA10: 147657 | BB10: 147713 | BC10: 147369 | BD10: 146743 | BE10: 146846 | BF10: 38800 | BG10: 38500
A11: E06000009 | B11: E2302 | C11: 00EY | D11: 890 | E11: Blackpool UA | F11: Blackpool | G11: Blackpool | H11: Blackpool | I11: Blackpool Borough Council | J11: E06000009 | K11: Lancashire | L11: Blackpool | M11: 890 | N11: Unitary Authority | O11: North West | P11: North West | Q11: Non-Core City | R11: Coastal Resorts and Services | S11: 6 | T11: Coast and Heritage | U11: 6a | V11: Coastal Resorts and Services | W11: 6a2 | X11: Coastal and Rural | Y11: Coastal and Countryside | Z11: Deprivation deciles 8-9 | AA11: Dep8 | AB11: B | AC11: ONS6.10 | AD11: Q31 | AE11: 40.36777907 | AF11: 41.997 | AG11: Deprivation decile 9 - Most deprived | AH11: PHEC02 | AI11: Q47 | AJ11: E06000027 | AK11: E06000012 | AL11: 812 | AM11: 2014 | AN11: 2017 | AO11: 142000 | AP11: 8500 | AQ11: 29100 | AR11: 111100 | AS11: 85000 | AT11: 27900 | AU11: 20268 | AV11: 336 | AW11: 457.1 | AX11: 5325 | AY11: 64189 | AZ11: 3965 | BA11: 142080 | BB11: 141976 | BC11: 141400 | BD11: 140501 | BE11: 139578 | BF11: 29000 | BG11: 29100
A12: E08000001 | B12: E4201 | C12: 00BL | D12: 350 | E12: Bolton | F12: Bolton | G12: Bolton | H12: Bolton | I12: Bolton MBC | J12: E11000001 | K12: Greater Manchester | L12: Bolton | M12: 350 | N12: Metropolitan District | O12: North West | P12: North West | Q12: Non-Core City | R12: Manufacturing Traits | S12: 8 | T12: Mining Heritage and Manufacturing | U12: 8a | V12: Manufacturing Traits | W12: 8a2 | X12: Manufacturing Centres | Y12: Centres with Industry | Z12: Deprivation decile 7 | AA12: Dep7 | AB12: B | AC12: ONS1.2 | AD12: Q31 | AE12: 30.53013713 | AF12: 28.42 | AG12: Deprivation decile 7 - More deprived | AH12: PHEC04 | AI12: Q46 | AJ12: E08000005 | AK12: E08000005 | AL12: 354 | AM12: 2014 | AN12: 2017 | AO12: 279000 | AP12: 19300 | AQ12: 65300 | AR12: 210000 | AS12: 169300 | AT12: 44400 | AU12: 49178 | AV12: 1257 | AW12: 991.5 | AY12: 118340 | AZ12: 8770 | BA12: 277296 | BB12: 278984 | BC12: 280057 | BD12: 280439 | BE12: 281619 | BF12: 65000 | BG12: 65600
A13: E06000028 | B13: E1202 | C13: 00HN | D13: 837 | E13: Bournemouth UA | F13: Bournemouth | G13: Bournemouth | H13: Bournemouth | I13: Bournemouth Borough Council | J13: E06000028 | K13: Wiltshire | L13: Bournemouth | M13: 837 | N13: Unitary Authority | O13: South West | P13: South West | Q13: Non-Core City | R13: Business and Education Centres | S13: 5 | T13: Business and Education Centres | U13: 5a | V13: Business and Education Centres | W13: 5a2 | X13: Education Centres | Y13: Regional Centres | Z13: Deprivation decile 6 | AA13: Dep6 | AB13: K | AC13: ONS1.1 | AD13: Q39 | AE13: 23.4237346 | AF13: 21.847 | AG13: Deprivation decile 4 - Average | AH13: PHEC13 | AI13: Q70 | AJ13: E06000029 | AK13: E06000027 | AL13: 880 | AM13: 2014 | AN13: 2017 | AO13: 186700 | AP13: 10900 | AQ13: 32800 | AR13: 151900 | AS13: 120700 | AT13: 33300 | AU13: 22762 | AV13: 502 | AW13: 508.5 | AX13: 5139 | AY13: 83607 | AZ13: 6495 | BA13: 183450 | BB13: 186744 | BC13: 188733 | BD13: 191390 | BE13: 194516 | BF13: 32500 | BG13: 33200
A14: E06000036 | B14: E0301 | C14: 00MA | D14: 867 | E14: Bracknell Forest UA | F14: Bracknell | G14: Bracknell Forest | H14: Bracknell Forest | I14: Bracknell Forest Borough Council | J14: E06000036 | K14: Berkshire | L14: Bracknell Forest | M14: 867 | N14: Unitary Authority | O14: South East | P14: South East | Q14: Non-Core City | R14: Prosperous England | S14: 7 | T14: Prosperous England | U14: 7a | V14: Prosperous England | W14: 7a3 | X14: Prosperous Home Counties and Rugby | Y14: Prospering Southern England | Z14: Deprivation deciles 0-3 | AA14: Dep2 | AB14: J | AC14: ONS5.9 | AD14: Q38 | AE14: 9.614298064 | AF14: 10.462 | AG14: Deprivation decile 0 - Most affluent | AH14: PHEC12 | AI14: Q69 | AJ14: E06000042 | AK14: E06000037 | AL14: 869 | AM14: 2014 | AN14: 2017 | AO14: 115100 | AP14: 8200 | AQ14: 27000 | AR14: 86600 | AS14: 73200 | AT14: 14900 | AU14: 19620 | AV14: 428 | AW14: 460.4 | AY14: 47534 | AZ14: 4580 | BA14: 113696 | BB14: 115058 | BC14: 116567 | BD14: 118025 | BE14: 118982 | BF14: 26600 | BG14: 27100
A15: E08000032 | B15: E4701 | C15: 00CX | D15: 380 | E15: Bradford | F15: Bradford | G15: Bradford | H15: Bradford | I15: Bradford City MDC (MBC) | J15: E11000006 | K15: West Yorkshire | L15: Bradford | M15: 380 | N15: Metropolitan District | O15: Yorkshire & Humber | P15: Yorkshire & Humber | Q15: Non-Core City | R15: Growth Areas and Cities | S15: 4 | T15: Suburban Traits | U15: 4a | V15: Growth Areas and Cities | W15: 4a2 | X15: Expanding Areas and Established Cities | Y15: Centres with Industry | Z15: Deprivation decile 7 | AA15: Dep7 | AB15: D | AC15: ONS1.2 | AD15: Q32 | AE15: 32.70249725 | AF15: 33.168 | AG15: Deprivation decile 8 - Most deprived | AH15: PHEC03 | AI15: Q52 | AJ15: E08000034 | AK15: E08000004 | AL15: 353 | AM15: 2014 | AN15: 2017 | AO15: 524600 | AP15: 41400 | AQ15: 137400 | AR15: 380200 | AS15: 315300 | AT15: 71900 | AU15: 98616 | AV15: 1475 | AW15: 1941.1 | AX15: 45 | AY15: 202365 | AZ15: 14875 | BA15: 523115 | BB15: 524619 | BC15: 526369 | BD15: 528155 | BE15: 531176 | BF15: 137700 | BG15: 138200
... 18 more rows

Sheet MD_lower_level_LA (hidden)
A1: Lower level code 2016 | B1: Lower level code 2017 | C1: Lower level name | D1: Region | E1: Old ONS code | F1: Tier | G1: Upper level code | H1: Upper level name | I1: Upper PHE centre | J1: Est Pop mid 2012 | K1: Est Pop mid 2013 | L1: Est Pop mid 2014 | M1: Est Pop mid 2015
A2: E06000001 | B2: E06000001 | C2: Hartlepool | D2: North East | E2: 00EB | F2: Upper | G2: E06000001 | H2: Hartlepool UA | I2: North East | J2: 92238 | K2: 92665 | L2: 92590 | M2: 92493
A3: E06000002 | B3: E06000002 | C3: Middlesbrough | D3: North East | E3: 00EC | F3: Upper | G3: E06000002 | H3: Middlesbrough UA | I3: North East | J3: 138744 | K3: 138939 | L3: 139119 | M3: 139509
A4: E06000003 | B4: E06000003 | C4: Redcar and Cleveland | D4: North East | E4: 00EE | F4: Upper | G4: E06000003 | H4: Redcar & Cleveland UA | I4: North East | J4: 134998 | K4: 134945 | L4: 135042 | M4: 135275
A5: E06000004 | B5: E06000004 | C5: Stockton-on-Tees | D5: North East | E5: 00EF | F5: Upper | G5: E06000004 | H5: Stockton-on-Tees UA | I5: North East | J5: 192406 | K5: 193196 | L5: 194119 | M5: 194803
A6: E06000005 | B6: E06000005 | C6: Darlington | D6: North East | E6: 00EH | F6: Upper | G6: E06000005 | H6: Darlington UA | I6: North East | J6: 105248 | K6: 105396 | L6: 105367 | M6: 105389
A7: E06000006 | B7: E06000006 | C7: Halton | D7: North West | E7: 00ET | F7: Upper | G7: E06000006 | H7: Halton UA | I7: North West | J7: 125692 | K7: 125970 | L7: 126354 | M7: 126528
A8: E06000007 | B8: E06000007 | C8: Warrington | D8: North West | E8: 00EU | F8: Upper | G8: E06000007 | H8: Warrington UA | I8: North West | J8: 203652 | K8: 205109 | L8: 206428 | M8: 207695
A9: E06000008 | B9: E06000008 | C9: Blackburn with Darwen | D9: North West | E9: 00EX | F9: Upper | G9: E06000008 | H9: Blackburn with Darwen UA | I9: North West | J9: 147713 | K9: 147369 | L9: 146743 | M9: 146846
A10: E06000009 | B10: E06000009 | C10: Blackpool | D10: North West | E10: 00EY | F10: Upper | G10: E06000009 | H10: Blackpool UA | I10: North West | J10: 141976 | K10: 141400 | L10: 140501 | M10: 139578
A11: E06000010 | B11: E06000010 | C11: Kingston upon Hull, City of | D11: Yorkshire and The Humber | E11: 00FA | F11: Upper | G11: E06000010 | H11: Kingston upon Hull UA | I11: Yorkshire & Humber | J11: 257204 | K11: 257589 | L11: 257710 | M11: 258995
A12: E06000011 | B12: E06000011 | C12: East Riding of Yorkshire | D12: Yorkshire and The Humber | E12: 00FB | F12: Upper | G12: E06000011 | H12: East Riding of Yorkshire UA | I12: Yorkshire & Humber | J12: 335887 | K12: 336007 | L12: 337115 | M12: 336685
A13: E06000012 | B13: E06000012 | C13: North East Lincolnshire | D13: Yorkshire and The Humber | E13: 00FC | F13: Upper | G13: E06000012 | H13: North East Lincolnshire UA | I13: Yorkshire & Humber | J13: 159727 | K13: 159827 | L13: 159804 | M13: 159570
A14: E06000013 | B14: E06000013 | C14: North Lincolnshire | D14: Yorkshire and The Humber | E14: 00FD | F14: Upper | G14: E06000013 | H14: North Lincolnshire UA | I14: Yorkshire & Humber | J14: 168372 | K14: 168760 | L14: 169247 | M14: 169820
A15: E06000014 | B15: E06000014 | C15: York | D15: Yorkshire and The Humber | E15: 00FF | F15: Upper | G15: E06000014 | H15: York UA | I15: Yorkshire & Humber | J15: 200018 | K15: 202435 | L15: 204439 | M15: 206856
... 18 more rows

Sheet MD_Prog_LA (hidden)
A1: PROGRAMMES Metadata | B1: identifier | C1: parameter | D1: identifier | E1: identifier | F1: identifier | G1: identifier | H1: parameter | I1: parameter | J1: parameter | K1: parameter | L1: parameter | M1: chart | N1: chart | O1: chart | P1: chart | Q1: chart | R1: chart | S1: chart | T1: chart | U1: chart | V1: chart | W1: chart | X1: chart | Y1: chart | Z1: chart | AA1: chart | AB1: chart | AC1: chart | AD1: parameter | AE1: parameter | AF1: misc
A2: programmeID | B2: shortname | C2: order | D2: name | E2: fullname | F2: filename | G2: parentID | H2: type | I2: default_spend | J2: preferred_default_spend | K2: default_outcome | L2: outcome_available | M2: spine_LA | N2: spine_PH | O2: spine_Education | P2: spine_Child | Q2: spine_Adult | R2: spine_Housing | S2: spine_Env | T2: spine_Plan | U2: spine_Highways | V2: spine_Culture | W2: spine_Central | X2: spine_Other | Y2: quad_LA_spend | Z2: quad_LA_spend old | AA2: quad_LA_outcome | AB2: quad_PH_spend | AC2: quad_PH_outcome | AD2: start year | AE2: end year | AF2: spine 2015 status
A3: Public Health | B3: PH | C3: 1 | D3: Public Health | E3: Public Health | F3: Public_Health | H3: Programme | I3: SP_390_RA | J3: SP_390_RO | K3: PHOF_0.1i_M | L3: =IF(K3="none","no","yes") -> yes | M3: 1 | N3: 1 | Y3: SP_390_RA | Z3: SP059 | AA3: weighted | AD3: 2014 | AE3: 2017 | AF3: OK
A4: Health inequalities | B4: Inequality | C4: 2 | D4: Health inequalities | E4: Health inequalities | G4: Public Health | H4: Sub-Programme | N4: 10 | AD4: 2014 | AE4: 2017
A5: Tobacco Control | B5: Smoke | C5: 3 | D5: Tobacco Control | E5: Tobacco Control | G5: Public Health | H5: Sub-Programme | N5: 19 | AB5: summed | AC5: weighted | AD5: 2014 | AE5: 2017
A6: Drugs and Alcohol | B6: Drug | C6: 4 | D6: Drugs and Alcohol | E6: Drugs and Alcohol | G6: Public Health | H6: Sub-Programme | N6: 31 | AB6: summed | AC6: weighted | AD6: 2014 | AE6: 2017
A7: Obesity and physical activity | B7: Activity | C7: 5 | D7: Obesity and physical activity | E7: Obesity and physical activity | G7: Public Health | H7: Sub-Programme | N7: 61 | AD7: 2014 | AE7: 2017
A8: Sexual Health | B8: Sex | C8: 6 | D8: Sexual Health | E8: Sexual Health | G8: Public Health | H8: Sub-Programme | N8: 76 | AB8: summed | AC8: weighted | AD8: 2014 | AE8: 2017
A9: Violence and Injury | B9: Violence | C9: 7 | D9: Violence and Injury | E9: Violence and Injury | G9: Public Health | H9: Sub-Programme | N9: 45 | AB9: none | AC9: weighted | AD9: 2014 | AE9: 2017
A10: Health checks | B10: Checks | C10: 8 | D10: Health checks | E10: Health checks | G10: Public Health | H10: Sub-Programme | AD10: 2014 | AE10: 2017
A11: Wider determinants | B11: Wider | C11: 9 | D11: Wider determinants | E11: Wider determinants | G11: Public Health | H11: Sub-Programme | N11: 97 | AD11: 2014 | AE11: 2017
A12: Health Protection | B12: HP | C12: 10 | D12: Health Protection | E12: Health Protection | G12: Public Health | H12: Sub-Programme | N12: 109 | AB12: SP_366_RA | AC12: weighted | AD12: 2014 | AE12: 2017
A13: Health Improvement | B13: HI | C13: 11 | D13: Health Improvement | E13: Health Improvement | G13: Public Health | H13: Sub-Programme | AB13: summed | AC13: weighted | AD13: 2014 | AE13: 2017
A14: Healthcare PH | B14: HC | C14: 12 | D14: Healthcare PH | E14: Healthcare PH | G14: Public Health | H14: Sub-Programme | N14: 157 | AB14: summed | AC14: weighted | AD14: 2014 | AE14: 2017
A15: Mental PH | B15: MPH | C15: 13 | D15: Mental PH | E15: Mental PH | G15: Public Health | H15: Sub-Programme | N15: 144 | AB15: none | AC15: weighted | AD15: 2014 | AE15: 2017
... 18 more rows

Sheet MD_SP_LA (hidden)
A1: Spend metadata | B1: parameter | C1: identifier | D1: parameter | E1: parameter | F1: x | G1: parameter | H1: group | I1: parameter | J1: parameter | K1: parameter | L1: nonGroup | M1: group | N1: identifier | O1: identifier | P1: identifier | Q1: parameter | R1: parameter | S1: parameter | T1: chart | U1: chart | V1: chart | W1: chart | X1: chart | Y1: chart | Z1: chart | AA1: chart | AB1: chart | AC1: chart | AD1: chart | AE1: chart | AF1: chart | AG1: parameter
A2: measureID | B2: Line | C2: name | D2: start year | E2: end year | F2: comment | G2: order | H2: programmeID | I2: prog_order | J2: isTotal | K2: preferred value | L2: Programme | M2: subProgrammeID | N2: fullname | O2: label | P2: shortname | Q2: type | R2: transform | S2: polarity | T2: spine1 | U2: spine_LA | V2: spine_PH | W2: spine_Education | X2: spine_Child | Y2: spine_Adult | Z2: spine_Housing | AA2: spine_Env | AB2: spine_Plan | AC2: spine_Highways | AD2: spine_Culture | AE2: spine_Central | AF2: spine_Other | AG2: link
A3: SP_390_RO | B3: 390 | C3: Total Public Health (RO) | D3: 2014 | E3: 2017 | G3: 1 | H3: Public Health | I3: 1 | J3: 1 | L3: PUBLIC HEALTH | N3: Public Health (RO) | O3: Public Health | Q3: RO | R3: none | S3: 1 | AG3: https://www.gov.uk/government/collections/local-authority-revenue-expenditure-and-financing
A4: SP_361_RO | B4: 361 | C4: Sexual health services - STI testing and treatment (RO) | D4: 2014 | E4: 2017 | G4: 2 | H4: Public Health | I4: 1 | L4: PUBLIC HEALTH | M4: Sexual Health | N4: Sexual health services - STI testing and treatment (prescribed functions) (RO) | O4: Sexual health services - STI testing and treatment (prescribed functions) | Q4: RO | R4: none | S4: 1 | AG4: https://www.gov.uk/government/collections/local-authority-revenue-expenditure-and-financing
A5: SP_362_RO | B5: 362 | C5: Sexual health services - Contraception (RO) | D5: 2014 | E5: 2017 | G5: 3 | H5: Public Health | I5: 1 | L5: PUBLIC HEALTH | M5: Sexual Health | N5: Sexual health services - Contraception (prescribed functions) (RO) | O5: Sexual health services - Contraception (prescribed functions) | Q5: RO | R5: none | S5: 1 | AG5: https://www.gov.uk/government/collections/local-authority-revenue-expenditure-and-financing
A6: SP_363_RO | B6: 363 | C6: Sexual health services - Advice, prevention and promotion (RO) | D6: 2014 | E6: 2017 | G6: 4 | H6: Public Health | I6: 1 | L6: PUBLIC HEALTH | M6: Sexual Health | N6: Sexual health services - Advice, prevention and promotion (non-prescribed functions) (RO) | O6: Sexual health services - Advice, prevention and promotion (non-prescribed functions) | Q6: RO | R6: none | S6: 1 | AG6: https://www.gov.uk/government/collections/local-authority-revenue-expenditure-and-financing
A7: SP_365_RO | B7: 365 | C7: NHS health check programme (RO) | D7: 2014 | E7: 2017 | G7: 5 | H7: Public Health | I7: 1 | L7: PUBLIC HEALTH | M7: Healthcare PH | N7: NHS health check programme (prescribed functions) (RO) | O7: NHS health check programme (prescribed functions) | Q7: RO | R7: none | S7: 1 | AG7: https://www.gov.uk/government/collections/local-authority-revenue-expenditure-and-financing
A8: SP_366_RO | B8: 366 | C8: Health protection - Local authority role in health protection (RO) | D8: 2014 | E8: 2017 | G8: 6 | H8: Public Health | I8: 1 | L8: PUBLIC HEALTH | M8: Health Protection | N8: Health protection - Local authority role in health protection (prescribed functions) (RO) | O8: Health protection - Local authority role in health protection (prescribed functions) | Q8: RO | R8: none | S8: 1 | AG8: https://www.gov.uk/government/collections/local-authority-revenue-expenditure-and-financing
A9: SP_368_RO | B9: 368 | C9: National child measurement programme (RO) | D9: 2014 | E9: 2017 | G9: 7 | H9: Public Health | I9: 1 | L9: PUBLIC HEALTH | M9: Health Improvement | N9: National child measurement programme (prescribed functions) (RO) | O9: National child measurement programme (prescribed functions) | Q9: RO | R9: none | S9: 1 | AG9: https://www.gov.uk/government/collections/local-authority-revenue-expenditure-and-financing
A10: SP_370_RO | B10: 370 | C10: Public health advice (RO) | D10: 2014 | E10: 2017 | G10: 8 | H10: Public Health | I10: 1 | L10: PUBLIC HEALTH | M10: Healthcare PH | N10: Public health advice (prescribed functions) (RO) | O10: Public health advice (prescribed functions) | Q10: RO | R10: none | S10: 1 | AG10: https://www.gov.uk/government/collections/local-authority-revenue-expenditure-and-financing
A11: SP_371_RO | B11: 371 | C11: Obesity - adults (RO) | D11: 2014 | E11: 2017 | G11: 9 | H11: Public Health | I11: 1 | L11: PUBLIC HEALTH | M11: Health Improvement | N11: Obesity - adults (RO) | O11: Obesity - adults | Q11: RO | R11: none | S11: 1 | AG11: https://www.gov.uk/government/collections/local-authority-revenue-expenditure-and-financing
A12: SP_372_RO | B12: 372 | C12: Obesity - children (RO) | D12: 2014 | E12: 2017 | G12: 10 | H12: Public Health | I12: 1 | L12: PUBLIC HEALTH | M12: Health Improvement | N12: Obesity - children (RO) | O12: Obesity - children | Q12: RO | R12: none | S12: 1 | AG12: https://www.gov.uk/government/collections/local-authority-revenue-expenditure-and-financing
A13: SP_373_RO | B13: 373 | C13: Physical activity - adults (RO) | D13: 2014 | E13: 2017 | G13: 11 | H13: Public Health | I13: 1 | L13: PUBLIC HEALTH | M13: Health Improvement | N13: Physical activity - adults (RO) | O13: Physical activity - adults | Q13: RO | R13: none | S13: 1 | AG13: https://www.gov.uk/government/collections/local-authority-revenue-expenditure-and-financing
A14: SP_374_RO | B14: 374 | C14: Physical activity - children (RO) | D14: 2014 | E14: 2017 | G14: 12 | H14: Public Health | I14: 1 | L14: PUBLIC HEALTH | M14: Health Improvement | N14: Physical activity - children (RO) | O14: Physical activity - children | Q14: RO | R14: none | S14: 1 | AG14: https://www.gov.uk/government/collections/local-authority-revenue-expenditure-and-financing
A15: SP_376_RO | B15: 376 | C15: Substance misuse - Drug misuse - adults (RO) | D15: 2014 | E15: 2017 | G15: 13 | H15: Public Health | I15: 1 | L15: PUBLIC HEALTH | M15: Drugs and Alcohol | N15: Substance misuse - Drug misuse - adults (RO) | O15: Substance misuse - Drug misuse - adults | Q15: RO | R15: none | S15: 1 | AG15: https://www.gov.uk/government/collections/local-authority-revenue-expenditure-and-financing
... 18 more rows

Sheet MD_OC_LA (hidden)
A1: Outcome metadata | B1: group | C1: parameter | D1: group | E1: parameter | F1: source | G1: misc | H1: parameter | I1: parameter | J1: parameter | K1: parameter | L1: misc | M1: identifier | N1: parameter | O1: parameter | P1: chart | Q1: chart | R1: chart | S1: chart | T1: chart | U1: chart | V1: chart | W1: chart | X1: chart | Y1: chart | Z1: chart | AA1: chart | AB1: chart | AC1: x | AD1: identifier | AE1: parameter
A2: measureID | B2: programmeID | C2: prog_order | D2: subProgrammeID | E2: order | F2: SOURCE | G2: Statistic | H2: transform | I2: polarity | J2: start year | K2: end year | L2: Last updated | M2: name | N2: weighting | O2: subWeighting | P2: spine1 | Q2: spine_LA | R2: spine_PH | S2: spine_Education | T2: spine_Child | U2: spine_Adult | V2: spine_Housing | W2: spine_Env | X2: spine_Plan | Y2: spine_Highways | Z2: spine_Culture | AA2: spine_Central | AB2: spine_Other | AC2: x | AD2: fullname | AE2: link
A3: PHOF_1.05_P | B3: Public Health | C3: 1 | D3: Child PH | E3: 12 | F3: PHOF | G3: Proportion | H3: fraction | I3: -1 | J3: 2014 | K3: 2017 | L3: 43140 | M3: 16-18 year olds not in education employment or training (NEETs) | O3: =1/33 -> 0.0303030303 | P3: 12 | Q3: 13 | R3: 140 | S3: 7 | T3: 38 | AD3: 16-18 year olds not in education employment or training (16-18 yrs, Persons) | AE3: http://www.phoutcomes.info/
A4: CHIMAT_14 | B4: Public Health | C4: 1 | D4: Child PH | E4: 26 | F4: CHIMAT | G4: Crude rate | H4: rate | I4: -1 | J4: 2014 | K4: 2017 | L4: 43207 | M4: A&E attendances (age 0-4 years) | O4: =1/33 -> 0.0303030303 | R4: 46 | AD4: A&E attendance rate per 1,000 population aged 0-4 years. | AE4: http://atlas.chimat.org.uk/IAS/dataviews/view?viewId=493
A5: PHOF_2.20iv_M | B5: Public Health | C5: 1 | D5: Health Protection | F5: PHOF | G5: Proportion | H5: fraction | I5: 1 | J5: 2015 | K5: 2017 | L5: 43186 | M5: Abdominal Aortic Aneurysm screening coverage | O5: =1/40 -> 0.025 | AD5: The proportion of men eligible for abdominal aortic aneurysm screening who are conclusively tested | AE5: http://www.phoutcomes.info/
A6: PHOF_2.21viii_M | B6: Public Health | C6: 1 | D6: Health Protection | F6: PHOF | G6: Proportion | H6: fraction | I6: 1 | J6: 2015 | K6: 2017 | L6: 43186 | M6: Abdominal Aortic Aneurysm screening offer | O6: =1/40 -> 0.025 | AD6: % men eligible for abdominal aortic aneurysm screening to whom an initial offer of screening is made. | AE6: http://www.phoutcomes.info/
A7: CIDSC 08 | B7: Public Health | C7: 1 | D7: Sexual Health | E7: 212 | F7: CIDSC | G7: Percentage | H7: fraction | I7: 1 | J7: 2014 | K7: 2017 | L7: 43140 | M7: Abortions under 10 weeks | O7: =1/26 -> 0.03846153846 | AD7: Percentage of all NHS-funded abortions performed under 10 weeks gestation | AE7: http://fingertips.phe.org.uk/profile/sexualhealth/data
A8: NHSOF 4.4.i | B8: Public Health | C8: 1 | D8: Healthcare PH | F8: NHSOF | G8: percentage | H8: fraction | I8: 1 | J8: 2014 | K8: 2017 | L8: 43207 | M8: Access to GP services | O8: =1/49 -> 0.02040816327 | AD8: Percentage of GP patient survey respondents reporting a 'very good' or 'fairly good' experience of making an appointment | AE8: https://indicators.hscic.gov.uk/webview/
A9: NHSOF 4.4.ii | B9: Public Health | C9: 1 | D9: Healthcare PH | F9: NHSOF | G9: percentage | H9: fraction | I9: 1 | J9: 2014 | K9: 2017 | L9: 43207 | M9: Access to NHS dental services | O9: =1/49 -> 0.02040816327 | AD9: Weighted percentage of people who successfully obtained an NHS appointment in the last two years | AE9: https://indicators.hscic.gov.uk/webview/
A10: PHOF_2.13i_P | B10: Public Health | C10: 1 | D10: Health Improvement | E10: 68 | F10: PHOF | G10: Proportion | H10: fraction | I10: 1 | J10: 2014 | K10: 2017 | L10: 43140 | M10: Active adults | O10: =1/26 -> 0.03846153846 | R10: 72 | Y10: 6 | Z10: 17 | AD10: The number of respondents aged 16 and over, with valid responses to questions on physical activity, doing at least 150 "equivalent" minutes of at least moderate intensity physical activity per week in bouts of 10 minutes or more in the previous 28 days expressed as a percentage of the total number of respondents aged 16 and over. | AE10: http://www.phoutcomes.info/
A11: PHOF_1.06i_P | B11: Public Health | C11: 1 | D11: Health Improvement | E11: 31 | F11: PHOF | G11: Proportion | H11: fraction | I11: 1 | J11: 2014 | K11: 2017 | L11: 43186 | M11: Adult LD in stable and appropriate accommodation | O11: =1/26 -> 0.03846153846 | R11: 106 | U11: 34 | V11: 11 | AD11: Adults with a learning disability who live in stable and appropriate accommodation (18-64 yrs, Persons) | AE11: http://www.phoutcomes.info/
A12: PHOF_1.06ii_P | B12: Public Health | C12: 1 | D12: Mental PH | E12: 187 | F12: PHOF | G12: Proportion | H12: fraction | I12: 1 | J12: 2014 | K12: 2017 | L12: 43186 | M12: Adults 2nd MH in stable and appropriate accommodation | O12: =1/23 -> 0.04347826087 | V12: 13 | AD12: % of adults in contact with secondary mental health services who live in stable and appropriate accommodation (18-69 yrs, Persons) | AE12: http://www.phoutcomes.info/
A13: PHOF_4.09ii_P | B13: Public Health | C13: 1 | D13: Mental PH | E13: 11 | F13: PHOF | G13: Proportion | H13: fraction | I13: -1 | J13: 2016 | K13: 2017 | L13: 43186 | M13: Adults in contact with secondary mental health services | O13: =1/23 -> 0.04347826087 | AD13: The percentage of the population aged 18-74 in contact with Secondary Mental Health Services | AE13: http://www.phoutcomes.info/
A14: SUI_09 | B14: Public Health | C14: 1 | D14: Drugs and Alcohol | F14: Suicide Profile | G14: per 1000 | H14: rate | I14: -1 | J14: 2015 | K14: 2017 | L14: 43207 | M14: Adults in treatment at specialist alcohol misuse services | AD14: Rate of individuals who received treatment at a specialist alcohol misuse service | AE14: http://fingertips.phe.org.uk/profile-group/mental-health/profile/suicide
A15: SUI_08 | B15: Public Health | C15: 1 | D15: Drugs and Alcohol | F15: Suicide Profile | G15: per 1000 | H15: rate | I15: -1 | J15: 2015 | K15: 2017 | L15: 43207 | M15: Adults in treatment at specialist drug misuse services | AD15: Rate of individuals who received treatment at a specialist drug misuse service | AE15: http://fingertips.phe.org.uk/profile-group/mental-health/profile/suicide
... 18 more rows

Sheet MD_Additional_metadata_LA (hidden)
A1: table | B1: name | C1: source
A2: MD_ORG | B2: Population (0-4) | C2: ONS Population Estimates
A3: MD_ORG | B3: Population (0-17) | C3: ONS Population Estimates
A4: MD_ORG | B4: Population (19+) | C4: ONS Population Estimates
A5: MD_ORG | B5: Population (18-64) | C5: ONS Population Estimates
A6: MD_ORG | B6: Population (65+) | C6: ONS Population Estimates
A7: MD_ORG | B7: Total Population | C7: ONS Population Estimates
A8: MD_ORG | B8: Number of Pupils | C8: DfE Schools, Pupils and their Characteristics
A9: MD_ORG | B9: Motor Vehicle Traffic | C9: DfT Traffic by Local Authority
A10: MD_ORG | B10: Km of Roads Maintained | C10: DfT Road Lengths Statistics in Great Britain
A11: MD_ORG | B11: Housing Stock | C11: DCLG Local Authority Housing Statistics
A12: MD_ORG | B12: Households | C12: DCLG Live Household Projections
A13: MD_ORG | B13: Active Businesses | C13: ONS Business Demography
A14: MD_ORG | B14: most similar LA | C14: ONS Corresponding LA
A15: MD_OC | B15: PH Outcomes framework
A16: MD_SP | B16: RA Data
A17: MD_OC | B17: Social Care Outcomes framework
A18: MD_OC | B18: National Indicator dataset
A19: MD_OC | B19: Index of Multiple Deprivation

Sheet MD_ORG_CCG (hidden)
A1: Organisation metadata | B1: identifier | C1: identifier | D1: identifier | E1: identifier | F1: parameter | G1: identifier | H1: identifier | I1: nonGroup | J1: group | K1: nonGroup | L1: nonGroup | M1: nonGroup | N1: nonGroup | O1: nonGroup | P1: nongroup | Q1: nonGroup | R1: nonGroup | S1: nonGroup | T1: nonGroup | U1: group | V1: nonGroup | W1: nonGroup | X1: nonGroup | Y1: group | Z1: group | AA1: nonGroup | AB1: nonGroup | AC1: group | AD1: parameter | AE1: parameter | AF1: parameter | AG1: parameter | AH1: parameter | AI1: parameter | AJ1: parameter | AK1: parameter | AL1: parameter | AM1: parameter | AN1: parameter | AO1: parameter | AP1: parameter | AQ1: parameter | AR1: parameter | AS1: parameter | AT1: parameter | AU1: parameter | AV1: parameter
A2: CCG code | B2: full name | C2: name | D2: filename | E2: ONS code | F2: Number of practices | G2: PCT code | H2: PCT name | I2: ods Commissioner Region code Mar-15 | J2: Commissioning Region | K2: Region ONScode | L2: ods Area code Mar-15 | M2: Area Team | N2: Area ONScode | O2: Region code | P2: sub Region | Q2: sub region ONS code | R2: SHA code | S2: SHA | T2: ONS cluster code | U2: ONS cluster | V2: Deprivation decile code | W2: Deprivation decile (old) | X2: IMD Score 2015 | Y2: Deprivation decile | Z2: NHSE cluster | AA2: NHSE cluster code | AB2: STP code | AC2: STP | AD2: Population ONS 2010 | AE2: population ADS 2011 | AF2: population CCG unweighted Oct 13 | AG2: population CCG weighted Oct 13 | AH2: population registered 12/13 | AI2: population registered 13/14 | AJ2: population registered 14/15 | AK2: practices 12/13 | AL2: practices 13/14 | AM2: practices 14/15 | AN2: practices 15/16 | AO2: Has unique PCT | AP2: Cotermious PCT | AQ2: start year | AR2: end year | AS2: most similar organisation ID | AT2: most similar organisation name | AU2: default LA code | AV2: default LA name
A3: 02N | B3: NHS Airedale, Wharfedale and Craven CCG | C3: Airedale, Wharfedale and Craven | D3: Airedale | E3: E38000001 | F3: 17 | G3: 5NY | H3: Bradford and Airedale PCT | I3: Y54 | J3: North of England | K3: E40000001 | L3: Q52 | M3: West Yorkshire | N3: E39000009 | O3: Q72 | P3: NHSE Yorkshire and the Humber | Q3: E39000029 | R3: Q32 | S3: Yorkshire and The Humber | T3: ONS1.2 | U3: Centres with Industry | V3: Dep5 | W3: Deprivation decile 5 | X3: 18.939 | Y3: Deprivation decile 4 - Average | Z3: Smaller CCGs with older populations and more rural areas | AA3: Pyramid | AB3: STP_5 | AC3: West Yorkshire | AD3: 149423.368 | AE3: 155565 | AF3: 156709 | AG3: 157580.0817 | AH3: 156259 | AI3: 156676 | AJ3: 157332 | AK3: 17 | AL3: 17 | AM3: 17 | AN3: 16 | AO3: 0 | AP3: n | AQ3: 2011 | AR3: 2017 | AS3: 02T | AT3: Calderdale | AU3: E08000032 | AV3: Bradford
A4: 09C | B4: NHS Ashford CCG | C4: Ashford | D4: Ashford | E4: E38000002 | F4: 16 | G4: 5QA | H4: Eastern and Coastal Kent PCT | I4: Y57 | J4: South of England | K4: E40000004 | L4: Q67 | M4: Kent & Medway | N4: E39000022 | O4: Q81 | P4: NHSE South East | Q4: E39000035 | R4: Q37 | S4: South East Coast | T4: ONS5.7 | U4: Prospering Smaller Towns | V4: Dep4 | W4: Deprivation decile 4 | X4: 17.333 | Y4: Deprivation decile 3 - More affluent | Z4: Areas with lower deprivation and better health | AA4: Cylinder | AB4: STP_32 | AC4: Kent and Medway | AD4: 114421.7241 | AE4: 121553 | AF4: 125660 | AG4: 110889.1918 | AH4: 122614 | AI4: 125930 | AJ4: 126411 | AK4: 15 | AL4: 15 | AM4: 14 | AN4: 14 | AO4: 1 | AP4: n | AQ4: 2011 | AR4: 2017 | AS4: 10M | AT4: Newbury and District | AU4: E10000016 | AV4: Kent
A5: 10Y | B5: NHS Aylesbury Vale CCG | C5: Aylesbury Vale | D5: Aylesbury | E5: E38000003 | F5: 21 | G5: 5QD | H5: Buckinghamshire PCT | I5: Y57 | J5: South of England | K5: E40000004 | L5: Q69 | M5: Thames Valley | N5: E39000024 | O5: Q82 | P5: NHSE South Central | Q5: E39000034 | R5: Q38 | S5: South Central | T5: ONS5.9 | U5: Prospering Southern England | V5: Dep2 | W5: Deprivation deciles 0-3 | X5: 10.83 | Y5: Deprivation decile 0 - Most affluent | Z5: Areas with lower deprivation and better health | AA5: Cylinder | AB5: STP_44 | AC5: Bucks, Oxfordshire and Berks West | AD5: 192533.5191 | AE5: 197127 | AF5: 202408 | AG5: 183619.2319 | AH5: 200597 | AI5: 202600 | AJ5: 205153 | AK5: 21 | AL5: 21 | AM5: 19 | AN5: 19 | AO5: 1 | AP5: n | AQ5: 2011 | AR5: 2017 | AS5: 10M | AT5: Newbury and District | AU5: E10000002 | AV5: Buckinghamshire
A6: 07L | B6: NHS Barking & Dagenham CCG | C6: Barking & Dagenham | D6: Barking | E6: E38000004 | F6: 41 | G6: 5C2 | H6: Barking and Dagenham PCT | I6: Y56 | J6: London | K6: E40000003 | L6: Q71a | M6: London North East and Central | N6: E39000018 | O6: Q71 | P6: NHSE London | Q6: E39000018 | R6: Q36 | S6: London | T6: ONS1.2 | U6: Centres with Industry | V6: Dep8 | W6: Deprivation deciles 8-9 | X6: 34.635 | Y6: Deprivation decile 9 - Most deprived | Z6: Deprived urban areas with younger people and ethnic diversity, particularly Black | AA6: Torus | AB6: STP_29 | AC6: North East London | AD6: 174781.7205 | AE6: 196376 | AF6: 202472 | AG6: 203236.368 | AH6: 204754 | AI6: 204795 | AJ6: 207705 | AK6: 40 | AL6: 40 | AM6: 39 | AN6: 39 | AO6: 1 | AP6: y | AQ6: 2011 | AR6: 2017 | AS6: 08A | AT6: Greenwich | AU6: E09000002 | AV6: Barking & Dagenham
A7: 07M | B7: NHS Barnet CCG | C7: Barnet | D7: Barnet | E7: E38000005 | F7: 68 | G7: 5A9 | H7: Barnet PCT | I7: Y56 | J7: London | K7: E40000003 | L7: Q71a | M7: London North East and Central | N7: E39000018 | O7: Q71 | P7: NHSE London | Q7: E39000018 | R7: Q36 | S7: London | T7: ONS2.4 | U7: London Suburbs | V7: Dep4 | W7: Deprivation decile 4 | X7: 17.813 | Y7: Deprivation decile 3 - More affluent | Z7: Areas with lower deprivation and better health | AA7: Cylinder | AB7: STP_28 | AC7: North Central London | AD7: 350967.3978 | AE7: 372181 | AF7: 388895 | AG7: 366433.2903 | AH7: 386604 | AI7: 387817 | AJ7: 396936 | AK7: 68 | AL7: 67 | AM7: 67 | AN7: 67 | AO7: 1 | AP7: y | AQ7: 2011 | AR7: 2017 | AS7: 08T | AT7: Sutton | AU7: E09000003 | AV7: Barnet
A8: 02P | B8: NHS Barnsley CCG | C8: Barnsley | D8: Barnsley | E8: E38000006 | F8: 45 | G8: 5JE | H8: Barnsley PCT | I8: Y54 | J8: North of England | K8: E40000001 | L8: Q51 | M8: South Yorkshire & Bassetlaw | N8: E39000008 | O8: Q72 | P8: NHSE Yorkshire and the Humber | Q8: E39000029 | R8: Q32 | S8: Yorkshire and The Humber | T8: ONS7.12 | U8: Manufacturing Towns | V8: Dep7 | W8: Deprivation decile 7 | X8: 29.568 | Y8: Deprivation decile 8 - Most deprived | Z8: Traditional communities with deprived areas and poorer health | AA8: Cube | AB8: STP_9 | AC8: South Yorkshire and Bassetlaw | AD8: 235877.7808 | AE8: 245928 | AF8: 252212 | AG8: 275316.6759 | AH8: 250376 | AI8: 252445 | AJ8: 250893 | AK8: 38 | AL8: 37 | AM8: 36 | AN8: 35 | AO8: 1 | AP8: y | AQ8: 2011 | AR8: 2017 | AS8: 00K | AT8: Hartlepool and Stockton-on-Tees | AU8: E08000016 | AV8: Barnsley
A9: 99E | B9: NHS Basildon and Brentwood CCG | C9: Basildon and Brentwood | D9: Basildon | E9: E38000007 | F9: 46 | G9: 5PY | H9: South West Essex PCT | I9: Y55 | J9: Midlands and East | K9: E40000002 | L9: Q57 | M9: Essex | N9: E39000014 | O9: Q79 | P9: NHSE East | Q9: E39000031 | R9: Q35 | S9: East of England | T9: ONS5.8 | U9: New and Growing Towns | V9: Dep5 | W9: Deprivation decile 5 | X9: 19.559 | Y9: Deprivation decile 4 - Average | Z9: Areas with lower deprivation and better health | AA9: Cylinder | AB9: STP_26 | AC9: Mid and South Essex | AD9: 254163.4624 | AE9: 262755 | AF9: 267355 | AG9: 259852.6764 | AH9: 264618 | AI9: 267673 | AJ9: 270598 | AK9: 45 | AL9: 44 | AM9: 44 | AN9: 41 | AO9: 1 | AP9: n | AQ9: 2011 | AR9: 2017 | AS9: 12A | AT9: South Gloucestershire | AU9: E10000012 | AV9: Essex
A10: 02Q | B10: NHS Bassetlaw CCG | C10: Bassetlaw | D10: Bassetlaw | E10: E38000008 | F10: 12 | G10: 5ET | H10: Bassetlaw PCT | I10: Y54 | J10: North of England | K10: E40000001 | L10: Q51 | M10: South Yorkshire & Bassetlaw | N10: E39000008 | O10: Q72 | P10: NHSE Yorkshire and the Humber | Q10: E39000029 | R10: Q33 | S10: East Midlands | T10: ONS7.12 | U10: Manufacturing Towns | V10: Dep6 | W10: Deprivation decile 6 | X10: 22.729 | Y10: Deprivation decile 5 - Average | Z10: Traditional communities with deprived areas and poorer health | AA10: Cube | AB10: STP_9 | AC10: South Yorkshire and Bassetlaw | AD10: 107804.8771 | AE10: 111200 | AF10: 112585 | AG10: 120894.5602 | AH10: 111930 | AI10: 112624 | AJ10: 113570 | AK10: 12 | AL10: 12 | AM10: 12 | AN10: 10 | AO10: 1 | AP10: y | AQ10: 2011 | AR10: 2017 | AS10: 03Y | AT10: Hardwick | AU10: E10000024 | AV10: Nottinghamshire
A11: 11E | B11: NHS Bath and North East Somerset CCG | C11: Bath and North East Somerset | D11: Bath | E11: E38000009 | F11: 28 | G11: 5FL | H11: Bath and North East Somerset PCT | I11: Y57 | J11: South of England | K11: E40000004 | L11: Q64 | M11: Bath, Gloucestershire, Swindon & Wiltshire | N11: E39000019 | O11: Q82 | P11: NHSE South Central | Q11: E39000034 | R11: Q39 | S11: South West | T11: ONS5.7 | U11: Prospering Smaller Towns | V11: Dep3 | W11: Deprivation deciles 0-3 | X11: 12.094 | Y11: Deprivation decile 1 - Most affluent | Z11: Areas with younger adults and university cities | AA11: Sphere | AB11: STP_40 | AC11: Bath, Swindon and Wiltshire | AD11: 187520.6035 | AE11: 195191 | AF11: 198004 | AG11: 179379.1573 | AH11: 198254 | AI11: 199266 | AJ11: 202041 | AK11: 28 | AL11: 27 | AM11: 27 | AN11: 26 | AO11: 1 | AP11: y | AQ11: 2011 | AR11: 2017 | AS11: 09E | AT11: Canterbury and Coastal | AU11: E06000022 | AV11: Bath & North East Somerset UA
A12: 06F | B12: NHS Bedfordshire CCG | C12: Bedfordshire | D12: Bedfordshire | E12: E38000010 | F12: 56 | G12: 5P2 | H12: Bedfordshire PCT | I12: Y55 | J12: Midlands and East | K12: E40000002 | L12: Q58 | M12: Hertfordshire & South Midlands | N12: E39000015 | O12: Q78 | P12: NHSE Central Midlands | Q12: E39000030 | R12: Q35 | S12: East of England | T12: ONS5.7 | U12: Prospering Smaller Towns | V12: Dep3 | W12: Deprivation deciles 0-3 | X12: 14.872 | Y12: Deprivation decile 1 - Most affluent | Z12: Larger CCGs with older populations and more rural areas | AA12: Cone | AB12: STP_24 | AC12: Milton Keynes, Bedfordshire and Luton | AD12: 423510.2574 | AE12: 431941 | AF12: 447842 | AG12: 422491.0487 | AH12: 443678 | AI12: 449953 | AJ12: 457600 | AK12: 55 | AL12: 55 | AM12: 55 | AN12: 53 | AO12: 1 | AP12: y | AQ12: 2011 | AR12: 2017 | AS12: 06Q | AT12: Mid Essex | AU12: E06000056 | AV12: Central Bedfordshire UA
A13: 07N | B13: NHS Bexley CCG | C13: Bexley | D13: Bexley | E13: E38000011 | F13: 28 | G13: TAK | H13: Bexley Care Trust | I13: Y56 | J13: London | K13: E40000003 | L13: Q71c | M13: London South | N13: E39000018 | O13: Q71 | P13: NHSE London | Q13: E39000018 | R13: Q36 | S13: London | T13: ONS5.8 | U13: New and Growing Towns | V13: Dep5 | W13: Deprivation decile 5 | X13: 16.17 | Y13: Deprivation decile 2 - More affluent | Z13: Areas with lower deprivation and better health | AA13: Cylinder | AB13: STP_30 | AC13: South East London | AD13: 219185.9487 | AE13: 229227 | AF13: 228781 | AG13: 235494.5918 | AH13: 226921 | AI13: 229288 | AJ13: 231958 | AK13: 28 | AL13: 28 | AM13: 27 | AN13: 27 | AO13: 1 | AP13: y | AQ13: 2011 | AR13: 2017 | AS13: 08T | AT13: Sutton | AU13: E09000004 | AV13: Bexley
A14: 13P | B14: NHS Birmingham CrossCity CCG | C14: Birmingham CrossCity | D14: Bham_CC | E14: E38000012 | F14: 136 | G14: 5PG | H14: Birmingham East and North PCT | I14: Y55 | J14: Midlands and East | K14: E40000002 | L14: Q54 | M14: Birmingham, Solihull & the Black Country | N14: E39000011 | O14: Q77 | P14: NHSE West Midlands | Q14: E39000033 | R14: Q34 | S14: West Midlands | T14: ONS1.2 | U14: Centres with Industry | V14: Dep8 | W14: Deprivation deciles 8-9 | X14: 36.55 | Y14: Deprivation decile 9 - Most deprived | Z14: Deprived urban areas with younger people and ethnic diversity, particularly Asian | AA14: Prism | AB14: STP_17 | AC14: Birmingham and Solihull | AD14: 662971.7315 | AE14: 702520.3689 | AF14: 739238 | AG14: 760969.1346 | AH14: 736916 | AI14: 740338 | AJ14: 748691 | AK14: 116 | AL14: 115 | AM14: 113 | AN14: 95 | AO14: 0 | AP14: n | AQ14: 2011 | AR14: 2017 | AS14: 05L | AT14: Sandwell and West Birmingham | AU14: E08000025 | AV14: Birmingham
A15: 04X | B15: NHS Birmingham South and Central CCG | C15: Birmingham South and Central | D15: Bham_SC | E15: E38000013 | F15: 48 | G15: 5M1 | H15: South Birmingham PCT | I15: Y55 | J15: Midlands and East | K15: E40000002 | L15: Q54 | M15: Birmingham, Solihull & the Black Country | N15: E39000011 | O15: Q77 | P15: NHSE West Midlands | Q15: E39000033 | R15: Q34 | S15: West Midlands | T15: ONS1.2 | U15: Centres with Industry | V15: Dep8 | W15: Deprivation deciles 8-9 | X15: 37.245 | Y15: Deprivation decile 9 - Most deprived | Z15: Deprived urban areas with younger people and ethnic diversity, particularly Asian | AA15: Prism | AB15: STP_17 | AC15: Birmingham and Solihull | AD15: 218127.3404 | AE15: 242385 | AF15: 247127 | AG15: 243664.7174 | AH15: 242896 | AI15: 249018 | AJ15: 253131 | AK15: 45 | AL15: 45 | AM15: 45 | AN15: 54 | AO15: 0 | AP15: n | AQ15: 2011 | AR15: 2017 | AS15: 04C | AT15: Leicester City | AU15: E08000025 | AV15: Birmingham
... 18 more rows

Sheet MD_practices_CCG (hidden)
A1: Practice code | B1: Practice name | C1: CCG
A2: A81001 | B2: THE DENSHAM SURGERY | C2: 00K
A3: A81002 | B3: QUEENS PARK MEDICAL CENTRE | C3: 00K
A4: A81003 | B4: THE GALLAGHER PRACTICE | C4: 00K
A5: A81004 | B5: WOODLANDS ROAD SURGERY | C5: 00M
A6: A81005 | B6: SPRINGWOOD SURGERY | C6: 00M
A7: A81006 | B7: TENNANT STREET MEDICAL PRACTICE | C7: 00K
A8: A81007 | B8: BANKHOUSE SURGERY | C8: 00K
A9: A81008 | B9: ALBERT HOUSE CLINIC | C9: 00M
A10: A81009 | B10: VILLAGE MEDICAL CENTRE | C10: 00M
A11: A81010 | B11: HART LODGE | C11: 00K
A12: A81011 | B12: CHADWICK PRACTICE | C12: 00K
A13: A81012 | B13: WESTBOURNE MEDICAL CENTRE | C13: 00M
A14: A81013 | B14: BROTTON SURGERY | C14: 00M
A15: A81014 | B15: QUEENSTREE PRACTICE | C15: 00K
... 18 more rows

Sheet MD_Prog_CCG (hidden)
A1: PROGRAMMES Metadata | B1: identifier | C1: parameter | D1: identifier | E1: identifier | F1: identifier | G1: identifier | H1: parameter | I1: parameter | J1: parameter | K1: parameter | L1: parameter | M1: chart | N1: chart | O1: chart | P1: chart | Q1: chart | R1: chart | S1: chart | T1: chart | U1: chart | V1: chart | W1: chart | X1: chart | Y1: chart | Z1: chart | AA1: chart | AB1: chart | AC1: chart | AD1: chart | AE1: chart | AF1: chart | AG1: chart | AH1: chart | AI1: chart | AJ1: chart | AK1: chart | AL1: chart | AM1: chart | AN1: chart | AO1: parameter | AP1: parameter
A2: programmeID | B2: shortname | C2: order | D2: name | E2: filename | F2: fullname | G2: parentID | H2: type | I2: default_spend | J2: preferred_default_spend | K2: default_outcome | L2: outcome_available | M2: quad_CCG_weighted_OC | N2: quad_Ca_SP | O2: quad_Ca_OC | P2: quad_CVD_SP | Q2: quad_CVD_OC | R2: spine_CCG | S2: spine_Infection | T2: spine_Ca | U2: spine_Blood | V2: spine_DM | W2: spine_MH | X2: spine_LD | Y2: spine_Neuro | Z2: spine_Vision | AA2: spine_Hear | AB2: spine_CVD | AC2: spine_Resp | AD2: spine_Dental | AE2: spine_GI | AF2: spine_Skin | AG2: spine_Musc | AH2: spine_Trauma | AI2: spine_GU | AJ2: spine_Mat | AK2: spine_Poison | AL2: spine_HI | AM2: spine_Social | AN2: spine_Other | AO2: start year | AP2: end year
A3: PB_01 | B3: Inf | C3: 1 | D3: Infection | E3: Infection | F3: Infectious Diseases | H3: Programme | I3: SP1 | J3: SP1 | K3: PI004 | L3: =IF(K3="none","no","yes") -> yes | M3: weighted | R3: 1 | S3: 1 | AO3: 2011 | AP3: 2015
A4: PB_01a | B4: AIDS | C4: 2 | D4: HIV and AIDS | F4: HIV and AIDS | G4: PB_01 | H4: Sub-Programme | S4: 4 | AO4: 2011 | AP4: 2015
A5: PB_01x | B5: InfOth | C5: 3 | D5: Infectious diseases (Other) | F5: Infectious diseases (Other) | G5: PB_01 | H5: Sub-Programme | S5: 7 | AO5: 2011 | AP5: 2015
A6: PB_02 | B6: Can | C6: 4 | D6: Cancers | E6: Cancer | F6: Cancers and Tumours | H6: Programme | I6: SP2 | J6: SP2 | K6: CCG OIS 1.9 P | L6: =IF(K6="none","no","yes") -> yes | M6: weighted | R6: 6 | T6: 1 | AO6: 2011 | AP6: 2015
A7: PB_02a | B7: Head | C7: 5 | D7: Cancer, Head and Neck | F7: Cancer, Head and Neck | G7: PB_02 | H7: Sub-Programme | N7: SP2a | O7: none | AO7: 2011 | AP7: 2015
A8: PB_02b | B8: U GI | C8: 6 | D8: Cancer, Upper GI | F8: Cancer, Upper GI | G8: PB_02 | H8: Sub-Programme | N8: SP2b | O8: none | AO8: 2011 | AP8: 2015
A9: PB_02c | B9: L GI | C9: 7 | D9: Cancer, Lower GI | F9: Cancer, Lower GI | G9: PB_02 | H9: Sub-Programme | N9: SP2c | O9: none | T9: 14 | AO9: 2011 | AP9: 2015
A10: PB_02d | B10: Lung | C10: 8 | D10: Cancer, Lung | F10: Cancer, Lung | G10: PB_02 | H10: Sub-Programme | N10: SP2d | O10: none | T10: 20 | AO10: 2011 | AP10: 2015
A11: PB_02e | B11: Skin | C11: 9 | D11: Cancer, Skin | F11: Cancer, Skin | G11: PB_02 | H11: Sub-Programme | N11: SP2e | O11: none | AO11: 2011 | AP11: 2015
A12: PB_02f | B12: Br | C12: 10 | D12: Cancer, Breast | F12: Cancer, Breast | G12: PB_02 | H12: Sub-Programme | N12: SP2f | O12: none | T12: 27 | AO12: 2011 | AP12: 2015
A13: PB_02g | B13: Gyn | C13: 11 | D13: Cancer, Gynaecological | F13: Cancer, Gynaecological | G13: PB_02 | H13: Sub-Programme | N13: SP2g | O13: none | AO13: 2011 | AP13: 2015
A14: PB_02h | B14: Uro | C14: 12 | D14: Cancer, Urological | F14: Cancer, Urological | G14: PB_02 | H14: Sub-Programme | N14: SP2h | O14: none | AO14: 2011 | AP14: 2015
A15: PB_02i | B15: Haem | C15: 13 | D15: Cancer, Haematological | F15: Cancer, Haematological | G15: PB_02 | H15: Sub-Programme | N15: SP2i | O15: none | AO15: 2011 | AP15: 2015
... 18 more rows

Sheet MD_SP_CCG (hidden)
A1: Spend metadata | B1: group | C1: group | D1: identifier | E1: parameter | F1: parameter | G1: parameter | H1: parameter | I1: parameter | J1: chart | K1: chart | L1: chart | M1: chart | N1: chart | O1: chart | P1: chart | Q1: chart | R1: chart | S1: chart | T1: chart | U1: chart | V1: chart | W1: chart | X1: chart | Y1: chart | Z1: chart | AA1: chart | AB1: chart | AC1: chart | AD1: chart | AE1: chart | AF1: chart | AG1: identifier | AH1: identifier | AI1: parameter
A2: measureID | B2: programmeID | C2: subProgrammeID | D2: shortname | E2: order | F2: transform | G2: polarity | H2: start year | I2: end year | J2: spine_CCG | K2: spine_Infection | L2: spine_Ca | M2: spine_Blood | N2: spine_DM | O2: spine_MH | P2: spine_LD | Q2: spine_Neuro | R2: spine_Vision | S2: spine_Hear | T2: spine_CVD | U2: spine_Resp | V2: spine_Dental | W2: spine_GI | X2: spine_Skin | Y2: spine_Musc | Z2: spine_Trauma | AA2: spine_GU | AB2: spine_Mat | AC2: spine_Poison | AD2: spine_HI | AE2: spine_Social | AF2: spine_Other | AG2: name | AH2: fullname | AI2: link
A3: SP1 | B3: PB_01 | D3: Inf | E3: 1 | F3: none | G3: 1 | H3: 2011 | I3: 2015 | J3: 2 | K3: 2 | AG3: Infectious Diseases | AH3: Infectious Diseases | AI3: http://www.england.nhs.uk/resources/resources-for-ccgs/prog-budgeting/
A4: SP1a | B4: PB_01 | C4: PB_01a | D4: AIDS | E4: 2 | F4: none | G4: 1 | H4: 2011 | I4: 2015 | K4: 5 | AG4: HIV and AIDS | AH4: HIV and AIDS | AI4: http://www.england.nhs.uk/resources/resources-for-ccgs/prog-budgeting/
A5: SP1x | B5: PB_01 | C5: PB_01x | D5: InfOth | E5: 3 | F5: none | G5: 1 | H5: 2011 | I5: 2015 | K5: 8 | AG5: Infectious diseases (Other) | AH5: Infectious diseases (Other) | AI5: http://www.england.nhs.uk/resources/resources-for-ccgs/prog-budgeting/
A6: SP2 | B6: PB_02 | D6: Can | E6: 4 | F6: none | G6: 1 | H6: 2011 | I6: 2015 | J6: 7 | L6: 2 | AG6: Cancers and Tumours | AH6: Cancers and Tumours | AI6: http://www.england.nhs.uk/resources/resources-for-ccgs/prog-budgeting/
A7: SP2a | B7: PB_02 | C7: PB_02a | D7: CanHN | E7: 5 | F7: none | G7: 1 | H7: 2011 | I7: 2015 | L7: 37 | AG7: Cancer, Head and Neck | AH7: Cancer, Head and Neck | AI7: http://www.england.nhs.uk/resources/resources-for-ccgs/prog-budgeting/
A8: SP2b | B8: PB_02 | C8: PB_02b | D8: CanUGI | E8: 6 | F8: none | G8: 1 | H8: 2011 | I8: 2015 | L8: 38 | AG8: Cancer, Upper GI | AH8: Cancer, Upper GI | AI8: http://www.england.nhs.uk/resources/resources-for-ccgs/prog-budgeting/
A9: SP2c | B9: PB_02 | C9: PB_02c | D9: CanLGI | E9: 7 | F9: none | G9: 1 | H9: 2011 | I9: 2015 | L9: 15 | AG9: Cancer, Lower GI | AH9: Cancer, Lower GI | AI9: http://www.england.nhs.uk/resources/resources-for-ccgs/prog-budgeting/
A10: SP2d | B10: PB_02 | C10: PB_02d | D10: CanLu | E10: 8 | F10: none | G10: 1 | H10: 2011 | I10: 2015 | L10: 21 | AG10: Cancer, Lung | AH10: Cancer, Lung | AI10: http://www.england.nhs.uk/resources/resources-for-ccgs/prog-budgeting/
A11: SP2e | B11: PB_02 | C11: PB_02e | D11: CanSk | E11: 9 | F11: none | G11: 1 | H11: 2011 | I11: 2015 | L11: 39 | AG11: Cancer, Skin | AH11: Cancer, Skin | AI11: http://www.england.nhs.uk/resources/resources-for-ccgs/prog-budgeting/
A12: SP2f | B12: PB_02 | C12: PB_02f | D12: CanBr | E12: 10 | F12: none | G12: 1 | H12: 2011 | I12: 2015 | L12: 28 | AG12: Cancer, Breast | AH12: Cancer, Breast | AI12: http://www.england.nhs.uk/resources/resources-for-ccgs/prog-budgeting/
A13: SP2g | B13: PB_02 | C13: PB_02g | D13: CanGyn | E13: 11 | F13: none | G13: 1 | H13: 2011 | I13: 2015 | L13: 31 | AG13: Cancer, Gynaecological | AH13: Cancer, Gynaecological | AI13: http://www.england.nhs.uk/resources/resources-for-ccgs/prog-budgeting/
A14: SP2h | B14: PB_02 | C14: PB_02h | D14: CanUro | E14: 12 | F14: none | G14: 1 | H14: 2011 | I14: 2015 | L14: 40 | AG14: Cancer, Urological | AH14: Cancer, Urological | AI14: http://www.england.nhs.uk/resources/resources-for-ccgs/prog-budgeting/
A15: SP2i | B15: PB_02 | C15: PB_02i | D15: CanHae | E15: 13 | F15: none | G15: 1 | H15: 2011 | I15: 2015 | L15: 41 | AG15: Cancer, Haematological | AH15: Cancer, Haematological | AI15: http://www.england.nhs.uk/resources/resources-for-ccgs/prog-budgeting/
... 18 more rows

Sheet MD_OC_CCG (hidden)
A1: Outcome metadata | B1: group | C1: parameter | D1: nonGroup | E1: misc | F1: parameter | G1: parameter | H1: parameter | I1: parameter | J1: parameter | K1: identifier | L1: group | M1: parameter | N1: parameter | O1: chart | P1: chart | Q1: chart | R1: chart | S1: chart | T1: chart | U1: chart | V1: chart | W1: chart | X1: chart | Y1: chart | Z1: chart | AA1: chart | AB1: chart | AC1: chart | AD1: chart | AE1: chart | AF1: chart | AG1: chart | AH1: chart | AI1: chart | AJ1: chart | AK1: chart | AL1: x | AM1: identifier | AN1: source | AO1: parameter
A2: measureID | B2: programmeID | C2: prog_order | D2: programmeID name | E2: Statistic | F2: order | G2: transform | H2: polarity | I2: start year | J2: end year | K2: name | L2: subProgrammeID | M2: weighting | N2: subWeighting | O2: spine_CCG | P2: spine_Infection | Q2: spine_Ca | R2: spine_Blood | S2: spine_DM | T2: spine_MH | U2: spine_LD | V2: spine_Neuro | W2: spine_Vision | X2: spine_Hear | Y2: spine_CVD | Z2: spine_Resp | AA2: spine_Dental | AB2: spine_GI | AC2: spine_Skin | AD2: spine_Musc | AE2: spine_Trauma | AF2: spine_GU | AG2: spine_Mat | AH2: spine_Poison | AI2: spine_HI | AJ2: spine_Social | AK2: spine_Other | AL2: x | AM2: fullname | AN2: SOURCE | AO2: link
A3: AMR 005 | B3: PB_01 | C3: 1 | D3: Infectious Diseases | G3: rate | H3: -1 | I3: 2014 | J3: 2016 | K3: All C. difficile rates | AM3: C. difficile infection C. difficile infection in patients aged 2 years and above, diagnosed by one of the following five methods | AN3: AMR | AO3: http://fingertips.phe.org.uk/profile/amr-local-indicators
A4: AMR 007 | B4: PB_01 | C4: 1 | D4: Infectious Diseases | G4: rate | H4: -1 | I4: 2014 | J4: 2016 | K4: All E. coli bacteraemia rates | AM4: All E. coli bacteraemia rates | AN4: AMR | AO4: http://fingertips.phe.org.uk/profile/amr-local-indicators
A5: AMR 006 | B5: PB_01 | C5: 1 | D5: Infectious Diseases | G5: rate | H5: -1 | I5: 2014 | J5: 2016 | K5: All MRSA bacteraemia rates | AM5: All MRSA bacteraemia rates | AN5: AMR | AO5: http://fingertips.phe.org.uk/profile/amr-local-indicators
A6: AMR 008 | B6: PB_01 | C6: 1 | D6: Infectious Diseases | G6: rate | H6: 1 | I6: 2015 | J6: 2016 | K6: Antibiotic Guardians per 100,000 population | AM6: Antibiotic Guardians per 100,000 population
A7: PI003 | B7: PB_01 | C7: 1 | D7: Infectious Diseases | E7: Percentage | F7: 1 | G7: fraction | H7: 1 | I7: 2011 | J7: 2015 | K7: Children vaccinated for MMR by 2nd birthday | M7: =1/4 -> 0.25 | P7: 9 | AM7: Percent of children vaccinated for MMR by 2nd birthday | AN7: HSCIC | AO7: http://indicators.ic.nhs.uk/webview/index.jsp?v=2&submode=ddi&study=http%3A%2F%2F172.16.9.26%3A80%2Fobj%2FfStudy%2FP00430&mode=documentation&top=yes
A8: PI004 | B8: PB_01 | C8: 1 | D8: Infectious Diseases | E8: Percentage | F8: 2 | G8: fraction | H8: 1 | I8: 2011 | J8: 2015 | K8: Children vaccinated for MMR by 5th birthday, 2nd dose | M8: =1/4 -> 0.25 | O8: 3 | P8: 10 | AM8: Percent of children vaccinated for MMR by 5th birthday, 2nd dose | AN8: HSCIC | AO8: http://indicators.ic.nhs.uk/webview/index.jsp?v=2&submode=ddi&study=http%3A%2F%2F172.16.9.26%3A80%2Fobj%2FfStudy%2FP00431&mode=documentation&top=yes
A9: PI005 | B9: PB_01 | C9: 1 | D9: Infectious Diseases | E9: Percentage | F9: 3 | G9: fraction | H9: 1 | I9: 2011 | J9: 2015 | K9: Children vaccinated for whooping cough by 1st birthday | M9: =1/4 -> 0.25 | P9: 11 | AM9: Percent of children vaccinated for whooping cough by 1st birthday | AN9: HSCIC | AO9: http://indicators.ic.nhs.uk/webview/index.jsp?v=2&submode=ddi&study=http%3A%2F%2F172.16.9.26%3A80%2Fobj%2FfStudy%2FP00432&mode=documentation&top=yes
A10: PI006 | B10: PB_01 | C10: 1 | D10: Infectious Diseases | E10: Percentage | F10: 4 | G10: fraction | H10: 1 | I10: 2011 | J10: 2015 | K10: Children vaccinated for whooping cough by 5th birthday | M10: =1/4 -> 0.25 | P10: 12 | AM10: Percent of children vaccinated for whooping cough by 5th birthday | AN10: HSCIC | AO10: http://indicators.ic.nhs.uk/webview/index.jsp?v=2&submode=ddi&study=http%3A%2F%2F172.16.9.26%3A80%2Fobj%2FfStudy%2FP00433&mode=documentation&top=yes
A11: CCG OIS 5.4 | B11: PB_01 | C11: 1 | D11: Infectious Diseases | E11: number | G11: none | H11: -1 | I11: 2015 | J11: 2016 | K11: Count of C. difficile infections reported, in people aged 2+ | P11: 14 | AM11: Incidence of Healthcare Associated Infection (HCAI) – C. difficile | AN11: CCG OIS | AO11: https://indicators.ic.nhs.uk/webview/
A12: CCG OIS 5.3 | B12: PB_01 | C12: 1 | D12: Infectious Diseases | E12: number | G12: none | H12: -1 | I12: 2015 | J12: 2016 | K12: Count of MRSA bloodstream infections reported | P12: 13 | AM12: Incidence of Healthcare Associated Infection (HCAI) - Methicillin-resistant Staphylococcus aureus (MRSA) | AN12: CCG OIS | AO12: https://indicators.ic.nhs.uk/webview/
A13: AMR 001 | B13: PB_01 | C13: 1 | D13: Infectious Diseases | E13: Percentage | G13: fraction | H13: 1 | I13: 2016 | J13: 2016 | K13: E. coli blood specimens with susceptibility tests to a carbapenem | AM13: Percentage of E. coli blood specimens (from voluntary English laboratory surveillance) with susceptibility tests to a carbapenem | AN13: AMR | AO13: http://fingertips.phe.org.uk/profile/amr-local-indicators
A14: PI002 | B14: PB_01 | C14: 1 | D14: Infectious Diseases | E14: Directly standardised rate | F14: 6 | G14: rate | H14: -1 | I14: 2011 | J14: 2014 | K14: Mortality from infectious / parasitic diseases. All ages, Persons | AM14: Mortality from infectious and parasitic diseases. Directly Standardised Rate (DSR) per 100,000 European Standard Population. All ages. Persons | AN14: PCMD | AO14: PHE NYKIT Internal Calculation
A15: PI001 | B15: PB_01 | C15: 1 | D15: Infectious Diseases | E15: Directly standardised rate | F15: 5 | G15: rate | H15: -1 | I15: 2011 | J15: 2014 | K15: Mortality from pneumonia. DSR, All ages, Persons | AM15: Mortality from pneumonia. Directly Standardised Rate (DSR) per 100,000 European Standard Population. All ages. Persons | AN15: PCMD | AO15: PHE NYKIT Internal Calculation
... 18 more rows

Sheet MENU_OC (hidden)
A1: Outcome metadata | B1: group | C1: parameter | D1: group | E1: parameter | F1: source | G1: misc | H1: parameter | I1: parameter | J1: parameter | K1: parameter | L1: misc | M1: identifier | N1: parameter | O1: parameter | P1: chart | Q1: chart | R1: chart | S1: chart | T1: chart | U1: chart | V1: chart | W1: chart | X1: chart | Y1: chart | Z1: chart | AA1: chart | AB1: chart | AC1: x | AD1: identifier | AE1: parameter
A2: measureID | B2: programmeID | C2: prog_order | D2: subProgrammeID | E2: order | F2: SOURCE | G2: Statistic | H2: transform | I2: polarity | J2: start year | K2: end year | L2: Last updated | M2: name | N2: weighting | O2: subWeighting | P2: spine1 | Q2: spine_LA | R2: spine_PH | S2: spine_Education | T2: spine_Child | U2: spine_Adult | V2: spine_Housing | W2: spine_Env | X2: spine_Plan | Y2: spine_Highways | Z2: spine_Culture | AA2: spine_Central | AB2: spine_Other | AC2: x | AD2: fullname | AE2: link
A3: PHOF_1.05_P | B3: Public Health | C3: 1 | D3: Child PH | E3: 12 | F3: PHOF | G3: Proportion | H3: fraction | I3: -1 | J3: 2014 | K3: 2017 | L3: 43140 | M3: 16-18 year olds not in education employment or training (NEETs) | O3: =1/33 -> 0.0303030303 | P3: 12 | Q3: 13 | R3: 140 | S3: 7 | T3: 38 | AD3: 16-18 year olds not in education employment or training (16-18 yrs, Persons) | AE3: http://www.phoutcomes.info/
A4: CHIMAT_14 | B4: Public Health | C4: 1 | D4: Child PH | E4: 26 | F4: CHIMAT | G4: Crude rate | H4: rate | I4: -1 | J4: 2014 | K4: 2017 | L4: 43207 | M4: A&E attendances (age 0-4 years) | O4: =1/33 -> 0.0303030303 | R4: 46 | AD4: A&E attendance rate per 1,000 population aged 0-4 years. | AE4: http://atlas.chimat.org.uk/IAS/dataviews/view?viewId=493
A5: PHOF_2.20iv_M | B5: Public Health | C5: 1 | D5: Health Protection | F5: PHOF | G5: Proportion | H5: fraction | I5: 1 | J5: 2015 | K5: 2017 | L5: 43186 | M5: Abdominal Aortic Aneurysm screening coverage | O5: =1/40 -> 0.025 | AD5: The proportion of men eligible for abdominal aortic aneurysm screening who are conclusively tested | AE5: http://www.phoutcomes.info/
A6: PHOF_2.21viii_M | B6: Public Health | C6: 1 | D6: Health Protection | F6: PHOF | G6: Proportion | H6: fraction | I6: 1 | J6: 2015 | K6: 2017 | L6: 43186 | M6: Abdominal Aortic Aneurysm screening offer | O6: =1/40 -> 0.025 | AD6: % men eligible for abdominal aortic aneurysm screening to whom an initial offer of screening is made. | AE6: http://www.phoutcomes.info/
A7: CIDSC 08 | B7: Public Health | C7: 1 | D7: Sexual Health | E7: 212 | F7: CIDSC | G7: Percentage | H7: fraction | I7: 1 | J7: 2014 | K7: 2017 | L7: 43140 | M7: Abortions under 10 weeks | O7: =1/26 -> 0.03846153846 | AD7: Percentage of all NHS-funded abortions performed under 10 weeks gestation | AE7: http://fingertips.phe.org.uk/profile/sexualhealth/data
A8: NHSOF 4.4.i | B8: Public Health | C8: 1 | D8: Healthcare PH | F8: NHSOF | G8: percentage | H8: fraction | I8: 1 | J8: 2014 | K8: 2017 | L8: 43207 | M8: Access to GP services | O8: =1/49 -> 0.02040816327 | AD8: Percentage of GP patient survey respondents reporting a 'very good' or 'fairly good' experience of making an appointment | AE8: https://indicators.hscic.gov.uk/webview/
A9: NHSOF 4.4.ii | B9: Public Health | C9: 1 | D9: Healthcare PH | F9: NHSOF | G9: percentage | H9: fraction | I9: 1 | J9: 2014 | K9: 2017 | L9: 43207 | M9: Access to NHS dental services | O9: =1/49 -> 0.02040816327 | AD9: Weighted percentage of people who successfully obtained an NHS appointment in the last two years | AE9: https://indicators.hscic.gov.uk/webview/
A10: PHOF_2.13i_P | B10: Public Health | C10: 1 | D10: Health Improvement | E10: 68 | F10: PHOF | G10: Proportion | H10: fraction | I10: 1 | J10: 2014 | K10: 2017 | L10: 43140 | M10: Active adults | O10: =1/26 -> 0.03846153846 | R10: 72 | Y10: 6 | Z10: 17 | AD10: The number of respondents aged 16 and over, with valid responses to questions on physical activity, doing at least 150 "equivalent" minutes of at least moderate intensity physical activity per week in bouts of 10 minutes or more in the previous 28 days expressed as a percentage of the total number of respondents aged 16 and over. | AE10: http://www.phoutcomes.info/
A11: PHOF_1.06i_P | B11: Public Health | C11: 1 | D11: Health Improvement | E11: 31 | F11: PHOF | G11: Proportion | H11: fraction | I11: 1 | J11: 2014 | K11: 2017 | L11: 43186 | M11: Adult LD in stable and appropriate accommodation | O11: =1/26 -> 0.03846153846 | R11: 106 | U11: 34 | V11: 11 | AD11: Adults with a learning disability who live in stable and appropriate accommodation (18-64 yrs, Persons) | AE11: http://www.phoutcomes.info/
A12: PHOF_1.06ii_P | B12: Public Health | C12: 1 | D12: Mental PH | E12: 187 | F12: PHOF | G12: Proportion | H12: fraction | I12: 1 | J12: 2014 | K12: 2017 | L12: 43186 | M12: Adults 2nd MH in stable and appropriate accommodation | O12: =1/23 -> 0.04347826087 | V12: 13 | AD12: % of adults in contact with secondary mental health services who live in stable and appropriate accommodation (18-69 yrs, Persons) | AE12: http://www.phoutcomes.info/
A13: PHOF_4.09ii_P | B13: Public Health | C13: 1 | D13: Mental PH | E13: 11 | F13: PHOF | G13: Proportion | H13: fraction | I13: -1 | J13: 2016 | K13: 2017 | L13: 43186 | M13: Adults in contact with secondary mental health services | O13: =1/23 -> 0.04347826087 | AD13: The percentage of the population aged 18-74 in contact with Secondary Mental Health Services | AE13: http://www.phoutcomes.info/
A14: SUI_09 | B14: Public Health | C14: 1 | D14: Drugs and Alcohol | F14: Suicide Profile | G14: per 1000 | H14: rate | I14: -1 | J14: 2015 | K14: 2017 | L14: 43207 | M14: Adults in treatment at specialist alcohol misuse services | AD14: Rate of individuals who received treatment at a specialist alcohol misuse service | AE14: http://fingertips.phe.org.uk/profile-group/mental-health/profile/suicide
A15: SUI_08 | B15: Public Health | C15: 1 | D15: Drugs and Alcohol | F15: Suicide Profile | G15: per 1000 | H15: rate | I15: -1 | J15: 2015 | K15: 2017 | L15: 43207 | M15: Adults in treatment at specialist drug misuse services | AD15: Rate of individuals who received treatment at a specialist drug misuse service | AE15: http://fingertips.phe.org.uk/profile-group/mental-health/profile/suicide
... 18 more rows

Sheet MENU_SP (hidden)
A1: Spend metadata | B1: parameter | C1: identifier | D1: parameter | E1: parameter | F1: x | G1: parameter | H1: group | I1: parameter | J1: parameter | K1: parameter | L1: nonGroup | M1: group | N1: identifier | O1: identifier | P1: identifier | Q1: parameter | R1: parameter | S1: parameter | T1: chart | U1: chart | V1: chart | W1: chart | X1: chart | Y1: chart | Z1: chart | AA1: chart | AB1: chart | AC1: chart | AD1: chart | AE1: chart | AF1: chart | AG1: parameter
A2: measureID | B2: Line | C2: name | D2: start year | E2: end year | F2: comment | G2: order | H2: programmeID | I2: prog_order | J2: isTotal | K2: preferred value | L2: Programme | M2: subProgrammeID | N2: fullname | O2: label | P2: shortname | Q2: type | R2: transform | S2: polarity | T2: spine1 | U2: spine_LA | V2: spine_PH | W2: spine_Education | X2: spine_Child | Y2: spine_Adult | Z2: spine_Housing | AA2: spine_Env | AB2: spine_Plan | AC2: spine_Highways | AD2: spine_Culture | AE2: spine_Central | AF2: spine_Other | AG2: link
A3: SP_390_RO | B3: 390 | C3: Total Public Health (RO) | D3: 2014 | E3: 2017 | G3: 1 | H3: Public Health | I3: 1 | J3: 1 | L3: PUBLIC HEALTH | N3: Public Health (RO) | O3: Public Health | Q3: RO | R3: none | S3: 1 | AG3: https://www.gov.uk/government/collections/local-authority-revenue-expenditure-and-financing
A4: SP_361_RO | B4: 361 | C4: Sexual health services - STI testing and treatment (RO) | D4: 2014 | E4: 2017 | G4: 2 | H4: Public Health | I4: 1 | L4: PUBLIC HEALTH | M4: Sexual Health | N4: Sexual health services - STI testing and treatment (prescribed functions) (RO) | O4: Sexual health services - STI testing and treatment (prescribed functions) | Q4: RO | R4: none | S4: 1 | AG4: https://www.gov.uk/government/collections/local-authority-revenue-expenditure-and-financing
A5: SP_362_RO | B5: 362 | C5: Sexual health services - Contraception (RO) | D5: 2014 | E5: 2017 | G5: 3 | H5: Public Health | I5: 1 | L5: PUBLIC HEALTH | M5: Sexual Health | N5: Sexual health services - Contraception (prescribed functions) (RO) | O5: Sexual health services - Contraception (prescribed functions) | Q5: RO | R5: none | S5: 1 | AG5: https://www.gov.uk/government/collections/local-authority-revenue-expenditure-and-financing
A6: SP_363_RO | B6: 363 | C6: Sexual health services - Advice, prevention and promotion (RO) | D6: 2014 | E6: 2017 | G6: 4 | H6: Public Health | I6: 1 | L6: PUBLIC HEALTH | M6: Sexual Health | N6: Sexual health services - Advice, prevention and promotion (non-prescribed functions) (RO) | O6: Sexual health services - Advice, prevention and promotion (non-prescribed functions) | Q6: RO | R6: none | S6: 1 | AG6: https://www.gov.uk/government/collections/local-authority-revenue-expenditure-and-financing
A7: SP_365_RO | B7: 365 | C7: NHS health check programme (RO) | D7: 2014 | E7: 2017 | G7: 5 | H7: Public Health | I7: 1 | L7: PUBLIC HEALTH | M7: Healthcare PH | N7: NHS health check programme (prescribed functions) (RO) | O7: NHS health check programme (prescribed functions) | Q7: RO | R7: none | S7: 1 | AG7: https://www.gov.uk/government/collections/local-authority-revenue-expenditure-and-financing
A8: SP_366_RO | B8: 366 | C8: Health protection - Local authority role in health protection (RO) | D8: 2014 | E8: 2017 | G8: 6 | H8: Public Health | I8: 1 | L8: PUBLIC HEALTH | M8: Health Protection | N8: Health protection - Local authority role in health protection (prescribed functions) (RO) | O8: Health protection - Local authority role in health protection (prescribed functions) | Q8: RO | R8: none | S8: 1 | AG8: https://www.gov.uk/government/collections/local-authority-revenue-expenditure-and-financing
A9: SP_368_RO | B9: 368 | C9: National child measurement programme (RO) | D9: 2014 | E9: 2017 | G9: 7 | H9: Public Health | I9: 1 | L9: PUBLIC HEALTH | M9: Health Improvement | N9: National child measurement programme (prescribed functions) (RO) | O9: National child measurement programme (prescribed functions) | Q9: RO | R9: none | S9: 1 | AG9: https://www.gov.uk/government/collections/local-authority-revenue-expenditure-and-financing
A10: SP_370_RO | B10: 370 | C10: Public health advice (RO) | D10: 2014 | E10: 2017 | G10: 8 | H10: Public Health | I10: 1 | L10: PUBLIC HEALTH | M10: Healthcare PH | N10: Public health advice (prescribed functions) (RO) | O10: Public health advice (prescribed functions) | Q10: RO | R10: none | S10: 1 | AG10: https://www.gov.uk/government/collections/local-authority-revenue-expenditure-and-financing
A11: SP_371_RO | B11: 371 | C11: Obesity - adults (RO) | D11: 2014 | E11: 2017 | G11: 9 | H11: Public Health | I11: 1 | L11: PUBLIC HEALTH | M11: Health Improvement | N11: Obesity - adults (RO) | O11: Obesity - adults | Q11: RO | R11: none | S11: 1 | AG11: https://www.gov.uk/government/collections/local-authority-revenue-expenditure-and-financing
A12: SP_372_RO | B12: 372 | C12: Obesity - children (RO) | D12: 2014 | E12: 2017 | G12: 10 | H12: Public Health | I12: 1 | L12: PUBLIC HEALTH | M12: Health Improvement | N12: Obesity - children (RO) | O12: Obesity - children | Q12: RO | R12: none | S12: 1 | AG12: https://www.gov.uk/government/collections/local-authority-revenue-expenditure-and-financing
A13: SP_373_RO | B13: 373 | C13: Physical activity - adults (RO) | D13: 2014 | E13: 2017 | G13: 11 | H13: Public Health | I13: 1 | L13: PUBLIC HEALTH | M13: Health Improvement | N13: Physical activity - adults (RO) | O13: Physical activity - adults | Q13: RO | R13: none | S13: 1 | AG13: https://www.gov.uk/government/collections/local-authority-revenue-expenditure-and-financing
A14: SP_374_RO | B14: 374 | C14: Physical activity - children (RO) | D14: 2014 | E14: 2017 | G14: 12 | H14: Public Health | I14: 1 | L14: PUBLIC HEALTH | M14: Health Improvement | N14: Physical activity - children (RO) | O14: Physical activity - children | Q14: RO | R14: none | S14: 1 | AG14: https://www.gov.uk/government/collections/local-authority-revenue-expenditure-and-financing
A15: SP_376_RO | B15: 376 | C15: Substance misuse - Drug misuse - adults (RO) | D15: 2014 | E15: 2017 | G15: 13 | H15: Public Health | I15: 1 | L15: PUBLIC HEALTH | M15: Drugs and Alcohol | N15: Substance misuse - Drug misuse - adults (RO) | O15: Substance misuse - Drug misuse - adults | Q15: RO | R15: none | S15: 1 | AG15: https://www.gov.uk/government/collections/local-authority-revenue-expenditure-and-financing
... 18 more rows

Sheet MENU_PROG (hidden)
A1: PROGRAMMES Metadata | B1: identifier | C1: parameter | D1: identifier | E1: identifier | F1: identifier | G1: identifier | H1: parameter | I1: parameter | J1: parameter | K1: parameter | L1: parameter | M1: chart | N1: chart | O1: chart | P1: chart | Q1: chart | R1: chart | S1: chart | T1: chart | U1: chart | V1: chart | W1: chart | X1: chart | Y1: chart | Z1: chart | AA1: chart | AB1: chart | AC1: chart | AD1: parameter | AE1: parameter | AF1: misc
A2: programmeID | B2: shortname | C2: order | D2: name | E2: fullname | F2: filename | G2: parentID | H2: type | I2: default_spend | J2: preferred_default_spend | K2: default_outcome | L2: outcome_available | M2: spine_LA | N2: spine_PH | O2: spine_Education | P2: spine_Child | Q2: spine_Adult | R2: spine_Housing | S2: spine_Env | T2: spine_Plan | U2: spine_Highways | V2: spine_Culture | W2: spine_Central | X2: spine_Other | Y2: quad_LA_spend | Z2: quad_LA_spend old | AA2: quad_LA_outcome | AB2: quad_PH_spend | AC2: quad_PH_outcome | AD2: start year | AE2: end year | AF2: spine 2015 status
A3: Public Health | B3: PH | C3: 1 | D3: Public Health | E3: Public Health | F3: Public_Health | H3: Programme | I3: SP_390_RA | J3: SP_390_RO | K3: PHOF_0.1i_M | L3: =IF(K3="none","no","yes") -> yes | M3: 1 | N3: 1 | Y3: SP_390_RA | Z3: SP059 | AA3: weighted | AD3: 2014 | AE3: 2017 | AF3: OK
A4: Education | B4: Edu | C4: 15 | D4: Education | E4: Education | F4: Education | H4: Programme | I4: DFE251_101_RA_TOT | J4: DFE251_101_RO_TOT | K4: NI 75 | L4: yes | M4: 6 | O4: 1 | Y4: DFE251_101_RA_TOT | Z4: SP007 | AA4: weighted | AD4: 2014 | AE4: 2017 | AF4: OK but gaps
A5: Children | B5: Child | C5: 20 | D5: Social Care - Child | E5: Social Care - Children | F5: Children | H5: Programme | I5: SP_330_RA | J5: SP_330_RO | K5: NI 60 | L5: yes | M5: 11 | P5: 1 | Y5: SP_330_RA | Z5: SP032 | AA5: weighted | AD5: 2014 | AE5: 2017 | AF5: lots of gaps
A6: Adults | B6: Adult | C6: 23 | D6: Social Care - Adults | E6: Social Care - Adults | F6: Adults | H6: Programme | I6: SP_360_RA | J6: SP_360_RO | K6: ASCOF1B | L6: yes | M6: 15 | Q6: 1 | Y6: SP_360_RA | Z6: SP040 | AA6: weighted | AD6: 2014 | AE6: 2017 | AF6: several gaps
A7: Housing | B7: Hse | C7: 31 | D7: Housing | E7: Housing | F7: Housing | H7: Programme | I7: SP_490_RA | J7: SP_490_RO | K7: NI 181 | L7: yes | M7: 20 | R7: 1 | Y7: SP_490_RA | Z7: SP067 | AA7: weighted | AD7: 2014 | AE7: 2017 | AF7: OK but gaps
A8: Environment | B8: Env | C8: 36 | D8: Env & Reg | E8: Environmental & Regulatory | F8: Environment | H8: Programme | I8: SP_590_RA | J8: SP_590_RO | K8: NI 15 | L8: yes | M8: 24 | S8: 1 | Y8: SP_590_RA | Z8: SP103 | AA8: weighted | AD8: 2014 | AE8: 2017 | AF8: OK but gaps
A9: Planning | B9: Plan | C9: 44 | D9: Planning | E9: Planning | F9: Planning | H9: Programme | I9: SP_599_RA | J9: SP_599_RO | K9: NI 157a | L9: yes | M9: 28 | T9: 1 | Y9: SP_599_RA | Z9: SP112 | AA9: weighted | AD9: 2014 | AE9: 2017 | AF9: OK
A10: Highways | B10: Hwy | C10: 45 | D10: Highways | E10: Highways | F10: Highways | H10: Programme | I10: SP_290_RA | J10: SP_290_RO | K10: NI 176 | L10: yes | M10: 32 | U10: 1 | Y10: SP_290_RA | Z10: SP023 | AA10: weighted | AD10: 2014 | AE10: 2017 | AF10: OK
A11: Cultural | B11: Cult | C11: 52 | D11: Cultural | E11: Cultural | F11: Cultural | H11: Programme | I11: SP_509_RA | J11: SP_509_RO | K11: KPI 1 | L11: yes | M11: 36 | V11: 1 | Y11: SP_509_RA | Z11: SP074 | AA11: weighted | AD11: 2014 | AE11: 2017 | AF11: OK
A12: Central | B12: Cent | C12: 54 | D12: Central | E12: Central | F12: Central | H12: Programme | I12: SP_690_RA | J12: SP_690_RO | K12: NI 151R | L12: yes | M12: 40 | W12: 1 | Y12: SP_690_RA | Z12: SP127 | AA12: NI 151R | AD12: 2014 | AE12: 2017 | AF12: OK
A13: Other | B13: Oth | C13: 55 | D13: Other | E13: Other | F13: Other | H13: Programme | I13: SP_698_RA | J13: SP_698_RO | K13: none | L13: no | P13: 40 | X13: 1 | Y13: SP_698_RA | Z13: SP128 | AA13: none | AD13: 2014 | AE13: 2017 | AF13: OK

Sheet MENU_ORG (hidden)
A1: Organisation metadata | B1: identifier | C1: identifier | D1: identifier | E1: identifier | F1: identifier | G1: identifier | H1: identifier | I1: identifier | J1: identifier | K1: identifier | L1: identifier | M1: identifier | N1: group | O1: nonGroup | P1: group | Q1: group | R1: group | S1: nongroup | T1: nongroup | U1: nongroup | V1: nongroup | W1: nongroup | X1: nongroup | Y1: nongroup | Z1: nonGroup | AA1: nonGroup | AB1: nonGroup | AC1: nonGroup | AD1: nonGroup | AE1: nonGroup | AF1: nonGroup | AG1: group | AH1: nonGroup | AI1: nonGroup | AJ1: ex parameter | AK1: parameter | AL1: parameter | AM1: parameter | AN1: parameter | AO1: parameter | AP1: parameter | AQ1: parameter | AR1: parameter | AS1: parameter | AT1: parameter | AU1: parameter | AV1: parameter | AW1: parameter | AX1: parameter | AY1: parameter | AZ1: parameter | BA1: parameter | BB1: parameter | BC1: parameter | BD1: parameter | BE1: parameter | BF1: parameter | BG1: parameter
A2: GSS Code | B2: DCLG Code | C2: Old ONS Code | D2: Old DfE Code | E2: name | F2: filename | G2: name no suffix | H2: ASCOF name | I2: waste disposal name | J2: transport authority code | K2: fire region authority name | L2: DFE LEA name | M2: DFE LEA code | N2: Local authority type | O2: Region | P2: PHE centre | Q2: Core city status | R2: ONS cluster | S2: ONS cluster 2011 supergroup code | T2: ONS cluster 2011 supergroup label | U2: ONS cluster 2011 group code | V2: ONS cluster 2011 group label | W2: ONS cluster 2011 subgroup code | X2: ONS cluster 2011 subgroup label | Y2: ONS cluster 2001 | Z2: Deprivation decile (old) | AA2: Deprivation Decile code | AB2: Government Office Region | AC2: ONS Cluster 2001 code | AD2: Strategic Health Authority | AE2: IMD Score 2010 | AF2: IMD Score 2015 | AG2: Deprivation decile | AH2: old PHE Centre | AI2: NHSE LAT | AJ2: old most similar organisation ID | AK2: most similar organisation ID | AL2: most similar organisation name | AM2: start year | AN2: end year | AO2: Total Population | AP2: Population (0-4) | AQ2: Population (0-17) | AR2: Population (19+) | AS2: Population (18-64) | AT2: Population (65+) | AU2: Number of Pupils | AV2: Motor Vehicle Traffic | AW2: Km of Roads Maintained | AX2: Housing Stock | AY2: Households | AZ2: Active Businesses | BA2: ONS mid year population 2011 persons | BB2: ONS mid year population 2012 persons | BC2: ONS mid year population 2013 persons | BD2: ONS mid year population 2014 persons | BE2: ONS mid year population 2015 persons | BF2: ONS mid year population children 2012 persons | BG2: ONS mid year population children 2013 persons
A3: E09000002 | B3: E5030 | C3: 00AB | D3: 301 | E3: Barking & Dagenham | F3: Barking | G3: Barking and Dagenham | H3: Barking and Dagenham | I3: Barking and Dagenham LB | J3: E12000007 | K3: Greater London | L3: Barking and Dagenham | M3: 301 | N3: Outer London Borough | O3: London | P3: London | Q3: London | R3: Multicultural Suburbs | S3: 4 | T3: Suburban Traits | U3: 4b | V3: Multicultural Suburbs | W3: 4b1 | X3: Multicultural Suburbs | Y3: Centres with Industry | Z3: Deprivation deciles 8-9 | AA3: Dep8 | AB3: H | AC3: ONS1.2 | AD3: Q36 | AE3: 34.24768281 | AF3: 34.635 | AG3: Deprivation decile 9 - Most deprived | AH3: PHEC10 | AI3: Q61 | AJ3: E09000011 | AK3: E09000031 | AL3: =VLOOKUP(AK:AK,A:E,4,FALSE) -> 320 | AM3: 2014 | AN3: 2017 | AO3: 190600 | AP3: 19200 | AQ3: 55600 | AR3: 132300 | AS3: 115400 | AT3: 19500 | AU3: 37862 | AV3: 346 | AW3: 332.8 | AX3: 19114 | AY3: 73034 | AZ3: 4580 | BA3: 187029 | BB3: 190560 | BC3: 194352 | BD3: 198294 | BE3: 201979 | BF3: 55000 | BG3: 57000
A4: E09000003 | B4: E5031 | C4: 00AC | D4: 302 | E4: Barnet | F4: Barnet | G4: Barnet | H4: Barnet | I4: Barnet LB | J4: E12000007 | K4: Greater London | L4: Barnet | M4: 302 | N4: Outer London Borough | O4: London | P4: London | Q4: London | R4: Multicultural Suburbs | S4: 4 | T4: Suburban Traits | U4: 4b | V4: Multicultural Suburbs | W4: 4b1 | X4: Multicultural Suburbs | Y4: London Suburbs | Z4: Deprivation decile 4 | AA4: Dep4 | AB4: H | AC4: ONS2.4 | AD4: Q36 | AE4: 16.68132705 | AF4: 17.813 | AG4: Deprivation decile 2 - More affluent | AH4: PHEC10 | AI4: Q61 | AJ4: E09000024 | AK4: E09000015 | AL4: 310 | AM4: 2014 | AN4: 2017 | AO4: 364000 | AP4: 27300 | AQ4: 85300 | AR4: 274300 | AS4: 229400 | AT4: 49300 | AU4: 59969 | AV4: 1013 | AW4: 765.9 | AX4: 10820 | AY4: 141922 | AZ4: 22110 | BA4: 357538 | BB4: 363956 | BC4: 369088 | BD4: 374915 | BE4: 379691 | BF4: 84800 | BG4: 86700
A5: E08000016 | B5: E4401 | C5: 00CC | D5: 370 | E5: Barnsley | F5: Barnsley | G5: Barnsley | H5: Barnsley | I5: Barnsley MBC | J5: E11000003 | K5: South Yorkshire | L5: Barnsley | M5: 370 | N5: Metropolitan District | O5: Yorkshire & Humber | P5: Yorkshire & Humber | Q5: Non-Core City | R5: Mining Heritage | S5: 8 | T5: Mining Heritage and Manufacturing | U5: 8b | V5: Mining Heritage | W5: 8b3 | X5: Mining Heritage and Manufacturing | Y5: Manufacturing Towns | Z5: Deprivation decile 7 | AA5: Dep7 | AB5: D | AC5: ONS7.12 | AD5: Q32 | AE5: 28.50758983 | AF5: 29.568 | AG5: Deprivation decile 8 - Most deprived | AH5: PHEC03 | AI5: Q51 | AJ5: E08000018 | AK5: E08000018 | AL5: 372 | AM5: 2014 | AN5: 2017 | AO5: 233700 | AP5: 14400 | AQ5: 49100 | AR5: 181600 | AS5: 142700 | AT5: 41800 | AU5: 32550 | AV5: 1138 | AW5: 1211.2 | AX5: 19027 | AY5: 102509 | AZ5: 5690 | BA5: 231865 | BB5: 233671 | BC5: 235757 | BD5: 237843 | BE5: 239319 | BF5: 48900 | BG5: 49200
A6: E06000022 | B6: E0101 | C6: 00HA | D6: 800 | E6: Bath & North East Somerset UA | F6: Bath | G6: Bath and North East Somerset | H6: Bath and North East Somerset | I6: Bath and North East Somerset Council | J6: E06000022 | K6: Avon | L6: Bath and North East Somerset | M6: 800 | N6: Unitary Authority | O6: South West | P6: South West | Q6: Non-Core City | R6: Heritage Centres | S6: 6 | T6: Coast and Heritage | U6: 6b | V6: Heritage Centres | W6: 6b1 | X6: Heritage Centres | Y6: Prospering Smaller Towns | Z6: Deprivation deciles 0-3 | AA6: Dep3 | AB6: K | AC6: ONS5.7 | AD6: Q39 | AE6: 12.05429337 | AF6: 12.094 | AG6: Deprivation decile 0 - Most affluent | AH6: PHEC15 | AI6: Q64 | AJ6: E06000014 | AK6: E06000049 | AL6: 895 | AM6: 2014 | AN6: 2017 | AO6: 177600 | AP6: 9300 | AQ6: 33900 | AR6: 141200 | AS6: 110600 | AT6: 33200 | AU6: 29134 | AV6: 702 | AW6: 1059.4 | AY6: 74278 | AZ6: 7875 | BA6: 175538 | BB6: 177643 | BC6: 180097 | BD6: 182021 | BE6: 184874 | BF6: 33700 | BG6: 34100
A7: E06000055 | B7: E0202 | C7: 00KB | D7: 822 | E7: Bedford UA | F7: Bedford | G7: Bedford | H7: Bedford | I7: Bedford | J7: E06000055 | K7: Bedfordshire | L7: Bedford Borough | M7: 822 | N7: Unitary Authority | O7: Eastern | P7: East of England | Q7: Non-Core City | R7: Growth Areas and Cities | S7: 4 | T7: Suburban Traits | U7: 4a | V7: Growth Areas and Cities | W7: 4a2 | X7: Expanding Areas and Established Cities | Y7: New and Growing Towns | Z7: Deprivation decile 5 | AA7: Dep5 | AB7: G | AC7: ONS5.8 | AD7: Q35 | AE7: 17.77902196 | AF7: 19.238 | AG7: Deprivation decile 3 - More affluent | AH7: PHEC09 | AI7: Q58 | AJ7: E08000009 | AK7: E06000030 | AL7: 866 | AM7: 2014 | AN7: 2017 | AO7: 159200 | AP7: 10500 | AQ7: 36100 | AR7: 120900 | AS7: 97000 | AT7: 26100 | AU7: 30432 | AV7: 738 | AW7: 905.17 | AY7: 65733 | AZ7: 6045 | BA7: 157840 | BB7: 159207 | BC7: 161382 | BD7: 163924 | BE7: 166252 | BF7: 35900 | BG7: 36400
A8: E09000004 | B8: E5032 | C8: 00AD | D8: 303 | E8: Bexley | F8: Bexley | G8: Bexley | H8: Bexley | I8: Bexley LB | J8: E12000007 | K8: Greater London | L8: Bexley | M8: 303 | N8: Outer London Borough | O8: London | P8: London | Q8: London | R8: Growth Areas and Cities | S8: 4 | T8: Suburban Traits | U8: 4a | V8: Growth Areas and Cities | W8: 4a1 | X8: City Periphery | Y8: New and Growing Towns | Z8: Deprivation decile 4 | AA8: Dep4 | AB8: H | AC8: ONS5.8 | AD8: Q36 | AE8: 16.78503 | AF8: 16.17 | AG8: Deprivation decile 2 - More affluent | AH8: PHEC10 | AI8: Q63 | AJ8: E09000016 | AK8: E09000016 | AL8: 311 | AM8: 2014 | AN8: 2017 | AO8: 234300 | AP8: 15700 | AQ8: 54600 | AR8: 176400 | AS8: 141200 | AT8: 38500 | AU8: 43042 | AV8: 559 | AW8: 544.3 | AY8: 94871 | AZ8: 7390 | BA8: 232774 | BB8: 234271 | BC8: 236687 | BD8: 239865 | BE8: 242142 | BF8: 54700 | BG8: 55100
A9: E08000025 | B9: E4601 | C9: 00CN | D9: 330 | E9: Birmingham | F9: Birmingham | G9: Birmingham | H9: Birmingham | I9: Birmingham City Council | J9: E11000005 | K9: West Midlands | L9: Birmingham | M9: 330 | N9: Metropolitan District | O9: West Midlands | P9: West Midlands | Q9: Core City | R9: Business and Education Centres | S9: 5 | T9: Business and Education Centres | U9: 5a | V9: Business and Education Centres | W9: 5a1 | X9: Business Centres | Y9: Centres with Industry | Z9: Deprivation deciles 8-9 | AA9: Dep8 | AB9: F | AC9: ONS1.2 | AD9: Q34 | AE9: 37.57620858 | AF9: 37.768 | AG9: Deprivation decile 9 - Most deprived | AH9: PHEC07 | AI9: Q54 | AJ9: E08000031 | AK9: E08000032 | AL9: 380 | AM9: 2014 | AN9: 2017 | AO9: 1085400 | AP9: 83900 | AQ9: 277100 | AR9: 792500 | AS9: 667300 | AT9: 141000 | AU9: 193090 | AV9: 3621 | AW9: 2533.1 | AX9: 64618 | AY9: 418452 | AZ9: 30860 | BA9: 1074283 | BB9: 1085417 | BC9: 1092330 | BD9: 1101360 | BE9: 1111307 | BF9: 275900 | BG9: 278900
A10: E06000008 | B10: E2301 | C10: 00EX | D10: 889 | E10: Blackburn with Darwen UA | F10: Blackburn | G10: Blackburn with Darwen | H10: Blackburn with Darwen | I10: Blackburn with Darwen Borough Council | J10: E06000008 | K10: Lancashire | L10: Blackburn with Darwen | M10: 889 | N10: Unitary Authority | O10: North West | P10: North West | Q10: Non-Core City | R10: Manufacturing Traits | S10: 8 | T10: Mining Heritage and Manufacturing | U10: 8a | V10: Manufacturing Traits | W10: 8a2 | X10: Manufacturing Centres | Y10: Centres with Industry | Z10: Deprivation deciles 8-9 | AA10: Dep8 | AB10: B | AC10: ONS1.2 | AD10: Q31 | AE10: 35.3165999 | AF10: 34.189 | AG10: Deprivation decile 9 - Most deprived | AH10: PHEC02 | AI10: Q47 | AJ10: E08000032 | AK10: E08000004 | AL10: 353 | AM10: 2014 | AN10: 2017 | AO10: 147700 | AP10: 11300 | AQ10: 38600 | AR10: 107000 | AS10: 89300 | AT10: 19800 | AU10: 27587 | AV10: 431 | AW10: 549.1 | AY10: 57496 | AZ10: 4365 | BA10: 147657 | BB10: 147713 | BC10: 147369 | BD10: 146743 | BE10: 146846 | BF10: 38800 | BG10: 38500
A11: E06000009 | B11: E2302 | C11: 00EY | D11: 890 | E11: Blackpool UA | F11: Blackpool | G11: Blackpool | H11: Blackpool | I11: Blackpool Borough Council | J11: E06000009 | K11: Lancashire | L11: Blackpool | M11: 890 | N11: Unitary Authority | O11: North West | P11: North West | Q11: Non-Core City | R11: Coastal Resorts and Services | S11: 6 | T11: Coast and Heritage | U11: 6a | V11: Coastal Resorts and Services | W11: 6a2 | X11: Coastal and Rural | Y11: Coastal and Countryside | Z11: Deprivation deciles 8-9 | AA11: Dep8 | AB11: B | AC11: ONS6.10 | AD11: Q31 | AE11: 40.36777907 | AF11: 41.997 | AG11: Deprivation decile 9 - Most deprived | AH11: PHEC02 | AI11: Q47 | AJ11: E06000027 | AK11: E06000012 | AL11: 812 | AM11: 2014 | AN11: 2017 | AO11: 142000 | AP11: 8500 | AQ11: 29100 | AR11: 111100 | AS11: 85000 | AT11: 27900 | AU11: 20268 | AV11: 336 | AW11: 457.1 | AX11: 5325 | AY11: 64189 | AZ11: 3965 | BA11: 142080 | BB11: 141976 | BC11: 141400 | BD11: 140501 | BE11: 139578 | BF11: 29000 | BG11: 29100
A12: E08000001 | B12: E4201 | C12: 00BL | D12: 350 | E12: Bolton | F12: Bolton | G12: Bolton | H12: Bolton | I12: Bolton MBC | J12: E11000001 | K12: Greater Manchester | L12: Bolton | M12: 350 | N12: Metropolitan District | O12: North West | P12: North West | Q12: Non-Core City | R12: Manufacturing Traits | S12: 8 | T12: Mining Heritage and Manufacturing | U12: 8a | V12: Manufacturing Traits | W12: 8a2 | X12: Manufacturing Centres | Y12: Centres with Industry | Z12: Deprivation decile 7 | AA12: Dep7 | AB12: B | AC12: ONS1.2 | AD12: Q31 | AE12: 30.53013713 | AF12: 28.42 | AG12: Deprivation decile 7 - More deprived | AH12: PHEC04 | AI12: Q46 | AJ12: E08000005 | AK12: E08000005 | AL12: 354 | AM12: 2014 | AN12: 2017 | AO12: 279000 | AP12: 19300 | AQ12: 65300 | AR12: 210000 | AS12: 169300 | AT12: 44400 | AU12: 49178 | AV12: 1257 | AW12: 991.5 | AY12: 118340 | AZ12: 8770 | BA12: 277296 | BB12: 278984 | BC12: 280057 | BD12: 280439 | BE12: 281619 | BF12: 65000 | BG12: 65600
A13: E06000028 | B13: E1202 | C13: 00HN | D13: 837 | E13: Bournemouth UA | F13: Bournemouth | G13: Bournemouth | H13: Bournemouth | I13: Bournemouth Borough Council | J13: E06000028 | K13: Wiltshire | L13: Bournemouth | M13: 837 | N13: Unitary Authority | O13: South West | P13: South West | Q13: Non-Core City | R13: Business and Education Centres | S13: 5 | T13: Business and Education Centres | U13: 5a | V13: Business and Education Centres | W13: 5a2 | X13: Education Centres | Y13: Regional Centres | Z13: Deprivation decile 6 | AA13: Dep6 | AB13: K | AC13: ONS1.1 | AD13: Q39 | AE13: 23.4237346 | AF13: 21.847 | AG13: Deprivation decile 4 - Average | AH13: PHEC13 | AI13: Q70 | AJ13: E06000029 | AK13: E06000027 | AL13: 880 | AM13: 2014 | AN13: 2017 | AO13: 186700 | AP13: 10900 | AQ13: 32800 | AR13: 151900 | AS13: 120700 | AT13: 33300 | AU13: 22762 | AV13: 502 | AW13: 508.5 | AX13: 5139 | AY13: 83607 | AZ13: 6495 | BA13: 183450 | BB13: 186744 | BC13: 188733 | BD13: 191390 | BE13: 194516 | BF13: 32500 | BG13: 33200
A14: E06000036 | B14: E0301 | C14: 00MA | D14: 867 | E14: Bracknell Forest UA | F14: Bracknell | G14: Bracknell Forest | H14: Bracknell Forest | I14: Bracknell Forest Borough Council | J14: E06000036 | K14: Berkshire | L14: Bracknell Forest | M14: 867 | N14: Unitary Authority | O14: South East | P14: South East | Q14: Non-Core City | R14: Prosperous England | S14: 7 | T14: Prosperous England | U14: 7a | V14: Prosperous England | W14: 7a3 | X14: Prosperous Home Counties and Rugby | Y14: Prospering Southern England | Z14: Deprivation deciles 0-3 | AA14: Dep2 | AB14: J | AC14: ONS5.9 | AD14: Q38 | AE14: 9.614298064 | AF14: 10.462 | AG14: Deprivation decile 0 - Most affluent | AH14: PHEC12 | AI14: Q69 | AJ14: E06000042 | AK14: E06000037 | AL14: 869 | AM14: 2014 | AN14: 2017 | AO14: 115100 | AP14: 8200 | AQ14: 27000 | AR14: 86600 | AS14: 73200 | AT14: 14900 | AU14: 19620 | AV14: 428 | AW14: 460.4 | AY14: 47534 | AZ14: 4580 | BA14: 113696 | BB14: 115058 | BC14: 116567 | BD14: 118025 | BE14: 118982 | BF14: 26600 | BG14: 27100
A15: E08000032 | B15: E4701 | C15: 00CX | D15: 380 | E15: Bradford | F15: Bradford | G15: Bradford | H15: Bradford | I15: Bradford City MDC (MBC) | J15: E11000006 | K15: West Yorkshire | L15: Bradford | M15: 380 | N15: Metropolitan District | O15: Yorkshire & Humber | P15: Yorkshire & Humber | Q15: Non-Core City | R15: Growth Areas and Cities | S15: 4 | T15: Suburban Traits | U15: 4a | V15: Growth Areas and Cities | W15: 4a2 | X15: Expanding Areas and Established Cities | Y15: Centres with Industry | Z15: Deprivation decile 7 | AA15: Dep7 | AB15: D | AC15: ONS1.2 | AD15: Q32 | AE15: 32.70249725 | AF15: 33.168 | AG15: Deprivation decile 8 - Most deprived | AH15: PHEC03 | AI15: Q52 | AJ15: E08000034 | AK15: E08000004 | AL15: 353 | AM15: 2014 | AN15: 2017 | AO15: 524600 | AP15: 41400 | AQ15: 137400 | AR15: 380200 | AS15: 315300 | AT15: 71900 | AU15: 98616 | AV15: 1475 | AW15: 1941.1 | AX15: 45 | AY15: 202365 | AZ15: 14875 | BA15: 523115 | BB15: 524619 | BC15: 526369 | BD15: 528155 | BE15: 531176 | BF15: 137700 | BG15: 138200
... 18 more rows

Sheet MENU_misc (hidden)
A1: group | C1: SPOT Year | E1: Structures | H1: LA subprogrammes | N1: CCG subprogrammes
A2: Local authority type | C2: 2015 | E2: ID | F2: name | H2: ID | I2: name | J2: quad_spend | K2: quad_outcome | L2: spine | N2: ID | O2: name | P2: quad_spend | Q2: quad_outcome | R2: spine
A3: PHE centre | C3: 2016 | E3: LA | F3: local authorities | H3: Public Health | I3: Public Health | J3: quad_PH_spend | K3: quad_PH_outcome | L3: spine_PH | N3: PB_02 | O3: Cancers
A4: Core city status | C4: 2017 | E4: CCG | F4: clinical commissioning groups
A5: ONS cluster
A6: Deprivation decile

Sheet CD_Q1 (hidden)
A1: quadrantChart | B1: programmeCount | C1: orgID | D1: orgLabel | E1: comparatorOrgID | F1: comparatorOrgLabel | R1: Local authority quadrant chart key | W1: CCG chart quadrant key
B2: 11 | C2: E09000002 | D2: Barking & Dagenham | E2: E09000031 | F2: Waltham Forest | R2: Adult | S2: Social Care (Adult) | W2: Inf | X2: Infection | Y2: GI | Z2: Gastro Intestinal
A3: Programme ID | B3: Programme name | C3: Programme shortname | D3: Spend Z score | E3: Outcome Z score | F3: Spend measureID | G3: Outcome measureID | H3: Spend value | I3: Outcome value | J3: Comparator spend Z score | K3: Comparator outcome Z score | L3: Comparator spend value | M3: Comparator outcome value | R3: Cent | S3: Central | W3: Can | X3: Cancers | Y3: Skin | Z3: Skin
A4: Public Health | B4: Public Health | C4: PH | D4: 0.5988320775 | E4: -0.9715020571 | F4: SP_390_RO | G4: weighted | H4: 89.133 | J4: -0.3116231658 | K4: 0.3841480039 | L4: 64.9334 | R4: Child | S4: Social Care (Children) | W4: Blood | X4: Blood | Y4: Musc | Z4: Musculo Skeletal
A5: Education | B5: Education | C5: Edu | D5: 2.25 | E5: 0.1500223621 | F5: DFE251_101_RO_TOT | G5: weighted | H5: 940.237 | J5: 0.7999514229 | K5: 0.3287075522 | L5: 522.6869 | R5: Cult | S5: Cultural | W5: End | X5: Endocrine | Y5: Trau | Z5: Trauma and Inj.
A6: Children | B6: Social Care - Child | C6: Child | D6: 1.75477102 | E6: 0.1070382649 | F6: SP_330_RO | G6: weighted | H6: 269.434 | J6: -0.2749730645 | K6: 0.1314781466 | L6: 166.4454 | R6: Edu | S6: Education | W6: MH | X6: Mental Health | Y6: GU | Z6: Genito Urinary
A7: Adults | B7: Social Care - Adults | C7: Adult | D7: -1.112027328 | E7: -0.0226723361 | F7: SP_360_RO | G7: weighted | H7: 320.7165 | J7: -1.116506401 | K7: -0.3730761015 | L7: 320.4374 | R7: Env | S7: Environment & Regulatory | W7: LD | X7: Learning Dis. | Y7: Mat | Z7: Maternity
A8: Housing | B8: Housing | C8: Hse | D8: 2.25 | E8: -0.7150237904 | F8: SP_490_RO | G8: weighted | H8: 211.3982 | J8: 1.636693931 | K8: -0.7065108691 | L8: 158.8008 | R8: Hse | S8: Housing | W8: Neu | X8: Neurological | Y8: Nn | Z8: Neonates
A9: Environment | B9: Env & Reg | C9: Env | D9: -0.4651894176 | E9: -1.118984716 | F9: SP_590_RO | G9: weighted | H9: 81.6273 | J9: -0.3119038946 | K9: -0.2870357334 | L9: 88.026 | R9: Hwy | S9: Highways | W9: Vis | X9: Vision | Y9: Poi | Z9: Poisoning…
A10: Planning | B10: Planning | C10: Plan | D10: -0.2534494419 | E10: -0.04584485687 | F10: SP_599_RO | G10: weighted | H10: 30.825 | J10: 1.0300607 | K10: -0.8895997394 | L10: 56.8573 | R10: Oth | S10: Other | W10: Hear | X10: Hearing | Y10: HI | Z10: Healthy Individ.
A11: Highways | B11: Highways | C11: Hwy | D11: 0.4185545952 | E11: -0.01025097198 | F11: SP_290_RO | G11: weighted | H11: 103.7435 | J11: 1.179525491 | K11: -0.01025097198 | L11: 132.0611 | R11: PH | S11: Public Health | W11: Circ | X11: Circulation | Y11: SC | Z11: Social Care
A12: Cultural | B12: Cultural | C12: Cult | D12: 1.469624665 | E12: 0.3195389054 | F12: SP_509_RO | G12: weighted | H12: 102.1641 | J12: -0.2482488487 | K12: 0.4948455538 | L12: 48.9582 | R12: Plan | S12: Planning | W12: Resp | X12: Respiratory Sys. | Y12: Oth | Z12: Other
A13: Central | B13: Central | C13: Cent | D13: 0.8434139141 | E13: -1.432774526 | F13: SP_690_RO | G13: NI 151R | H13: 265.4929 | I13: 0.67 | J13: 1.154311344 | K13: 0.6634348038 | L13: 296.3897 | M13: 0.774 | W13: Dent | X13: Dental
A14: Other | B14: Other | C14: Oth | D14: -0.3753572257 | E14: 0 | F14: SP_698_RO | G14: none | H14: 0 | J14: -0.06211875315 | L14: 3.1346

Sheet CD_Q2 (hidden)
A1: quadrantChart | B1: programmeCount | C1: orgID | D1: orgLabel | E1: comparatorOrgID | F1: comparatorOrgLabel | Q1: Public health quadrant chart key | V1: Quadrant charts
B2: 9 | C2: E09000002 | D2: Barking & Dagenham | E2: E09000031 | F2: Waltham Forest | Q2: Child | R2: Child PH | S2: MPH | T2: Mental PH | V2: Local authority programme specific quadrant
A3: Programme ID | B3: Programme name | C3: Programme shortname | D3: Spend Z score | E3: Outcome Z score | F3: Spend measureID | G3: Outcome measureID | H3: Spend value | I3: Outcome value | J3: Comparator spend Z score | K3: Comparator outcome Z score | L3: Comparator spend value | M3: Comparator outcome value | Q3: Drug | R3: Drugs & Alcohol | S3: Smoke | T3: Tobacco | V3: charts are only currently available for:
A4: Tobacco Control | B4: Tobacco Control | C4: Smoke | D4: 0.9094670496 | E4: -0.73174897 | F4: summed | G4: weighted | H4: 7.1245 | J4: -0.1069318314 | K4: -0.01968457864 | L4: 3.9016 | Q4: HC | R4: Healthcare PH | S4: Sex | T4: Sexual Health | V4: Public Health
A5: Drugs and Alcohol | B5: Drugs and Alcohol | C5: Drug | D5: 0.9762813794 | E5: 0.4110178228 | F5: summed | G5: weighted | H5: 30.7556 | J5: 0.2042382778 | K5: 1.236511171 | L5: 23.3616 | Q5: HI | R5: Health Improvement
A6: Sexual Health | B6: Sexual Health | C6: Sex | D6: 0.183522192 | E6: -0.3541153969 | F6: summed | G6: weighted | H6: 22.6062 | J6: 1.366002069 | K6: -0.1934777974 | L6: 36.7297 | Q6: HP | R6: Health Protection | V6: Further charts may be developed in the future.
A7: Violence and Injury | B7: Violence and Injury | C7: Violence | D7: 0 | E7: -0.5350439334 | F7: none | G7: weighted | K7: -0.05808772001 | Q7: Violence | R7: Violence & Injury
A8: Health Protection | B8: Health Protection | C8: HP | D8: -0.3668055567 | E8: -0.6324220695 | F8: SP_366_RO | G8: weighted | H8: 0.406 | J8: -0.5222165851 | K8: -0.9941674026 | L8: 0.2618
A9: Health Improvement | B9: Health Improvement | C9: HI | D9: 1.309871193 | E9: -0.1841247055 | F9: summed | G9: weighted | H9: 15.0116 | J9: 1.191303515 | K9: 0.1784682967 | L9: 9.5806
A10: Healthcare PH | B10: Healthcare PH | C10: HC | D10: -0.1607730274 | E10: -0.7909101929 | F10: summed | G10: weighted | H10: 3.7678 | J10: -0.5518764226 | K10: -0.08771173503 | L10: 2.2421
A11: Mental PH | B11: Mental PH | C11: MPH | D11: 0 | E11: -0.1042948541 | F11: none | G11: weighted | K11: 0.05869171049
A12: Child PH | B12: Child PH | C12: Child | D12: 0.2204100887 | E12: -0.2149083885 | F12: SP_383_RO | G12: weighted | H12: 6.362 | J12: 0.7151600235 | K12: 0.3740823699 | L12: 8.1794
Q16: Cancer quadrant chart key | V16: Quadrant charts | AA16: Circulation quadrant chart key
Q17: Head | R17: Cancer, Head and Neck | V17: CCG programme specific quadrant | AA17: CHD | AB17: Coronary Heart Disease
Q18: U GI | R18: Cancer, Upper GI | V18: charts are currently not available. | AA18: Strk | AB18: Cerebrovascular disease
Q19: L GI | R19: Cancer, Lower GI | AA19: Rhy | AB19: Problems of Rhythm
Q20: Lung | R20: Cancer, Lung | AA20: Oth | AB20: Problems of circulation (Other)
Q21: Skin | R21: Cancer, Skin
Q22: Br | R22: Cancer, Breast | V22: Further charts may be developed in the future.
Q23: Gyn | R23: Cancer, Gynaecological
Q24: Uro | R24: Cancer, Urological
Q25: Haem | R25: Cancer, Haematological
Q26: Oth | R26: Cancers and Tumours (Other)

Sheet CD_S1 (hidden)
A1: spineChart | B1: spine_LA | C1: collectionCount | D1: 5 | E1: spineRows | F1: 46 | G1: org ID | H1: E09000002 | I1: org name | J1: Barking & Dagenham | K1: chart collection | L1: PHE centre | M1: collection value | N1: London | O1: collection2 | P1: ONS cluster | Q1: collection value | R1: Multicultural Suburbs | S1: collection3 | T1: Deprivation decile | U1: collection value | V1: Deprivation decile 9 - Most deprived
A2: code | E2: Chart | M2: Table of mean values
A3: code | F3: E09000002 | G3: National | J3: PHE centre | M3: E09000002 | N3: National | O3: PHE centre | P3: ONS cluster | Q3: Deprivation decile | R3: Local authority type | S3: Core city status
A4: organisation | F4: Barking & Dagenham | G4: England | J4: London | M4: Barking & Dagenham | N4: England | O4: London | P4: Multicultural Suburbs | Q4: Deprivation decile 9 - Most deprived | R4: Outer London Borough | S4: London
A5: Source | B5: Program | C5: ID | D5: Selected measures for Barking & Dagenham | E5: chart row | F5: Z score | G5: mean Z | H5: minus lower whisker z | I5: upper whisker z | J5: mean Z | K5: lower whisker z | L5: upper whisker z | M5: Local value | N5: National | O5: PHE centre | P5: ONS cluster | Q5: Deprivation decile | R5: Local authority type | S5: Core city status
E6: 0
A7: Programme | B7: Public Health | C7: Public Health | D7: Public Health | E7: 0.5
A8: Spend | B8: Public Health | C8: SP_390_RO | D8: Total Public Health (RO) | E8: 1.5 | F8: 0.5988320775 | G8: 0.02339549117 | H8: 1.433183362 | I8: 2.25 | J8: 0.4739968595 | K8: -1.160294347 | L8: 2.25 | M8: 89.133 | N8: 74.9302 | O8: 88.5651 | P8: 65.2735 | Q8: 108.8369 | R8: 64.4668 | S8: 88.5651
A9: Outcome | B9: Public Health | C9: PHOF_0.1ii_F | D9: Life Expectancy at birth (All ages, Female) | E9: 2.5 | F9: -0.7657218599 | G9: 0.0001394711126 | H9: 2.25 | I9: 2.25 | J9: 0.8321839644 | K9: -0.7657218599 | L9: 2.25 | M9: 81.88093 | N9: 82.98929553 | O9: 84.21588438 | P9: 83.99879 | Q9: 80.8897 | R9: 84.3147035 | S9: 84.21588438
A10: Outcome | B10: Public Health | C10: PHOF_0.1ii_M | D10: Life Expectancy at birth (All ages, Male) | E10: 3.5 | F10: -1.121292395 | G10: -0.01768535173 | H10: 2.25 | I10: 2.25 | J10: 0.6652766873 | K10: -1.121292395 | L10: 2.25 | M10: 77.49818 | N10: 79.24968247 | O10: 80.36809062 | P10: 80.309646 | Q10: 76.75404625 | R10: 80.5365905 | S10: 80.36809062
A11: Blank line | E11: 4.5
A12: Programme | B12: Education | C12: Education | D12: Education | E12: 5.5
A13: Spend | B13: Education | C13: DFE251_101_RO_TOT | D13: DFE s251 RO Net Expenditure | E13: 6.5 | F13: 2.25 | G13: 0.03936876858 | H13: 2.25 | I13: 2.25 | J13: 0.4918966222 | K13: -2.105161453 | L13: 2.25 | M13: 940.237 | N13: 426.4724 | O13: 497.3652 | P13: 522.3573 | Q13: 514.2357 | R13: 488.1126 | S13: 497.3652
A14: Spend | B14: Education | C14: SP_190_RO | D14: Total Education services (RO) | E14: 7.5 | F14: 2.25 | G14: 0.02077641969 | H14: 2.182093279 | I14: 2.25 | J14: 0.6834005023 | K14: -2.058051445 | L14: 2.25 | M14: 1384.8618 | N14: 702.5514 | O14: 845.2215 | P14: 853.2497 | Q14: 859.8407 | R14: 814.8148 | S14: 845.2215
A15: Outcome | B15: Education | C15: NI 75 | D15: 5 or more A*-C grades at GCSE (inc english and maths) | E15: 8.5 | F15: -0.09926896672 | G15: 0.006120963504 | H15: 2.25 | I15: 2.25 | J15: 0.6758111208 | K15: -0.847574467 | L15: 2.25 | M15: 0.629 | N15: 0.6343509934 | O15: 0.67665625 | P15: 0.674 | Q15: 0.5595625 | R15: 0.6843 | S15: 0.67665625
... 18 more rows

Sheet CD_S2 (hidden)
A1: spineChart | B1: spine_PH | C1: collectionCount | D1: 5 | E1: spineRows | F1: 184 | G1: org ID | H1: E09000002 | I1: org name | J1: Barking & Dagenham | K1: chart collection | L1: PHE centre | M1: collection value | N1: London | O1: collection2 | P1: ONS cluster | Q1: collection value | R1: Multicultural Suburbs | S1: collection3 | T1: Deprivation decile | U1: collection value | V1: Deprivation decile 9 - Most deprived
A2: code | E2: Chart | M2: Table of mean values
A3: code | F3: E09000002 | G3: National | J3: PHE centre | M3: E09000002 | N3: National | O3: PHE centre | P3: ONS cluster | Q3: Deprivation decile | R3: Local authority type | S3: Core city status
A4: organisation | F4: Barking & Dagenham | G4: England | J4: London | M4: Barking & Dagenham | N4: England | O4: London | P4: Multicultural Suburbs | Q4: Deprivation decile 9 - Most deprived | R4: Outer London Borough | S4: London
A5: Source | B5: Program | C5: ID | D5: Selected measures for Barking & Dagenham | E5: chart row | F5: Z score | G5: mean Z | H5: minus lower whisker z | I5: upper whisker z | J5: mean Z | K5: lower whisker z | L5: upper whisker z | M5: Local value | N5: National | O5: PHE centre | P5: ONS cluster | Q5: Deprivation decile | R5: Local authority type | S5: Core city status
E6: 0
A7: Programme | B7: Public Health | C7: Public Health | D7: Public Health | E7: 0.5
A8: Spend | B8: Public Health | C8: SP_390_RO | D8: Total Public Health (RO) | E8: 1.5 | F8: 0.5988320775 | G8: 0.02339549117 | H8: 1.433183362 | I8: 2.25 | J8: 0.4739968595 | K8: -1.160294347 | L8: 2.25 | M8: 89.133 | N8: 74.9302 | O8: 88.5651 | P8: 65.2735 | Q8: 108.8369 | R8: 64.4668 | S8: 88.5651
A9: Outcome | B9: Public Health | C9: PHOF_0.1ii_F | D9: Life Expectancy at birth (All ages, Female) | E9: 2.5 | F9: -0.7657218599 | G9: 0.0001394711126 | H9: 2.25 | I9: 2.25 | J9: 0.8321839644 | K9: -0.7657218599 | L9: 2.25 | M9: 81.88093 | N9: 82.98929553 | O9: 84.21588438 | P9: 83.99879 | Q9: 80.8897 | R9: 84.3147035 | S9: 84.21588438
A10: Outcome | B10: Public Health | C10: PHOF_0.1ii_M | D10: Life Expectancy at birth (All ages, Male) | E10: 3.5 | F10: -1.121292395 | G10: -0.01768535173 | H10: 2.25 | I10: 2.25 | J10: 0.6652766873 | K10: -1.121292395 | L10: 2.25 | M10: 77.49818 | N10: 79.24968247 | O10: 80.36809062 | P10: 80.309646 | Q10: 76.75404625 | R10: 80.5365905 | S10: 80.36809062
A11: Outcome | B11: Public Health | C11: PHOF_0.1i_F | D11: Healthy life expectancy at birth (All ages, Female) | E11: 4.5 | F11: -0.6772471055 | G11: 0.0005610022086 | H11: 2.25 | I11: 2.178673194 | J11: 0.2884053542 | K11: -1.826871263 | L11: 1.890892071 | M11: 60.67723 | N11: 63.14355487 | O11: 64.19383812 | P11: 63.948363 | Q11: 58.20808937 | R11: 65.0109165 | S11: 64.19383812
A12: Outcome | B12: Public Health | C12: PHOF_0.1i_M | D12: Healthy life expectancy at birth (All ages, Male) | E12: 5.5 | F12: -1.321746868 | G12: 0.001395270598 | H12: 2.25 | I12: 2.179355376 | J12: 0.2806113552 | K12: -1.321746868 | L12: 2.179355376 | M12: 58.15019 | N12: 62.57657627 | O12: 63.51631312 | P12: 63.374769 | Q12: 57.72413187 | R12: 64.512272 | S12: 63.51631312
A13: Outcome | B13: Public Health | C13: NHSOF 1b F | D13: Life Expectancy at 75 (Female) | E13: 6.5 | F13: -0.4883372229 | G13: 0.004013773515 | H13: 2.114309205 | I13: 2.25 | J13: 0.9684633633 | K13: -0.4883372229 | L13: 2.25 | M13: 12.8 | N13: 13.18066667 | O13: 13.95625 | P13: 13.79 | Q13: 12.34375 | R13: 13.92 | S13: 13.95625
A14: Outcome | B14: Public Health | C14: NHSOF 1b M | D14: Life Expectancy at 75 (Male) | E14: 7.5 | F14: -0.7768443059 | G14: 0.02151212255 | H14: 2.25 | I14: 2.25 | J14: 0.9101541452 | K14: -0.7768443059 | L14: 2.25 | M14: 10.9 | N14: 11.456 | O14: 12.14375 | P14: 12.05 | Q14: 10.6125 | R14: 12.04 | S14: 12.14375
A15: Blank line | E15: 8.5
... 18 more rows

Sheet CD_Box_SP (hidden)
A1: boxplotDump | B1: orgID | C1: orgLabel | D1: measureID | E1: measureLabel | F1: dataValue | G1: dataStatus | H1: collectionCount | I1: dataPeriod | J1: full label
B2: E09000002 | C2: Barking & Dagenham | D2: SP_390_RO | E2: Total Public Health (RO) | F2: 89.133 | G2: middle | H2: 5 | I2: 2016/17 | J2: Total Public Health (RO) 2016/17
A3: collection | B3: National | C3: Local authority type | D3: PHE centre | E3: Core city status | F3: ONS cluster | G3: Deprivation decile
A4: group | B4: England | C4: Outer London Borough | D4: London | E4: London | F4: Multicultural Suburbs | G4: Deprivation decile 9 - Most deprived
A5: count | B5: 151 | C5: 20 | D5: 33 | E5: 33 | F5: 10 | G5: 16
A6: outliers | B6: 3 | C6: 1 | D6: 1 | E6: 1 | F6: 0 | G6: 0
A7: mean | B7: 74.9302 | C7: 64.4668 | D7: 88.5651 | E7: 88.5651 | F7: 65.2735 | G7: 108.8369
A8: max | B8: 210.7306 | C8: 109.122 | D8: 210.7306 | E8: 210.7306 | F8: 109.122 | G8: 145.5315
A9: upperwhisker | B9: 146.4041 | C9: 107.7762 | D9: 192.1167 | E9: 192.1167 | F9: 109.122 | G9: 145.5315
A10: upperquartile | B10: 89.6582 | C10: 72.817 | D10: 109.122 | E10: 109.122 | F10: 74.9776 | G10: 125.988
A11: median | B11: 68.8265 | C11: 63.4053 | D11: 77.9352 | E11: 77.9352 | F11: 58.2459 | G11: 105.686
A12: lowerquartile | B12: 51.8276 | C12: 49.5108 | D12: 53.7922 | E12: 53.7922 | F12: 49.2183 | G12: 92.1754
A13: lowerwhisker | B13: 35.1227 | C13: 42.376 | D13: 42.376 | E13: 42.376 | F13: 46.6075 | G13: 84.6066
A14: min | B14: 35.1227 | C14: 42.376 | D14: 42.376 | E14: 42.376 | F14: 46.6075 | G14: 84.6066
A15: org value | B15: 89.133 | C15: 89.133 | D15: 89.133 | E15: 89.133 | F15: 89.133 | G15: 89.133
A16: CHART_box_2Q (median-lowerquartile) | B16: 16.9989 | C16: 13.8945 | D16: 24.143 | E16: 24.143 | F16: 9.0276 | G16: 13.5106
A17: CHART_box_3Q (upperquartile-median) | B17: 20.8317 | C17: 9.4117 | D17: 31.1868 | E17: 31.1868 | F17: 16.7317 | G17: 20.302
A18: CHART_box_whiskerhigh (upperwhisker-upperquartile) | B18: 56.7459 | C18: 34.9592 | D18: 82.9947 | E18: 82.9947 | F18: 34.1444 | G18: 19.5435
A19: CHART_box_whiskerlow (lowerquartile-lowerwhisker) | B19: 16.7049 | C19: 7.1348 | D19: 11.4162 | E19: 11.4162 | F19: 2.6108 | G19: 7.5688
A20: CHART_box_innerWhite | B20: 51.8276 | C20: 49.5108 | D20: 53.7922 | E20: 53.7922 | F20: 49.2183 | G20: 92.1754
A21: CHART_box_bottom | B21: 0 | C21: 0 | D21: 0 | E21: 0 | F21: 0 | G21: 0
A22: CHART_box_top | B22: 89.6582 | C22: 72.817 | D22: 109.122 | E22: 109.122 | F22: 74.9776 | G22: 125.988
A23: CHART_concat_name | B23: National : England | C23: Local authority type : Outer London Borough | D23: PHE centre : London | E23: Core city status : London | F23: ONS cluster : Multicultural Suburbs | G23: Deprivation decile : Deprivation decile 9 - Most deprived

Sheet CD_Box_OC (hidden)
A1: boxplotDump | B1: orgID | C1: orgLabel | D1: measureID | E1: measureLabel | F1: dataValue | G1: dataStatus | H1: collectionCount | I1: dataPeriod | J1: full label
B2: E09000002 | C2: Barking & Dagenham | D2: PHOF_0.1i_M | E2: Healthy life expectancy at birth (All ages, Male) | F2: 58.15019 | G2: low | H2: 5 | I2: 2014 - 16 | J2: Healthy life expectancy at birth (All ages, Male) 2014 - 16
A3: collection | B3: National | C3: Local authority type | D3: PHE centre | E3: Core city status | F3: ONS cluster | G3: Deprivation decile
A4: group | B4: England | C4: Outer London Borough | D4: London | E4: London | F4: Multicultural Suburbs | G4: Deprivation decile 9 - Most deprived
A5: count | B5: 150 | C5: 20 | D5: 32 | E5: 32 | F5: 10 | G5: 16
A6: outliers | B6: 2 | C6: 1 | D6: 1 | E6: 1 | F6: 1 | G6: 0
A7: mean | B7: 62.57657627 | C7: 64.512272 | D7: 63.51631312 | E7: 63.51631312 | F7: 63.374769 | G7: 57.72413187
A8: max | B8: 69.875 | C8: 69.875 | D8: 69.875 | E8: 69.875 | F8: 69.875 | G8: 61.28914
A9: upperwhisker | B9: 69.875 | C9: 69.875 | D9: 69.875 | E9: 69.875 | F9: 68.68019 | G9: 61.28914
A10: upperquartile | B10: 65.057475 | C10: 65.717545 | D10: 65.1745625 | E10: 65.1745625 | F10: 64.4777 | G10: 58.8171575
A11: median | B11: 62.585975 | C11: 64.43911 | D11: 63.4168 | E11: 63.4168 | F11: 63.56372 | G11: 57.6703
A12: lowerquartile | B12: 59.89487 | C12: 62.846985 | D12: 61.8288425 | E12: 61.8288425 | F12: 61.67604 | G12: 56.95814
A13: lowerwhisker | B13: 54.34068 | C13: 58.541145 | D13: 58.15019 | E13: 58.15019 | F13: 58.15019 | G13: 54.34068
A14: min | B14: 54.34068 | C14: 58.15019 | D14: 58.15019 | E14: 58.15019 | F14: 58.15019 | G14: 54.34068
A15: org value | B15: 58.15019 | C15: 58.15019 | D15: 58.15019 | E15: 58.15019 | F15: 58.15019 | G15: 58.15019
A16: CHART_box_2Q (median-lowerquartile) | B16: 2.691105 | C16: 1.592125 | D16: 1.5879575 | E16: 1.5879575 | F16: 1.88768 | G16: 0.71216
A17: CHART_box_3Q (upperquartile-median) | B17: 2.4715 | C17: 1.278435 | D17: 1.7577625 | E17: 1.7577625 | F17: 0.91398 | G17: 1.1468575
A18: CHART_box_whiskerhigh (upperwhisker-upperquartile) | B18: 4.817525 | C18: 4.157455 | D18: 4.7004375 | E18: 4.7004375 | F18: 4.20249 | G18: 2.4719825
A19: CHART_box_whiskerlow (lowerquartile-lowerwhisker) | B19: 5.55419 | C19: 4.30584 | D19: 3.6786525 | E19: 3.6786525 | F19: 3.52585 | G19: 2.61746
A20: CHART_box_innerWhite | B20: 59.89487 | C20: 62.846985 | D20: 61.8288425 | E20: 61.8288425 | F20: 61.67604 | G20: 56.95814
A21: CHART_box_bottom | B21: 0 | C21: 0 | D21: 0 | E21: 0 | F21: 0 | G21: 0
A22: CHART_box_top | B22: 65.057475 | C22: 65.717545 | D22: 65.1745625 | E22: 65.1745625 | F22: 64.4777 | G22: 58.8171575
A23: CHART_concat_name | B23: National : England | C23: Local authority type : Outer London Borough | D23: PHE centre : London | E23: Core city status : London | F23: ONS cluster : Multicultural Suburbs | G23: Deprivation decile : Deprivation decile 9 - Most deprived

Sheet CD_10 (hidden)
A1: topSpendDump | B1: orgID | C1: orgLabel | G1: CollectionsDump | H1: orgID | I1: orgLabel | J1: collectionCount | K1: max peers
B2: E09000002 | C2: Barking & Dagenham | H2: E09000002 | I2: Barking & Dagenham | J2: 5 | K2: 33
B3: Top 10 areas by spend per head | G3: Group membership
A4: Spend rank | B4: Programme | C4: Spend | D4: spendID | G4: Collection | H4: Group | I4: Count
A5: 0 | B5: Total | C5: 2859 | D5: SP_799_RA | G5: Local authority type | H5: Outer London Borough | I5: 20
A6: 1 | B6: Education | C6: 940.237 | D6: DFE251_101_RO_TOT | G6: PHE centre | H6: London | I6: 33
A7: 2 | B7: Social Care - Adults | C7: 320.7165 | D7: SP_360_RO | G7: Core city status | H7: London | I7: 33
A8: 3 | B8: Social Care - Child | C8: 269.434 | D8: SP_330_RO | G8: ONS cluster | H8: Multicultural Suburbs | I8: 10
A9: 4 | B9: Central | C9: 265.4929 | D9: SP_690_RO | G9: Deprivation decile | H9: Deprivation decile 9 - Most deprived | I9: 16
A10: 5 | B10: Housing | C10: 211.3982 | D10: SP_490_RO | G10: Local authority type | H10: PHE centre | I10: Core city status | J10: ONS cluster | K10: Deprivation decile
A11: 6 | B11: Highways | C11: 103.7435 | D11: SP_290_RO | G11: Outer London Borough | H11: London | I11: London | J11: Multicultural Suburbs | K11: Deprivation decile 9 - Most deprived
A12: 7 | B12: Cultural | C12: 102.1641 | D12: SP_509_RO | G12: Barking & Dagenham | H12: Barking & Dagenham | I12: Barking & Dagenham | J12: Barking & Dagenham | K12: Barking & Dagenham
A13: 8 | B13: Public Health | C13: 89.133 | D13: SP_390_RO | G13: Barnet | H13: Barnet | I13: Barnet | J13: Barnet | K13: Birmingham
A14: 9 | B14: Env & Reg | C14: 81.6273 | D14: SP_590_RO | G14: Bexley | H14: Bexley | I14: Bexley | J14: Croydon | K14: Blackburn with Darwen UA
A15: 10 | B15: Planning | C15: 30.825 | D15: SP_599_RO | G15: Brent | H15: Brent | I15: Brent | J15: Enfield | K15: Blackpool UA
... 18 more rows

Sheet CD_OL (hidden)
A1: outlierDump | B1: orgID | C1: orgLabel | D1: Outlier count | E1: Spend measures count | F1: Spend low outliers | G1: Spend high outliers | H1: Spend no data | I1: Outcome measures count | J1: Outcome worse outliers | K1: Outcome better outliers | L1: Outcome no data | M1: Outlier rows
B2: E09000002 | C2: Barking & Dagenham | D2: 106 | E2: 305 | F2: 5 | G2: 37 | H2: 1 | I2: 340 | J2: 21 | K2: 9 | L2: 33 | M2: 116
A3: Programme | B3: Source | C3: Measure | D3: Label | E3: Value | F3: National median | G3: Status | H3: Z score | I3: Polarity
A4: Public Health
B5: Spend | C5: SP_374_RA | D5: Physical activity - children (RA) | E5: 2.7082 | F5: 0.2656 | G5: high outlier | H5: 2.25 | I5: 1
B6: Spend | C6: SP_374_RO | D6: Physical activity - children (RO) | E6: 2.832 | F6: 0.2691 | G6: high outlier | H6: 2.25 | I6: 1
B7: Spend | C7: SP_378_RO | D7: Substance misuse - Preventing and reducing harm from drug misuse in adults (RO) | E7: 7.7137 | F7: 0.5602 | G7: high outlier | H7: 2.25 | I7: 1
B8: Outcome | C8: PHOF_0.2iii_F | D8: Slope index of inequality in life expectancy at birth (Female) | E8: 0.3 | F8: 3.9 | G8: better outlier | H8: 2.25 | I8: -1
B9: Outcome | C9: PHOF_0.2iii_M | D9: Slope index of inequality in life expectancy at birth (Male) | E9: 3.2 | F9: 8.2 | G9: better outlier | H9: 2.25 | I9: -1
B10: Outcome | C10: PHOF_1.02ib_P | D10: Children free school meal, good development, end reception (5 yrs) | E10: 0.673870334 | F10: 0.5587828492 | G10: better outlier | H10: 2.032107801 | I10: 1
B11: Outcome | C11: PHOF_1.04_P | D11: First time entrants to the youth justice system (10-17 yrs, Persons) | E11: 653.921257 | F11: 329.8585529 | G11: worse outlier | H11: -1.903594883 | I11: -1
B12: Outcome | C12: PHOF_1.13iii_P | D12: First time offenders | E12: 440.1447675 | F12: 220.7272483 | G12: worse outlier | H12: -2.25 | I12: -1
B13: Outcome | C13: PHOF_1.14i_P | D13: Number of complaints about noise | E13: 24.89565597 | F13: 5.251187515 | G13: worse outlier | H13: -2.25 | I13: -1
B14: Outcome | C14: PHOF_1.15i_N | D14: Statutory homelessness - homelessness acceptances | E14: 2.778318728 | F14: 0.548412247 | G14: worse outlier | H14: -1.455060907 | I14: -1
B15: Outcome | C15: PHOF_1.15ii_P | D15: Statutory homelessness - households in temporary accommodation | E15: 23.94027913 | F15: 0.771557075 | G15: worse outlier | H15: -1.912783897 | I15: -1
... 18 more rows

Sheet CD_Detail (hidden)
A1: detailDump | B1: Org ID | C1: Org name | D1: collection | E1: group | F1: group count | G1: org count | H1: spend measure | I1: spend measure name | J1: outcome measure | K1: outcome measure name
B2: E09000002 | C2: Barking & Dagenham | D2: Local authority type | E2: Outer London Borough | F2: 20 | G2: 152 | H2: SP_390_RO | I2: Total Public Health (RO) Z score 2016/17 | J2: PHOF_0.1i_M | K2: Healthy life expectancy at birth (All ages, Male) Z score 2014 - 16
A3: org ID | B3: org name | C3: Local authority type | D3: SP_390_RO Z | E3: PHOF_0.1i_M Z
A4: E09000002 | B4: Barking & Dagenham | C4: Outer London Borough | D4: 0.5988320775 | E4: -1.321746868
A5: E09000003 | B5: Barnet | C5: Outer London Borough | D5: -0.9246405563 | E5: 0.5792107594
A6: E09000004 | B6: Bexley | C6: Outer London Borough | D6: -1.160294347 | E6: 0.9574912044
A7: E09000005 | B7: Brent | C7: Outer London Borough | D7: -0.1856622344 | E7: 0.6957388856
A8: E09000006 | B8: Bromley | C8: Outer London Borough | D8: -0.8821268608 | E8: 1.275683102
A9: E09000008 | B9: Croydon | C9: Outer London Borough | D9: -0.307258928 | E9: -0.1815992984
A10: E09000009 | B10: Ealing | C10: Outer London Borough | D10: 0.04973572117 | E10: 0.04862616624
A11: E09000010 | B11: Enfield | C11: Outer London Borough | D11: 1.350873014 | E11: 0.4980824112
A12: E09000014 | B12: Haringey | C12: Outer London Borough | D12: 0.1775401668 | E12: 0.7558363915
A13: E09000015 | B13: Harrow | C13: Outer London Borough | D13: -1.001093725 | E13: 1.187970484
A14: E09000016 | B14: Havering | C14: Outer London Borough | D14: -1.028167048 | E14: 0.9313870408
A15: E09000017 | B15: Hillingdon | C15: Outer London Borough | D15: -0.4266057818 | E15: 0.5331178895
... 18 more rows

Sheet OC_filter (hidden)
A1: Outcomes Data | B1: code | C1: code | D1: code | E1: code | F1: PHOF_0.1i_F | G1: PHOF_0.1i_M | H1: PHOF_0.1ii_F | I1: PHOF_0.1ii_M | J1: PHOF_0.2iii_F | K1: PHOF_0.2iii_M | L1: PHOF_0.2iv_F | M1: PHOF_0.2iv_M | N1: PHOF_1.01i_P | O1: PHOF_1.01ii_P | P1: PHOF_1.02i_P | Q1: PHOF_1.02ib_P | R1: PHOF_1.02ii_P | S1: PHOF_1.02iib_P | T1: PHOF_1.03_P | U1: PHOF_1.04_P | V1: PHOF_1.05_P | W1: PHOF_1.06i_P | X1: PHOF_1.06ii_P | Y1: PHOF_1.08i_P | Z1: PHOF_1.08ii_P | AA1: PHOF_1.08iii_P | AB1: PHOF_1.09i_P | AC1: PHOF_1.09ii_P | AD1: PHOF_1.1_P | AE1: PHOF_1.11_P | AF1: PHOF_1.12i_P | AG1: PHOF_1.12ii_P | AH1: PHOF_1.12iii_P | AI1: PHOF_1.13i_P | AJ1: PHOF_1.13ii_P | AK1: PHOF_1.14i_P | AL1: PHOF_1.14ii_P | AM1: PHOF_1.14iii_P | AN1: PHOF_1.15i_N | AO1: PHOF_1.15ii_P | AP1: PHOF_1.16_P | AQ1: PHOF_1.17_P | AR1: PHOF_1.18i_P | AS1: PHOF_1.18ii_P | AT1: PHOF_2.01_P | AU1: PHOF_2.02i_F | AV1: PHOF_2.02ii_P | AW1: PHOF_2.03_F | AX1: PHOF_2.04_F_<16 yrs | AY1: PHOF_2.04_F_<18 yrs | AZ1: PHOF_2.06i_P | BA1: PHOF_2.06ii_P | BB1: PHOF_2.07i_P | BC1: PHOF_2.07ii_P | BD1: PHOF_2.08_P | BE1: PHOF_2.12_P | BF1: PHOF_2.13i_P | BG1: PHOF_2.13ii_P | BH1: PHOF_2.14i_P | BI1: PHOF_2.14ii_P | BJ1: PHOF_2.15i_P | BK1: PHOF_2.15ii_P | BL1: PHOF_2.17_P | BM1: PHOF_2.20i_F | BN1: PHOF_2.20ii_F | BO1: PHOF_2.21vii_P | BP1: PHOF_2.22i_P | BQ1: PHOF_2.22ii_P | BR1: PHOF_2.23i_P | BS1: PHOF_2.23ii_P | BT1: PHOF_2.23iii_P | BU1: PHOF_2.23iv_P | BV1: PHOF_2.24i_F | BW1: PHOF_2.24i_M | BX1: PHOF_2.24i_P | BY1: PHOF_2.24ii_P | BZ1: PHOF_2.24iii_P | CA1: PHOF_3.01_P | CB1: PHOF_3.02i_P | CC1: PHOF_3.02ii_F | CD1: PHOF_3.02ii_M | CE1: PHOF_3.02ii_P | CF1: PHOF_3.03i_P_1 yr | CG1: PHOF_3.03i_P_2 yrs | CH1: PHOF_3.03iii_P_1 yr | CI1: PHOF_3.03iii_P_2 yrs | CJ1: PHOF_3.03iv_P | CK1: PHOF_3.03ix_P | CL1: PHOF_3.03v_P | CM1: PHOF_3.03vi_P_5 yrs | CN1: PHOF_3.03vi_P_2 yrs | CO1: PHOF_3.03vii_P | CP1: PHOF_3.03viii_P | CQ1: PHOF_3.03x_P | CR1: PHOF_3.03xii_F | CS1: PHOF_3.03xiii_P | CT1: PHOF_3.03xiv_P | CU1: PHOF_3.03xv_P | CV1: PHOF_3.04_P | CW1: PHOF_3.05i_P | CX1: PHOF_3.05ii_P | CY1: PHOF_3.06_N | CZ1: PHOF_4.01_P | DA1: PHOF_4.02_P | DB1: PHOF_4.03_F | DC1: PHOF_4.03_M | DD1: PHOF_4.03_P | DE1: PHOF_4.04i_F | DF1: PHOF_4.04i_M | DG1: PHOF_4.04i_P | DH1: PHOF_4.04ii_F | DI1: PHOF_4.04ii_M | DJ1: PHOF_4.04ii_P | DK1: PHOF_4.05i_F | DL1: PHOF_4.05i_M | DM1: PHOF_4.05i_P | DN1: PHOF_4.05ii_F | DO1: PHOF_4.05ii_M | DP1: PHOF_4.05ii_P | DQ1: PHOF_4.06i_F | DR1: PHOF_4.06i_M | DS1: PHOF_4.06i_P | DT1: PHOF_4.06ii_F | DU1: PHOF_4.06ii_M | DV1: PHOF_4.06ii_P | DW1: PHOF_4.07i_F | DX1: PHOF_4.07i_M | DY1: PHOF_4.07i_P | DZ1: PHOF_4.07ii_F | EA1: PHOF_4.07ii_M | EB1: PHOF_4.07ii_P | EC1: PHOF_4.08_F | ED1: PHOF_4.08_M | EE1: PHOF_4.08_P | EF1: PHOF_4.1_F | EG1: PHOF_4.1_M | EH1: PHOF_4.1_P | EI1: PHOF_4.11_F | EJ1: PHOF_4.11_M | EK1: PHOF_4.11_P | EL1: PHOF_4.12i_P | EM1: PHOF_4.12ii_P | EN1: PHOF_4.12iii_P | EO1: PHOF_4.12iv_P | EP1: PHOF_4.14i_P | EQ1: PHOF_4.14ii_P | ER1: PHOF_4.14iii_P | ES1: PHOF_4.15i_P | ET1: PHOF_4.15ii_P | EU1: PHOF_4.15iii_P | EV1: PHOF_4.15iv_P | EW1: ASCOF1A | EX1: ASCOF1B | EY1: ASCOF1C(1) | EZ1: ASCOF1C(2) | FA1: ASCOF1D | FB1: ASCOF1E | FC1: ASCOF1F | FD1: ASCOF1G | FE1: ASCOF1H | FF1: ASCOF2A(1) | FG1: ASCOF2A(2) | FH1: ASCOF2B(1) | FI1: ASCOF2B(2) | FJ1: ASCOF2C(1) | FK1: ASCOF2C(2) | FL1: ASCOF3A | FM1: ASCOF3B | FN1: ASCOF3C | FO1: ASCOF3D | FP1: ASCOF4A | FQ1: ASCOF4B | FR1: NI 163 | FS1: NI 164 | FT1: NI 165 | FU1: PI119 | FV1: PI120 | FW1: NI 130a | FX1: NI 132a | FY1: NI 135a | FZ1: NI 130b | GA1: NI 132b | GB1: NI 135b | GC1: NI 130c | GD1: NI 132c | GE1: NI 135c | GF1: NI 114 | GG1: NI 86 | GH1: NI 87 | GI1: PI121 | GJ1: PI122 | GK1: NI 59 | GL1: NI 60 | GM1: NI 61 | GN1: NI 62 | GO1: NI 63 | GP1: NI 65 | GQ1: NI 66 | GR1: NI 67 | GS1: NI 147 | GT1: NI 148 | GU1: PI031 | GV1: PI123 | GW1: PI124 | GX1: NI 111 | GY1: NI 15 | GZ1: NI 16 | HA1: NI 180 | HB1: NI 181 | HC1: NI 158 | HD1: NI 157a | HE1: NI 157b | HF1: NI 157c | HG1: NI 72a | HH1: NI 92a | HI1: NI 117 | HJ1: NI 151R | HK1: NI 171 | HL1: NI 49a | HM1: PI052 | HN1: PI053 | HO1: NI 168 | HP1: NI 169 | HQ1: KBI 23 | HR1: KBI 24 | HS1: NI 156 | HT1: PI059 | HU1: PI060 | HV1: PI061 | HW1: PI062 | HX1: NI 125 | HY1: NI 130d | HZ1: NI 132d | IA1: NI 135d | IB1: NI 154 | IC1: NI 155 | ID1: NI 176 | IE1: NI 178a | IF1: KBI 06 | IG1: NI 192 | IH1: BV 91a | II1: BV 91b | IJ1: KBI 20 | IK1: KBI 21 | IL1: KBI 22 | IM1: NI 72b | IN1: NI 75 | IO1: NI 89a | IP1: NI 92b | IQ1: NI 93 | IR1: NI 94 | IS1: PI125 | IT1: PI126 | IU1: BSPK 50 | IV1: BSPK 51 | IW1: NI 103a | IX1: NI 103b | IY1: NI 104 | IZ1: NI 105 | JA1: BSPK 54 | JB1: NI 8 | JC1: KPI 1 | JD1: KPI 6 | JE1: NI 195a | JF1: NI 195b | JG1: NI 195c | JH1: NI 195d | JI1: NI 196 | JJ1: BV 215a | JK1: BV 215b | JL1: KBI 025 | JM1: NI 191a | JN1: BV 84a | JO1: NI 191b | JP1: NI 193 | JQ1: IMD | JR1: EPC1 | JS1: EPC2 | JT1: KS2
A2: code | E2: SOURCE | F2: PHOF | G2: PHOF | H2: PHOF | I2: PHOF | J2: PHOF | K2: PHOF | L2: PHOF | M2: PHOF | N2: PHOF | O2: PHOF | P2: PHOF | Q2: PHOF | R2: PHOF | S2: PHOF | T2: PHOF | U2: PHOF | V2: PHOF | W2: PHOF | X2: PHOF | Y2: PHOF | Z2: PHOF | AA2: PHOF | AB2: PHOF | AC2: PHOF | AD2: PHOF | AE2: PHOF | AF2: PHOF | AG2: PHOF | AH2: PHOF | AI2: PHOF | AJ2: PHOF | AK2: PHOF | AL2: PHOF | AM2: PHOF | AN2: PHOF | AO2: PHOF | AP2: PHOF | AQ2: PHOF | AR2: PHOF | AS2: PHOF | AT2: PHOF | AU2: PHOF | AV2: PHOF | AW2: PHOF | AX2: PHOF | AY2: PHOF | AZ2: PHOF | BA2: PHOF | BB2: PHOF | BC2: PHOF | BD2: PHOF | BE2: PHOF | BF2: PHOF | BG2: PHOF | BH2: PHOF | BI2: PHOF | BJ2: PHOF | BK2: PHOF | BL2: PHOF | BM2: PHOF | BN2: PHOF | BO2: PHOF | BP2: PHOF | BQ2: PHOF | BR2: PHOF | BS2: PHOF | BT2: PHOF | BU2: PHOF | BV2: PHOF | BW2: PHOF | BX2: PHOF | BY2: PHOF | BZ2: PHOF | CA2: PHOF | CB2: PHOF | CC2: PHOF | CD2: PHOF | CE2: PHOF | CF2: PHOF | CG2: PHOF | CH2: PHOF | CI2: PHOF | CJ2: PHOF | CK2: PHOF | CL2: PHOF | CM2: PHOF | CN2: PHOF | CO2: PHOF | CP2: PHOF | CQ2: PHOF | CR2: PHOF | CS2: PHOF | CT2: PHOF | CU2: PHOF | CV2: PHOF | CW2: PHOF | CX2: PHOF | CY2: PHOF | CZ2: PHOF | DA2: PHOF | DB2: PHOF | DC2: PHOF | DD2: PHOF | DE2: PHOF | DF2: PHOF | DG2: PHOF | DH2: PHOF | DI2: PHOF | DJ2: PHOF | DK2: PHOF | DL2: PHOF | DM2: PHOF | DN2: PHOF | DO2: PHOF | DP2: PHOF | DQ2: PHOF | DR2: PHOF | DS2: PHOF | DT2: PHOF | DU2: PHOF | DV2: PHOF | DW2: PHOF | DX2: PHOF | DY2: PHOF | DZ2: PHOF | EA2: PHOF | EB2: PHOF | EC2: PHOF | ED2: PHOF | EE2: PHOF | EF2: PHOF | EG2: PHOF | EH2: PHOF | EI2: PHOF | EJ2: PHOF | EK2: PHOF | EL2: PHOF | EM2: PHOF | EN2: PHOF | EO2: PHOF | EP2: PHOF | EQ2: PHOF | ER2: PHOF | ES2: PHOF | ET2: PHOF | EU2: PHOF | EV2: PHOF | EW2: ASCOF | EX2: ASCOF | EY2: ASCOF | EZ2: ASCOF | FA2: ASCOF | FB2: ASCOF | FC2: ASCOF | FD2: ASCOF | FE2: ASCOF | FF2: ASCOF | FG2: ASCOF | FH2: ASCOF | FI2: ASCOF | FJ2: ASCOF | FK2: ASCOF | FL2: ASCOF | FM2: ASCOF | FN2: ASCOF | FO2: ASCOF | FP2: ASCOF | FQ2: ASCOF | FR2: BIS Labour Force Survey | FS2: BIS Labour Force Survey | FT2: BIS Labour Force Survey | FU2: DfE Attainment by Young People in England | FV2: DfE Attainment by Young People in England | FW2: HSCIC Measures from the Adult Social Care Outcomes Framework | FX2: NHSIC Social Care and Mental Health Indicators from the National Indicator Set | FY2: NHSIC Social Care and Mental Health Indicators from the National Indicator Set | FZ2: HSCIC Measures from the Adult Social Care Outcomes Framework | GA2: NHSIC Social Care and Mental Health Indicators from the National Indicator Set | GB2: NHSIC Social Care and Mental Health Indicators from the National Indicator Set | GC2: HSCIC Measures from the Adult Social Care Outcomes Framework | GD2: NHSIC Social Care and Mental Health Indicators from the National Indicator Set | GE2: NHSIC Social Care and Mental Health Indicators from the National Indicator Set | GF2: DfE Permanent and Fixed Period Exclusions from Schools in England | GG2: DfE Behaviour in Schools | GH2: DfE Pupil Absence in Schools in England | GI2: Ofsted Maintained School Inspections and Outcomes | GJ2: DfE Pupil Absence in Schools in England, including Pupil Characteristics | GK2: DfE Children in Need Census | GL2: DfE Children in Need Census | GM2: DfE Children Looked After by Local Authorities in England | GN2: DfE Children Looked After by Local Authorities in England | GO2: DfE Children Looked After by Local Authorities in England | GP2: DfE Children in Need Census | GQ2: DfE Children Looked After by Local Authorities in England | GR2: DfE Children in Need Census | GS2: DfE Children Looked After by Local Authorities in England | GT2: DfE Children Looked After by Local Authorities in England | GU2: DfE Outcomes for Children Looked After by Local Authorities in England | GV2: DfE Characteristics of Children in Need in England | GW2: DfE Characteristics of Children in Need in England | GX2: MoJ Youth Justice Statistics 2011-12 | GY2: CLG National Indicator Set | GZ2: CLG National Indicator Set | HA2: CLG National Indicator Set | HB2: DWP Speed of Processing Benefits | HC2: CLG Local Authority Housing Statistics | HD2: CLG Planning Applications in England | HE2: CLG Planning Applications in England | HF2: CLG Planning Applications in England | HG2: DfE Early Years Foundation Stage Profile Results in England | HH2: DfE Early Years Foundation Stage Profile Results in England | HI2: DfE Participation in education, training and employment by 16 to 18 year olds in England | HJ2: NOMIS | HK2: ONS Business Demography | HL2: CLG Fire Statistics Monitor | HM2: CLG Fire Statistics Monitor | HN2: CLG Fire Statistics Monitor | HO2: DfT Road Conditions in England | HP2: DfT Road Conditions in England | HQ2: NHT Network Public Satisfaction Survey | HR2: NHT Network Public Satisfaction Survey | HS2: CLG Statutory Homelessness in England | HT2: CLG Statutory Homelessness in England | HU2: CLG Homelessness Prevention | HV2: CLG Local Authority Housing Statistics | HW2: CLG Local Authority Housing Statistics | HX2: HSCIC Measures from the Adult Social Care Outcomes Framework | HY2: HSCIC Measures from the Adult Social Care Outcomes Framework | HZ2: NHSIC Social Care and Mental Health Indicators from the National Indicator Set | IA2: NHSIC Social Care and Mental Health Indicators from the National Indicator Set | IB2: CLG Net Supply of Housing | IC2: CLG Affordable Housing Supply | ID2: CLG National Indicator Set | IE2: DfT Bus Statistics | IF2: NHT Network Public Satisfaction Survey | IG2: DEFRA Local Authority Collected Waste for England | IH2: DEFRA WasteDataFlow | II2: DEFRA WasteDataFlow | IJ2: NHT Network Public Satisfaction Survey | IK2: NHT Network Public Satisfaction Survey | IL2: NHT Network Public Satisfaction Survey | IM2: DfE Early Years Foundation Stage Profile Results in England | IN2: DfE GCSE and Equivalent Results in England | IO2: CLG National Indicator Set | IP2: DfE Early Years Foundation Stage Profile Results in England | IQ2: DfE National Curriculum Assessments at Key Stage 2 in England | IR2: DfE National Curriculum Assessments at Key Stage 2 in England | IS2: DfE National Curriculum Assessments at Key Stage 2 in England | IT2: DfE GSCE and Equivalent Attainment by Pupil Characteristics in England | IU2: DfE Secondary School Applications and Offers in England | IV2: DfE Secondary School Applications and Offers in England | IW2: DfE Special Educational Needs in England | IX2: DfE Special Educational Needs in England | IY2: CLG National Indicator Set | IZ2: CLG National Indicator Set | JA2: DfE Special Educational Needs in England | JB2: Sport England Active People Survey | JC2: Sport England Active People Survey | JD2: Sport England Active People Survey | JE2: CLG National Indicator Set | JF2: CLG National Indicator Set | JG2: CLG National Indicator Set | JH2: CLG National Indicator Set | JI2: CLG National Indicator Set | JJ2: Audit Commission BVPIs | JK2: Audit Commission BVPIs | JL2: NHT Network Public Satisfaction Survey | JM2: DEFRA Local Authority Collected Waste for England | JN2: DEFRA WasteDataFlow | JO2: DEFRA Local Authority Collected Waste for England | JP2: DEFRA Local Authority Collected Waste for England | JQ2: DCLG | JR2: DCLG | JS2: DCLG | JT2: DfE
A3: code | E3: Period | F3: 2009 - 11 | G3: 2009 - 11 | H3: 2010 - 12 | I3: 2010 - 12 | J3: 2009 - 11 | K3: 2009 - 11 | L3: 2010 - 12 | M3: 2010 - 12 | N3: 2011 | O3: 2011 | P3: 2012/13 | Q3: 2012/13 | R3: 2012/13 | S3: 2012/13 | T3: 2011/12 | U3: 2012 | V3: 2012 | W3: 2011/12 | X3: 2012/13 | Y3: 2012 | Z3: 2011/12 | AA3: 2012/13 | AB3: 2009 - 11 | AC3: 2009 - 11 | AD3: 2010 - 12 | AE3: 2011/12 | AF3: 2010/11 - 12/13 | AG3: 2012/13 | AH3: 2012/13 | AI3: 2011 | AJ3: 2011 | AK3: 2011/12 | AL3: 2006/07 | AM3: 2006/07 | AN3: 2011/12 | AO3: 2011/12 | AP3: Mar 2012 - Feb 2013 | AQ3: 2011 | AR3: 2012/13 | AS3: 2012/13 | AT3: 2011 | AU3: 2012/13 | AV3: 2012/13 | AW3: 2012/13 | AX3: 2011 | AY3: 2011 | AZ3: 2012/13 | BA3: 2012/13 | BB3: 2012/13 | BC3: 2012/13 | BD3: 2011/12 | BE3: 2012 | BF3: 2012 | BG3: 2012 | BH3: 2012 | BI3: 2012 | BJ3: 2012 | BK3: 2012 | BL3: 2012/13 | BM3: 2013 | BN3: 2013 | BO3: 2011/12 | BP3: 2012/13 | BQ3: 2012/13 | BR3: 2012/13 | BS3: 2012/13 | BT3: 2012/13 | BU3: 2012/13 | BV3: 2011/12 | BW3: 2011/12 | BX3: 2011/12 | BY3: 2011/12 | BZ3: 2011/12 | CA3: 2011 | CB3: 2011 | CC3: 2012 | CD3: 2012 | CE3: 2012 | CF3: 2012/13 | CG3: 2012/13 | CH3: 2012/13 | CI3: 2012/13 | CJ3: 2012/13 | CK3: 2012/13 | CL3: 2012/13 | CM3: 2012/13 | CN3: 2012/13 | CO3: 2012/13 | CP3: 2012/13 | CQ3: 2012/13 | CR3: 2012/13 | CS3: 2012/13 | CT3: 2012/13 | CU3: 2012/13 | CV3: 2010 - 12 | CW3: 2012 | CX3: 2010 - 12 | CY3: 2011/12 | CZ3: 2009 - 11 | DA3: 2011/12 | DB3: 2010 - 12 | DC3: 2010 - 12 | DD3: 2010 - 12 | DE3: 2010 - 12 | DF3: 2010 - 12 | DG3: 2010 - 12 | DH3: 2010 - 12 | DI3: 2010 - 12 | DJ3: 2010 - 12 | DK3: 2010 - 12 | DL3: 2010 - 12 | DM3: 2010 - 12 | DN3: 2010 - 12 | DO3: 2010 - 12 | DP3: 2010 - 12 | DQ3: 2010 - 12 | DR3: 2010 - 12 | DS3: 2010 - 12 | DT3: 2010 - 12 | DU3: 2010 - 12 | DV3: 2010 - 12 | DW3: 2010 - 12 | DX3: 2010 - 12 | DY3: 2010 - 12 | DZ3: 2010 - 12 | EA3: 2010 - 12 | EB3: 2010 - 12 | EC3: 2010 - 12 | ED3: 2010 - 12 | EE3: 2010 - 12 | EF3: 2010 - 12 | EG3: 2010 - 12 | EH3: 2010 - 12 | EI3: 2010/11 | EJ3: 2010/11 | EK3: 2010/11 | EL3: 2011/12 | EM3: 2011/12 | EN3: 2011/12 | EO3: 2011/12 | EP3: 2011/12 | EQ3: 2011/12 | ER3: 2011/12 | ES3: Aug 2011 - Jul 2012 | ET3: Aug 2011 - Jul 2012 | EU3: Aug 2009 - Jul 2012 | EV3: Aug 2009 - Jul 2012 | EW3: 2012-13 | EX3: 2012-13 | EY3: 2012-13 | EZ3: 2012-13 | FA3: 2012-13 | FB3: 2012-13 | FC3: 2012-13 | FD3: 2012-13 | FE3: 2012-13 | FF3: 2012-13 | FG3: 2012-13 | FH3: 2012-13 | FI3: 2012-13 | FJ3: 2012-13 | FK3: 2012-13 | FL3: 2012-13 | FM3: 2012-13 | FN3: 2012-13 | FO3: 2012-13 | FP3: 2012-13 | FQ3: 2012-13 | FR3: 2011 | FS3: 2011 | FT3: 2011 | FU3: 2012 | FV3: 2012 | FW3: 2012-13 | FX3: 2009-10 | FY3: 2010-11 | FZ3: 2012-13 | GA3: 2009-10 | GB3: 2010-11 | GC3: 2012-13 | GD3: 2009-10 | GE3: 2010-11 | GF3: 2011-12 | GG3: December 2010 | GH3: Autumn 2012 | GI3: 2012-13 | GJ3: 2011-12 | GK3: 2010-11 | GL3: 2010-11 | GM3: March 2011 | GN3: March 2011 | GO3: March 2011 | GP3: 2010-11 | GQ3: March 2010 | GR3: 2010-11 | GS3: March 2012 | GT3: March 2012 | GU3: March 2011 | GV3: March 2012 | GW3: March 2012 | GX3: 2011-12 | GY3: 2009-10 | GZ3: 2009-10 | HA3: 2009-10 | HB3: 2012-13 | HC3: 2011-12 | HD3: March 2013 | HE3: March 2013 | HF3: March 2013 | HG3: 2011-12 | HH3: 2011-12 | HI3: 2012 | HJ3: 2013 | HK3: 2011 | HL3: 2012-13 | HM3: 2012-13 | HN3: 2012-13 | HO3: 2011-12 | HP3: 2011-12 | HQ3: 2012 | HR3: 2012 | HS3: March 2013 | HT3: March 2013 | HU3: 2011-12 | HV3: 2011-12 | HW3: 2011-12 | HX3: 2012-13 | HY3: 2012-13 | HZ3: 2009-10 | IA3: 2010-11 | IB3: 2011-12 | IC3: 2011-12 | ID3: 2009 | IE3: 2011-12 | IF3: 2012 | IG3: 2011-12 | IH3: January to March 2012 | II3: January to March 2012 | IJ3: 2012 | IK3: 2012 | IL3: 2012 | IM3: 2011-12 | IN3: 2011-12 | IO3: 2008-09 | IP3: 2011-12 | IQ3: 2012 | IR3: 2012 | IS3: 2012 | IT3: 2011-12 | IU3: March 2013 | IV3: March 2013 | IW3: 2011-12 | IX3: 2011-12 | IY3: 2008-09 | IZ3: 2008-09 | JA3: January 2013 | JB3: 2011-12 | JC3: 2009-10 | JD3: 2009-10 | JE3: 2009-10 | JF3: 2009-10 | JG3: 2009-10 | JH3: 2009-10 | JI3: 2008-09 | JJ3: 2007-08 | JK3: 2007-08 | JL3: 2012 | JM3: 2011-12 | JN3: July to September 2011 | JO3: 2011-12 | JP3: 2011-12 | JQ3: 2010 | JR3: 2013 | JS3: 2013 | JT3: 2013
A4: code | E4: Programme | F4: Public Health | G4: Public Health | H4: Public Health | I4: Public Health | J4: Public Health | K4: Public Health | L4: Public Health | M4: Public Health | N4: Public Health | O4: Public Health | P4: Public Health | Q4: Public Health | R4: Public Health | S4: Public Health | T4: Public Health | U4: Public Health | V4: Public Health | W4: Public Health | X4: Public Health | Y4: Public Health | Z4: Public Health | AA4: Public Health | AB4: Public Health | AC4: Public Health | AD4: Public Health | AE4: Public Health | AF4: Public Health | AG4: Public Health | AH4: Public Health | AI4: Public Health | AJ4: Public Health | AK4: Public Health | AL4: Public Health | AM4: Public Health | AN4: Public Health | AO4: Public Health | AP4: Public Health | AQ4: Public Health | AR4: Public Health | AS4: Public Health | AT4: Public Health | AU4: Public Health | AV4: Public Health | AW4: Public Health | AX4: Public Health | AY4: Public Health | AZ4: Public Health | BA4: Public Health | BB4: Public Health | BC4: Public Health | BD4: Public Health | BE4: Public Health | BF4: Public Health | BG4: Public Health | BH4: Public Health | BI4: Public Health | BJ4: Public Health | BK4: Public Health | BL4: Public Health | BM4: Public Health | BN4: Public Health | BO4: Public Health | BP4: Public Health | BQ4: Public Health | BR4: Public Health | BS4: Public Health | BT4: Public Health | BU4: Public Health | BV4: Public Health | BW4: Public Health | BX4: Public Health | BY4: Public Health | BZ4: Public Health | CA4: Public Health | CB4: Public Health | CC4: Public Health | CD4: Public Health | CE4: Public Health | CF4: Public Health | CG4: Public Health | CH4: Public Health | CI4: Public Health | CJ4: Public Health | CK4: Public Health | CL4: Public Health | CM4: Public Health | CN4: Public Health | CO4: Public Health | CP4: Public Health | CQ4: Public Health | CR4: Public Health | CS4: Public Health | CT4: Public Health | CU4: Public Health | CV4: Public Health | CW4: Public Health | CX4: Public Health | CY4: Public Health | CZ4: Public Health | DA4: Public Health | DB4: Public Health | DC4: Public Health | DD4: Public Health | DE4: Public Health | DF4: Public Health | DG4: Public Health | DH4: Public Health | DI4: Public Health | DJ4: Public Health | DK4: Public Health | DL4: Public Health | DM4: Public Health | DN4: Public Health | DO4: Public Health | DP4: Public Health | DQ4: Public Health | DR4: Public Health | DS4: Public Health | DT4: Public Health | DU4: Public Health | DV4: Public Health | DW4: Public Health | DX4: Public Health | DY4: Public Health | DZ4: Public Health | EA4: Public Health | EB4: Public Health | EC4: Public Health | ED4: Public Health | EE4: Public Health | EF4: Public Health | EG4: Public Health | EH4: Public Health | EI4: Public Health | EJ4: Public Health | EK4: Public Health | EL4: Public Health | EM4: Public Health | EN4: Public Health | EO4: Public Health | EP4: Public Health | EQ4: Public Health | ER4: Public Health | ES4: Public Health | ET4: Public Health | EU4: Public Health | EV4: Public Health | EW4: Public Health | EX4: Public Health | EY4: Public Health | EZ4: Public Health | FA4: Public Health | FB4: Public Health | FC4: Public Health | FD4: Public Health | FE4: Public Health | FF4: Public Health | FG4: Public Health | FH4: Public Health | FI4: Public Health | FJ4: Public Health | FK4: Public Health | FL4: Public Health | FM4: Public Health | FN4: Public Health | FO4: Public Health | FP4: Public Health | FQ4: Public Health | FR4: Adult Education | FS4: Adult Education | FT4: Adult Education | FU4: Adult Education | FV4: Adult Education | FW4: Adults<65 with LD | FX4: Adults<65 with LD | FY4: Adults<65 with LD | FZ4: Adults<65 with MHNs | GA4: Adults<65 with MHNs | GB4: Adults<65 with MHNs | GC4: Adults<65 with PD | GD4: Adults<65 with PD | GE4: Adults<65 with PD | GF4: BS, Welfare & Inclusion | GG4: BS, Welfare & Inclusion | GH4: BS, Welfare & Inclusion | GI4: BS, Welfare & Inclusion | GJ4: BS, Welfare & Inclusion | GK4: Children's Social Care | GL4: Children's Social Care | GM4: Children's Social Care | GN4: Children's Social Care | GO4: Children's Social Care | GP4: Children's Social Care | GQ4: Children's Social Care | GR4: Children's Social Care | GS4: Children's Social Care | GT4: Children's Social Care | GU4: Children's Social Care | GV4: Children's Social Care | GW4: Children's Social Care | GX4: Community Safety | GY4: Community Safety | GZ4: Community Safety | HA4: Council Tax and Housing Benefits | HB4: Council Tax and Housing Benefits | HC4: Decent Homes | HD4: Development Control | HE4: Development Control | HF4: Development Control | HG4: Early Years | HH4: Early Years | HI4: Economic Development | HJ4: Economic Development | HK4: Economic Development | HL4: Fire | HM4: Fire | HN4: Fire | HO4: Highways Maintenance | HP4: Highways Maintenance | HQ4: Highways Maintenance | HR4: Highways Maintenance | HS4: Homelessness | HT4: Homelessness | HU4: Homelessness | HV4: Housing Rents | HW4: Housing Rents | HX4: Older Peoples Social Care | HY4: Older Peoples Social Care | HZ4: Older Peoples Social Care | IA4: Older Peoples Social Care | IB4: Planning Policy | IC4: Planning Policy | ID4: Public Transport | IE4: Public Transport | IF4: Public Transport | IG4: Recycling | IH4: Recycling | II4: Recycling | IJ4: Road Safety | IK4: Road Safety | IL4: Road Safety | IM4: School Improvement | IN4: School Improvement | IO4: School Improvement | IP4: School Improvement | IQ4: School Improvement | IR4: School Improvement | IS4: School Improvement | IT4: School Improvement | IU4: School Planning & Admissions | IV4: School Planning & Admissions | IW4: Special Educational Needs | IX4: Special Educational Needs | IY4: Special Educational Needs | IZ4: Special Educational Needs | JA4: Special Educational Needs | JB4: Sport | JC4: Sport | JD4: Sport | JE4: Street Cleansing | JF4: Street Cleansing | JG4: Street Cleansing | JH4: Street Cleansing | JI4: Street Cleansing | JJ4: Street Lighting | JK4: Street Lighting | JL4: Street Lighting | JM4: Waste Collection | JN4: Waste Collection | JO4: Waste Disposal | JP4: Waste Disposal | JQ4: Public Health | JR4: Housing | JS4: Housing | JT4: Education
A5: code | B5: DCLG Code | C5: Local Authority Name | D5: Local Authority ASCOF Name | E5: LA Type | F5: Healthy life expectancy at birth (All ages, Female) | G5: Healthy life expectancy at birth (All ages, Male) | H5: Life Expectancy at birth (All ages, Female) | I5: Life Expectancy at birth (All ages, Male) | J5: Slope index of inequality in life expectancy at birth within English local authorities, based on local deprivation deciles within each area (provisional) (All ages, Female) | K5: Slope index of inequality in life expectancy at birth within English local authorities, based on local deprivation deciles within each area (provisional) (All ages, Male) | L5: Gap in life expectancy at birth between each local authority and England as a whole (All ages, Female) | M5: Gap in life expectancy at birth between each local authority and England as a whole (All ages, Male) | N5: Children in poverty (all dependent children under 20) (0-19 yrs, Persons) | O5: Children in poverty (under 16s) (<16 yrs, Persons) | P5: School Readiness: The percentage of children achieving a good level of development at the end of reception (5 yrs, Persons) | Q5: School Readiness: The percentage of children with free school meal status achieving a good level of development at the end of reception (5 yrs, Persons) | R5: School Readiness: The percentage of Year 1 pupils achieving the expected level in the phonics screening check (6, Persons) | S5: School Readiness: The percentage of Year 1 pupils with free school meal status achieving the expected level in the phonics screening check (6, Persons) | T5: Pupil absence (5-15 yrs, Persons) | U5: First time entrants to the youth justice system (10-17 yrs, Persons) | V5: 16-18 year olds not in education employment or training (16-18 yrs, Persons) | W5: Adults with a learning disability who live in stable and appropriate accommodation (18-64 yrs, Persons) | X5: % of adults in contact with secondary mental health services who live in stable and appropriate accommodation (18-69 yrs, Persons) | Y5: Gap in the employment rate between those with a long-term health condition and the overall employment rate (16-64 yrs, Persons) | Z5: Gap in the employment rate between those with a learning disability and the overall employment rate (18-64 yrs, Persons) | AA5: Gap in the employment rate for those in contact with secondary mental health services and the overall employment rate (18-69 yrs, Persons) | AB5: Sickness absence - The percentage of employees who had at least one day off in the previous week (16+ yrs, Persons) | AC5: Sickness absence - The percent of working days lost due to sickness absence (16+ yrs, Persons) | AD5: Killed and seriously injured casualties on England's roads (All ages, Persons) | AE5: Domestic Abuse (18+ yrs, Persons) | AF5: Violent crime (including sexual violence) - hospital admissions for violence (All ages, Persons) | AG5: Violent crime (including sexual violence) - violence offences per 1,000 population (All ages, Persons) | AH5: Rate of sexual offences per 1,000 population (All ages, Persons) | AI5: Re-offending levels - percentage of offenders who re-offend (All ages, Persons) | AJ5: Re-offending levels - average number of re-offences per offender (All ages, Persons) | AK5: The percentage of the population affected by noise - Number of complaints about noise (All ages, Persons) | AL5: The percentage of the population exposed to road, rail and air transport noise of 65dB(A) or more, during the daytime (All ages, Persons) | AM5: The percentage of the population exposed to road, rail and air transport noise of 55 dB(A) or more during the night-time (All ages, Persons) | AN5: Statutory homelessness - homelessness acceptances (Not applicable, Not applicable) | AO5: Statutory homelessness - households in temporary accommodation (All ages, Persons) | AP5: Utilisation of outdoor space for exercise/health reasons (16+ yrs, Persons) | AQ5: Fuel Poverty (All ages, Persons) | AR5: Social Isolation: % of adult social care users who have as much social contact as they would like (18+ yrs, Persons) | AS5: Loneliness and Isolation in adult carers (All ages, Persons) | AT5: Low birth weight of term babies (>=37 weeks gestational age at birth, Persons) | AU5: Breastfeeding - Breastfeeding initiation (All ages, Female) | AV5: Breastfeeding - Breastfeeding prevalence at 6-8 weeks after birth (6-8 weeks, Persons) | AW5: Smoking status at time of delivery (All ages, Female) | AX5: Under 18 conceptions: conceptions in those aged under 16 (<16 yrs, Female) | AY5: Under 18 conceptions (<18 yrs, Female) | AZ5: Excess weight in children (4-5 yrs, Persons) | BA5: Excess weight in children (10-11 yrs, Persons) | BB5: Hospital admissions caused by unintentional and deliberate injuries in children (<15 yrs, Persons) | BC5: Hospital admissions caused by unintentional and deliberate injuries in young people (15-24 yrs, Persons) | BD5: Emotional well-being of looked after children (42461, Persons) | BE5: Excess Weight in Adults (16+ yrs, Persons) | BF5: Percentage of physically active and inactive adults - active adults (16+ yrs, Persons) | BG5: Percentage of active and inactive adults - inactive adults (16+ yrs, Persons) | BH5: Smoking prevalence - routine & manual (18+ yrs, Persons) | BI5: Smoking Prevalence (18+ yrs, Persons) | BJ5: Successful completion of drug treatment - opiate users (18-75 yrs, Persons) | BK5: Successful completion of drug treatment - non-opiate users (18-75 yrs, Persons) | BL5: Recorded diabetes (17+ yrs, Persons) | BM5: Cancer screening coverage - breast cancer (53-70 yrs, Female) | BN5: Cancer screening coverage - cervical cancer (25-64 yrs, Female) | BO5: Access to non-cancer screening programmes - diabetic retinopathy (12+ yrs, Persons) | BP5: NHS Health Check Programme by those eligible - health check offered (40-74 yrs, Persons) | BQ5: NHS Health Check programme by those eligible - health check take up (40-74 yrs, Persons) | BR5: Self-reported well-being - people with a low satisfaction score (16+ yrs, Persons) | BS5: Self-reported well-being - people with a low worthwhile score (16+ yrs, Persons) | BT5: Self-reported well-being - people with a low happiness score (16+ yrs, Persons) | BU5: Self-reported well-being - people with a high anxiety score (16+ yrs, Persons) | BV5: Injuries due to falls in people aged 65 and over (males/females) (65+ yrs, Female) | BW5: Injuries due to falls in people aged 65 and over (males/females) (65+ yrs, Male) | BX5: Injuries due to falls in people aged 65 and over (Persons) (65+ yrs, Persons) | BY5: Injuries due to falls in people aged 65 and over - aged 65-79 (65-79 yrs, Persons) | BZ5: Injuries due to falls in people aged 65 and over - aged 80+ (80+ yrs, Persons) | CA5: Fraction of mortality attributable to particulate air pollution (30+ yrs, Persons) | CB5: Chlamydia diagnoses (15-24 year olds) - Old NCSP data (15-24 yrs, Persons) | CC5: Chlamydia diagnoses (15-24 year olds) - CTAD (15-24 yrs, Female) | CD5: Chlamydia diagnoses (15-24 year olds) - CTAD (15-24 yrs, Male) | CE5: Chlamydia diagnoses (15-24 year olds) - CTAD (15-24 yrs, Persons) | CF5: Population vaccination coverage - Hepatitis B (1 yr, Persons) | CG5: Population vaccination coverage - Hepatitis B (2 yrs, Persons) | CH5: Population vaccination coverage - Dtap / IPV / Hib (1 yr, Persons) | CI5: Population vaccination coverage - Dtap / IPV / Hib (2 yrs, Persons) | CJ5: Population vaccination coverage - MenC (1 yr, Persons) | CK5: Population vaccination coverage - MMR for one dose (5 yrs, Persons) | CL5: Population vaccination coverage - PCV (1 yr, Persons) | CM5: Population vaccination coverage - Hib / Men C booster (5 yrs, Persons) | CN5: Population vaccination coverage - Hib / MenC booster (2 yrs, Persons) | CO5: Population vaccination coverage - PCV booster (2 yrs, Persons) | CP5: Population vaccination coverage - MMR for one dose (2 yrs, Persons) | CQ5: Population vaccination coverage - MMR for two doses (5 yrs, Persons) | CR5: Population vaccination coverage - HPV (12-13 yrs, Female) | CS5: Population vaccination coverage - PPV (65+ yrs, Persons) | CT5: Population vaccination coverage - Flu (65+ yrs, Persons) | CU5: Population vaccination coverage - Flu (at risk individuals) (6 months-64 yrs, Persons) | CV5: People presenting with HIV at a late stage of infection (15+ yrs, Persons) | CW5: Treatment completion for TB (All ages, Persons) | CX5: Incidence of TB (All ages, Persons) | CY5: Public sector organisations with a board approved sustainable development management plan | CZ5: Infant mortality (< 1 yr, Persons) | DA5: Tooth decay in children aged 5 (5 yrs, Persons) | DB5: Mortality rate from causes considered preventable (All ages, Female) | DC5: Mortality rate from causes considered preventable (All ages, Male) | DD5: Mortality rate from causes considered preventable (All ages, Persons) | DE5: Under 75 mortality rate from all cardiovascular diseases (<75 yrs, Female) | DF5: Under 75 mortality rate from all cardiovascular diseases (<75 yrs, Male) | DG5: Under 75 mortality rate from all cardiovascular diseases (<75 yrs, Persons) | DH5: Under 75 mortality rate from cardiovascular diseases considered preventable (<75 yrs, Female) | DI5: Under 75 mortality rate from cardiovascular diseases considered preventable (<75 yrs, Male) | DJ5: Under 75 mortality rate from cardiovascular diseases considered preventable (<75 yrs, Persons) | DK5: Under 75 mortality rate from cancer (<75 yrs, Female) | DL5: Under 75 mortality rate from cancer (<75 yrs, Male) | DM5: Under 75 mortality rate from cancer (<75 yrs, Persons) | DN5: Under 75 mortality rate from cancer considered preventable (<75 yrs, Female) | DO5: Under 75 mortality rate from cancer considered preventable (<75 yrs, Male) | DP5: Under 75 mortality rate from cancer considered preventable (<75 yrs, Persons) | DQ5: Under 75 mortality rate from liver disease (<75 yrs, Female) | DR5: Under 75 mortality rate from liver disease (<75 yrs, Male) | DS5: Under 75 mortality rate from liver disease (<75 yrs, Persons) | DT5: Under 75 mortality rate from liver disease considered preventable (<75 yrs, Female) | DU5: Under 75 mortality rate from liver disease considered preventable (<75 yrs, Male) | DV5: Under 75 mortality rate from liver disease considered preventable (<75 yrs, Persons) | DW5: Under 75 mortality rate from respiratory disease (<75 yrs, Female) | DX5: Under 75 mortality rate from respiratory disease (<75 yrs, Male) | DY5: Under 75 mortality rate from respiratory disease (<75 yrs, Persons) | DZ5: Under 75 mortality rate from respiratory disease considered preventable (<75 yrs, Female) | EA5: Under 75 mortality rate from respiratory disease considered preventable (<75 yrs, Male) | EB5: Under 75 mortality rate from respiratory disease considered preventable (<75 yrs, Persons) | EC5: Mortality from communicable diseases (All ages, Female) | ED5: Mortality from communicable diseases (All ages, Male) | EE5: Mortality from communicable diseases (All ages, Persons) | EF5: Suicide rate (All ages, Female) | EG5: Suicide rate (All ages, Male) | EH5: Suicide rate (All ages, Persons) | EI5: Emergency readmissions within 30 days of discharge from hospital (All ages, Female) | EJ5: Emergency readmissions within 30 days of discharge from hospital (All ages, Male) | EK5: Emergency readmissions within 30 days of discharge from hospital (All ages, Persons) | EL5: Preventable sight loss - age related macular degeneration (AMD) (65+ yrs, Persons) | EM5: Preventable sight loss - glaucoma (40+ yrs, Persons) | EN5: Preventable sight loss - diabetic eye disease (12+ yrs, Persons) | EO5: Preventable sight loss - sight loss certifications (All ages, Persons) | EP5: Hip fractures in people aged 65 and over (65+ yrs, Persons) | EQ5: Hip fractures in people aged 65 and over (65-79 yrs, Persons) | ER5: Hip fractures in people aged 65 and over (80+ yrs, Persons) | ES5: Excess Winter Deaths Index (single year, All ages, Persons) | ET5: Excess Winter Deaths Index (single year, 85+ yrs, Persons) | EU5: Excess Winter Deaths Index (3 years, All ages, Persons) | EV5: Excess Winter Deaths Index (3 years, (85+ yrs, Persons) | EW5: Social care related quality of life | EX5: Proportion of people who use services and report having control over their daily life | EY5: Proportion of people using social care who receive self directed support, and those receiving direct payments | EZ5: Proportion of people using communitybased services and receive their selfdirected support as a direct payment | FA5: Carer reported quality of life | FB5: Proportion of adults with learning disabilities in paid employment | FC5: Proportion of adults in contact with secondary mental health services in paid employment | FD5: Proportion of adults with learning disabilities who live in their own home or with their family | FE5: Proportion of adults in contact with secondary mental health services who live independently, with or without support | FF5: Permenant admissions to residential and nursing care homes, per 100,000 population (18-64) | FG5: Permenant admissions to residential and nursing care homes, per 100,000 population (65+) | FH5: Proportion of older people (65 and over) who were still at home 91 days after discharge from hospital into reablement/rehabilitation services | FI5: Proportion of older people (65 and over) receiving reablement services following their stay in hospital | FJ5: Delayed transfers of care from hospital, and those which are attributable to adult social care of NHS care | FK5: Delayed transfers of care from hospital, and those which are attributable to adult social care | FL5: Overall satisfaction (very or extremely satisfied) of people who use services with their care and support | FM5: Overall satisfaction (very or extremely satisfied) of carers with social services | FN5: Proportion of carers who report that they have been included or consulted in discussion about the person they care for | FO5: Proportion of service users and carers who find it easy to find information about services | FP5: Proportion of people who use services who feel safe | FQ5: Proportion of people who use services who say that those services have made them feel safe and secure | FR5: Proportion of population aged 19-64 for males and 19-59 for females qualified to at least level 2 or higher | FS5: Proportion of population aged 19-64 for males and 19-59 for females qualified to at least level 3 or higher | FT5: Proportion of population aged 19-64 for males and 19-59 for females qualified to at least level 4 or higher | FU5: Young people who have attained a full level 3 qualification by age 19 | FV5: Young people who have not attained a level 2 qualification in english and maths at age 16, who go on to attain level 2 or above in both by the end of the academic year in which they turn 19 | FW5: Social care clients receiving self-directed support as a percentage of the total number of clients - adults under 65 with learning disabilities | FX5: Timeliness of social care assessment - adults under 65 with learning disabilities | FY5: Carers receiving needs assessment or review and a specific carer's service or advice and information - adults under 65 with learning disabilities | FZ5: Social care clients receiving self-directed support as a percentage of the total number of clients - adults under 65 with mental health problems | GA5: Timeliness of social care assessment - adults under 65 with mental health problems | GB5: Carers receiving needs assessment or review and a specific carer's service or advice and information - adults under 65 with mental health problems | GC5: Social care clients receiving self-directed support as a percentage of the total number of clients - adults under 65 with physical disabilities | GD5: Timeliness of social care assessment - adults under 65 with physical disabilities | GE5: Carers receiving needs assessment or review and a specific carer's service or advice and information - adults under 65 with physical disabilities | GF5: Rate of permanent exclusions from school | GG5: Secondary schools judged as having good or outstanding standards of behaviour | GH5: Percentage of secondary school pupil enrolments who have missed 22 or more sessions | GI5: Primary schools judged by Ofsted to be 'good' or 'outstanding' in behaviour | GJ5: Overall absence in primary, secondary and special schools | GK5: Percentage of initial assessments for children's social care carried out within 7 working days of referral | GL5: Percentage of core assessments for children's social care that were carried out within 35 working days of their commencement | GM5: Timeliness of placements of looked after children for adoption following an agency decision that the child should be placed for adoption | GN5: Stability of placements of looked after children: number of placements | GO5: Stability of placements of looked after children: length of placements | GP5: Percentage of children becoming the subject of a child protection plan for a second or subsequent time | GQ5: Looked after children cases which were reviewed within required timescales | GR5: Percentage of child protection cases which were reviewed within required timescales | GS5: Care leavers in suitable accommodation | GT5: Care leavers in education, employment or training | GU5: Looked after children absent from school (joint working) | GV5: Re-referrals to children's social care | GW5: Children subject to a child protection plan for two years or more | GX5: First time entrants to the youth justice system aged 10-17 | GY5: Serious violent crime rate | GZ5: Serious acquisitive crime rate | HA5: The number of changes of circumstances which affect customers' housing benefit / council tax benefit entitlement within the year | HB5: Time taken to process housing benefit / council tax benefit change of circumstance | HC5: Percentage of non-decent homes | HD5: Processing of planning applications as measured against targets for 'major' application types | HE5: Processing of planning applications as measured against targets for 'minor' application types | HF5: Processing of planning applications as measured against targets for 'other' application types | HG5: Achievement of at least 78 points across the early years foundation stage with at least 6 in each of the scales in personal, social & emotional development & communication and language & literacy | HH5: Narrowing the gap between the lowest achieving 20% in the early years foundation stage profile and the rest | HI5: 16-18 year olds who are not in education, employment or training | HJ5: Annual employment rate, aged 16-64 | HK5: New business registrations | HL5: Deliberate primary fires in locations other than road vehicles | HM5: Fatal casualties in accidental dwelling fires | HN5: Non-fatal casualties in accidental dwelling fires | HO5: Principal roads where maintenance should be considered | HP5: Non-principal classified roads where maintenance should be considered | HQ5: Overall satisfaction with the condition of highways | HR5: Overall satisfaction with highways maintenance | HS5: Number living in temporary accommodation per 1,000 households | HT5: Number accepted as being homeless and in priority need per 1,000 households | HU5: Total cases of prevention and relief per 1,000 households | HV5: Average weekly rent per dwelling | HW5: Rent collection rate | HX5: Achieving independence for older people through rehabilitation / intermediate care | HY5: Social care clients receiving self-directed support as a percentage of the total number of clients - older people | HZ5: Timeliness of social care assessment - older people | IA5: Carers receiving needs assessment or review and a specific carer's service or advice and information - older people | IB5: Net additional homes provided | IC5: Number of affordable homes provided | ID5: Working age people with access to employment by public transport (and other specified modes) | IE5: Bus services running on time | IF5: Overall satisfaction with local bus services | IG5: Percentage of household waste sent for reuse, recycling and composting | IH5: Kerbside collection of recyclables: one recyclable | II5: Kerbside collection of recyclables: two recyclables | IJ5: Overall satisfaction with road safety locally | IK5: Overall satisfaction with road safety environment | IL5: Overall satisfaction with road safety education | IM5: Achievement of at least 78 points across the early years foundation stage with at least 6 in each of the scales in personal, social & emotional development & communication and language & literacy | IN5: Achievement of 5 or more A*-C grades at GCSE (or equivalent including english and maths) | IO5: Reduction in number of schools judged as requiring special measures and improvement in time taken to come out of the category | IP5: Narrowing the gap between the lowest achieving 20% in the early years foundation stage profile and the rest | IQ5: Progression by 2 levels in english between KS1 and KS2 | IR5: Progression by 2 levels in maths between KS1 and KS2 | IS5: Attainment gap at age 11 between free school meals pupils and the rest | IT5: Attainment gap at age 16 between free school meals pupils and the rest | IU5: Online application for secondary school | IV5: First preference admissions to secondary school | IW5: Special educational needs statements issued within 26 weeks (excluding exceptions) | IX5: Special educational needs statements issued within 26 weeks (including exceptions) | IY5: The special educational needs (SEN) / non-SEN gap achieving key stage 2 english and maths threshold | IZ5: The special educational needs (SEN) / non-SEN gap achieving C GCSE including english and maths | JA5: Children for whom the authority maintains a statement of SEN who were educated other than in school | JB5: Adult participation in sport and active recreation | JC5: Participation is defined as taking part on at least 3 days a week in moderate intensity sport and active recreation (at least 12 days in the last 4 weeks) for at least 30 minutes continuously in any one session | JD5: Satisfaction for the percentage of adults who are very or fairly satisfied with sports | JE5: Improved street and environmental cleanliness - levels of litter | JF5: Improved street and environmental cleanliness - levels of detritus | JG5: Improved street and environmental cleanliness - levels of graffiti | JH5: Improved street and environmental cleanliness - levels of fly-posting | JI5: Improved street and environmental cleanliness - fly tipping | JJ5: Rectification of street lighting faults (non DNO) | JK5: Rectification of street lighting faults (DNO) | JL5: Overall satisfaction with street lighting | JM5: Residual household waste per household | JN5: Waste collected per head | JO5: Residual household waste per household | JP5: Percentage of municipal waste landfilled | JQ5: IMD 2010 | JR5: Domestic Energy Performance Certificates for all dwellings, with energy efficiency rating A-C | JS5: Domestic Energy Performance Certificates for all dwellings, with environmental impact rating A-C | JT5: Percentage of students achieving level 4 or above in reading test, writing TA and mathematics test at key stage 2
A6: E08000016 | B6: E4401 | C6: Barnsley | D6: Barnsley | E6: Metropolitan District | F6: -1.684638379 | G6: -1.549678872 | H6: -1.036281153 | I6: -0.7887198815 | J6: 0.04516843083 | K6: 0.02986399903 | L6: -1.036281153 | M6: -0.7887198815 | N6: -0.4169679254 | O6: -0.4694005286 | P6: -0.1246435954 | Q6: -0.2548086083 | R6: -0.8505919586 | S6: -0.2565882086 | T6: -1.736668272 | U6: -1.760346578 | V6: 0.2087858482 | W6: 1.469417949 | X6: -0.4528151 | Y6: -0.4533262943 | Z6: -0.3628167857 | AA6: -0.743084013 | AB6: -0.2710157201 | AC6: 0.1519428285 | AD6: 0.1234165279 | AE6: -0.7415227351 | AF6: -0.6552090181 | AG6: 1.12662382 | AH6: 2.114886769 | AI6: -0.1025708876 | AJ6: 0.5986753056 | AK6: 0.1507347924 | AL6: 0.5117876252 | AM6: -0.08125778723 | AN6: 2.23946342 | AO6: 1.752542843 | AP6: -1.00153967 | AQ6: -0.07383979441 | AR6: 0.00112930206 | AS6: 0.8503273069 | AT6: -0.5447018791 | AU6: -0.9483516312 | AV6: -1.274337419 | AW6: -1.209840405 | AX6: -1.640917966 | AY6: -1.283412355 | AZ6: -0.329329665 | BA6: -0.3952925556 | BB6: 0.2263631232 | BC6: -0.1230217323 | BE6: -1.308901225 | BF6: -1.030007744 | BG6: -1.134000276 | BH6: -0.4540801834 | BI6: -1.021027085 | BJ6: -2.25 | BK6: -1.747195301 | BL6: -0.816330223 | BM6: 1.207740473 | BN6: 1.082134869 | BO6: -1.156175776 | BP6: 0.1358364728 | BQ6: 2.25 | BR6: -0.9105143431 | BS6: -0.590824173 | BT6: -1.706763397 | BU6: -0.1901126262 | BV6: 0.09003849508 | BW6: -0.2481703729 | BX6: -0.05872299736 | BY6: -0.1469534483 | BZ6: 0.01839549642 | CA6: 0.2710990752 | CB6: -0.812898307 | CC6: 0.220066743 | CD6: -0.4614011307 | CE6: -0.06001620324 | CH6: 0.4907654359 | CI6: 0.7483729527 | CJ6: 0.6018977678 | CK6: 1.420726521 | CL6: 0.6201423338 | CM6: 2.25 | CN6: 0.9705996198 | CO6: 0.6385011602 | CP6: 0.5828720686 | CQ6: 1.474910918 | CR6: 0.35711946 | CS6: -0.3736143934 | CT6: -0.1500166824 | CU6: 0.6306719233 | CV6: -2.25 | CX6: 1.181746915 | CY6: 1.263738566 | CZ6: -0.03860372873 | DA6: -1.271239019 | DB6: -0.4302543734 | DC6: -0.2724521248 | DD6: -0.3604509765 | DE6: -1.230057596 | DF6: -1.072185675 | DG6: -1.166805785 | DH6: -1.066967702 | DI6: -0.9320722338 | DJ6: -1.011525457 | DK6: -0.7094026869 | DL6: -0.7104855298 | DM6: -0.7495869237 | DN6: 0.04919425255 | DO6: 0.09248419637 | DP6: 0.07213316767 | DQ6: 0.4583950096 | DR6: 0.4684562283 | DS6: 0.4338579007 | DT6: 0.09616990607 | DU6: 0.4554315291 | DV6: 0.2681187062 | DW6: -1.039470614 | DX6: -0.1633330197 | DY6: -0.621842728 | DZ6: -0.8111706374 | EA6: 0.3389379277 | EB6: -0.4139574525 | EC6: -1.967055545 | ED6: -1.662086778 | EE6: -1.863476668 | EG6: -1.05764483 | EH6: -0.5325177798 | EI6: -0.5526540185 | EJ6: -0.383623819 | EK6: -0.5222664933 | EL6: -0.7485216514 | EM6: -1.161697229 | EN6: -1.202494637 | EO6: -1.170677059 | EP6: -0.6238071793 | EQ6: -0.4570446054 | ER6: -0.5486018601 | ES6: 0.252806457 | ET6: -0.7694009229 | EU6: -0.08178326244 | EV6: -0.4212966171 | EW6: 0.3802825966 | EX6: -0.8709541874 | EY6: -0.538582797 | EZ6: -1.328904811 | FA6: 0.5148781606 | FB6: -1.607379939 | FC6: -1.25106733 | FD6: 1.293494213 | FE6: -0.3824425491 | FF6: 0.4996020642 | FG6: -0.1406410521 | FH6: -0.1625268963 | FI6: -0.2343939907 | FJ6: 2.25 | FK6: 2.203369703 | FL6: 0.8296139208 | FM6: 0.6138824948 | FN6: 0.8861606406 | FO6: 0.9144371796 | FP6: 0.4021352683 | FQ6: 0.3425626985 | FR6: -1.276885028 | FS6: -0.9116765891 | FT6: -1.283492703 | FU6: -1.45059131 | FV6: -0.6327489965 | FW6: -1.559379176 | FX6: -0.5014056882 | FY6: -0.6060034508 | FZ6: -1.129345513 | GA6: -0.2578328159 | GB6: 0.7033395778 | GC6: -0.1956736234 | GD6: 0.2654801513 | GE6: -0.1985841085 | GG6: -1.038523332 | GH6: -1.813643574 | GI6: 1.05693226 | GJ6: -1.761551478 | GK6: -0.1353330044 | GL6: 0.286263474 | GM6: -0.2115105048 | GN6: 1.041551614 | GO6: -0.2295512018 | GP6: -0.8743775166 | GQ6: 1.0563422 | GR6: 1.05208807 | GS6: -0.6145305747 | GT6: -1.198790625 | GU6: 0.6097819825 | GV6: -0.9171308323 | GW6: -0.3793534218 | GX6: -0.1488594322 | GY6: -0.1475268021 | GZ6: 0.4884060429 | HA6: -2.25 | HB6: 0.1703889137 | HC6: -1.063795056 | HD6: 1.471015704 | HE6: 0.9326194976 | HF6: 1.069471548 | HG6: -0.8101060128 | HH6: -0.6141170477 | HI6: 0.2087858482 | HJ6: -0.02876182332 | HK6: -1.181849117 | HO6: -0.5261004273 | HP6: -0.3007862264 | HQ6: -0.899660894 | HR6: -1.178987848 | HS6: 0.5783372577 | HT6: 1.192915115 | HU6: -0.3379422422 | HV6: -0.2916979509 | HW6: 0.7249558121 | HX6: -0.1351845537 | HY6: 0.05445306677 | HZ6: -0.3471368746 | IA6: 0.9649273836 | IB6: 0.6614917589 | ID6: -0.6041045704 | IF6: -0.1793760134 | IG6: 0.6086179618 | IH6: -0.8265978243 | II6: -0.776448698 | IJ6: -0.5654088551 | IK6: -0.4851598448 | IL6: -0.9466110576 | IM6: -0.8101060128 | IN6: -2.25 | IO6: 0.1011108314 | IP6: -0.6141170477 | IQ6: 0.3349641814 | IR6: 0.3411303909 | IS6: -0.09069223956 | IT6: 0.06489040462 | IU6: -1.591713157 | IV6: 1.278635993 | IW6: -0.4205991978 | IX6: -0.005093328953 | IY6: -1.047043167 | IZ6: 1.201444723 | JA6: 1.267969583 | JB6: -0.603268151 | JC6: 0.6436599458 | JD6: 0.4622125441 | JE6: 0.3969983597 | JF6: 0.8341215607 | JG6: 1.433692911 | JH6: 0.91438038 | JI6: 1.433957779 | JJ6: -1.063001851 | JK6: 0.1426249139 | JL6: 0.6263198349 | JM6: 0.9002546086 | JN6: -0.15771649 | JO6: 0.9002546086 | JP6: -0.6685855595 | JQ6: -0.6333917922 | JT6: -1.097852084
A7: E08000032 | B7: E4701 | C7: Bradford | D7: Bradford | E7: Metropolitan District | F7: -0.9473587774 | G7: -0.3663318675 | H7: -1.036281153 | I7: -0.994894026 | J7: -1.205825634 | K7: -0.8851022825 | L7: -1.036281153 | M7: -0.994894026 | N7: -0.6773821462 | O7: -0.6029876967 | P7: -0.3297830894 | Q7: 0.1593149419 | R7: -0.8234209792 | S7: 0.1162803947 | T7: -0.9926116672 | U7: 0.2734589171 | V7: 0.09404290675 | W7: 1.01575831 | X7: 0.158945722 | Y7: -0.5562285819 | Z7: 1.060185248 | AA7: 1.502469124 | AB7: -1.378829674 | AC7: -1.742852545 | AD7: -0.3909438124 | AE7: -0.5028595829 | AF7: -0.8470149039 | AG7: 0.4370860205 | AH7: -0.5769912631 | AI7: -0.2038360127 | AJ7: 0.0906524196 | AK7: 0.2851534319 | AL7: 0.05631313232 | AM7: 0.6980984007 | AN7: 0.7447937273 | AO7: 1.236034897 | AP7: -0.09168846663 | AQ7: -0.7093416745 | AR7: -0.8311612035 | AS7: 0.8503273069 | AT7: -1.547388226 | AU7: -0.4747292 | AV7: -0.3510298029 | AW7: -0.545139312 | AX7: 0.8069453243 | AY7: 0.3198457398 | AZ7: 0.3109189339 | BA7: -0.4267588516 | BB7: -0.2667215427 | BC7: -0.981798906 | BD7: -1.385828813 | BE7: -0.7679266022 | BF7: -1.316454178 | BG7: -1.883512243 | BH7: -0.8924628306 | BI7: -0.8080494524 | BJ7: -0.2469846583 | BK7: 0.3441140127 | BL7: -1.448268529 | BM7: -0.6997053964 | BN7: -0.3930671646 | BO7: -1.632593843 | BP7: 0.3380542219 | BQ7: -1.291612235 | BR7: 0.7051187815 | BS7: -0.006388432867 | BT7: 0.1334970215 | BU7: 0.224588497 | BV7: 0.929476514 | BW7: 0.5321653883 | BX7: 0.7822072813 | BY7: 0.7871055237 | BZ7: 0.7039378795 | CA7: 0.4619925786 | CB7: 0.1456912499 | CC7: 0.3517619384 | CD7: 0.8804500033 | CE7: 0.5344448387 | CF7: 1.092434104 | CG7: 0.007227541813 | CH7: 0.2473957098 | CI7: 0.3647865971 | CJ7: 0.5040470708 | CK7: 1.017863401 | CL7: 0.2775132688 | CM7: 0.5381878482 | CN7: 0.7023881052 | CO7: 0.640106591 | CP7: 0.5099714251 | CQ7: 0.9460146305 | CR7: 0.6580857988 | CS7: 1.11726067 | CT7: 0.8853166123 | CU7: 0.1028128724 | CV7: -0.4900712744 | CW7: -1.115879891 | CX7: -1.162102869 | CY7: 1.263738566 | CZ7: -2.195771625 | DA7: -1.748993968 | DB7: -0.5387255835 | DC7: -0.5128990116 | DD7: -0.5299327298 | DE7: -0.9997650507 | DF7: -1.312992768 | DG7: -1.207449034 | DH7: -0.7409073135 | DI7: -1.044789759 | DJ7: -0.9463453481 | DK7: -0.06380582983 | DL7: -0.04904847707 | DM7: -0.05169523521 | DN7: -0.119561152 | DO7: -0.1754283589 | DP7: -0.1530914799 | DQ7: -1.248892149 | DR7: 0.1226997982 | DS7: -0.4779773679 | DT7: -1.128294802 | DU7: 0.01578099623 | DV7: -0.5161944356 | DW7: -0.9963361929 | DX7: -0.9062592385 | DY7: -0.9838878727 | DZ7: -1.204692448 | EA7: -0.8842681617 | EB7: -1.166233005 | EC7: 0.6347053783 | ED7: 0.3135866356 | EE7: 0.5003983409 | EF7: -1.100585294 | EG7: -0.117476401 | EH7: -0.7164906734 | EI7: 0.4117055698 | EJ7: -0.2713702632 | EK7: 0.0007161333148 | EL7: -0.1362314767 | EM7: -0.4273131783 | EN7: -1.30570183 | EO7: -0.7620921155 | EP7: 1.666986938 | EQ7: 1.742543152 | ER7: 1.086833451 | ES7: -1.559931572 | ET7: -0.6771106252 | EU7: -0.7381717419 | EV7: 0.114813519 | EW7: 0.5878361016 | EX7: 0.2234004889 | EY7: -0.01884042532 | EZ7: -0.595837844 | FA7: 0.7233140915 | FB7: 0.1158479185 | FC7: 0.4325416292 | FD7: 0.8378105199 | FE7: 0.1911791212 | FF7: -1.269982222 | FG7: -0.6704722691 | FH7: 1.326939844 | FI7: -0.792923888 | FJ7: 1.793615937 | FK7: 1.030416828 | FL7: -0.7096247746 | FM7: -1.10880575 | FN7: -0.1241116319 | FO7: -0.292495961 | FP7: 0.3454927727 | FQ7: -0.9755106807 | FR7: -1.14023022 | FS7: -1.159094131 | FT7: -0.9809852268 | FU7: -1.024287886 | FV7: -1.087278205 | FW7: -1.69358449 | FX7: -0.6870288881 | FY7: 0.1665289484 | FZ7: -0.9226753128 | GA7: 0.759603177 | GB7: 0.3862506242 | GC7: -0.2261730349 | GD7: -0.04719454027 | GE7: -1.58497472 | GF7: 1.883161795 | GG7: -0.7100949346 | GH7: -1.059834225 | GI7: -0.8822190125 | GJ7: -1.048815536 | GK7: 1.745458054 | GL7: 1.257230828 | GM7: -0.9763145862 | GN7: 0.1893993604 | GO7: -0.04947205528 | GP7: 0.8355208235 | GQ7: -0.9297533793 | GR7: -0.2862133715 | GS7: -0.2502065892 | GT7: 0.1149029521 | GU7: 1.092366144 | GV7: 0.548875656 | GW7: -0.4421555975 | GX7: -1.001182408 | GY7: 0.6209203241 | GZ7: -0.7630634877 | HA7: 0.2089711271 | HB7: -1.471540618 | HC7: 0.8523873074 | HD7: 0.2069653732 | HE7: 1.274948601 | HF7: 1.069471548 | HG7: -0.9939113108 | HH7: -1.773939775 | HI7: 0.09404290675 | HJ7: -0.8977150072 | HK7: -0.7959453456 | HO7: 0.08306122111 | HP7: 0.9189539057 | HS7: 0.5411782433 | HT7: 0.5942493644 | HU7: 2.044804657 | HV7: -0.8594550594 | HW7: 0.5663401612 | HX7: 1.496616147 | HY7: -0.289567704 | HZ7: 0.0372972204 | IA7: 0.4433506688 | IB7: 0.4129485048 | IC7: -0.1163403784 | ID7: -0.1352885841 | IG7: -0.05600903529 | IH7: -0.8459669007 | II7: -0.7954322633 | IM7: -0.9939113108 | IN7: -1.146720432 | IO7: -2.224438291 | IP7: -1.773939775 | IQ7: 0.3349641814 | IR7: -0.3808758417 | IS7: -1.026485856 | IT7: -0.6952239154 | IU7: -0.5418385683 | IV7: -0.8303650451 | IW7: -1.017849699 | IX7: -0.9447240916 | IY7: -0.1537210065 | IZ7: 0.4879146157 | JB7: -0.4959563039 | JC7: -0.1424256379 | JD7: -1.016535983 | JE7: -1.188021632 | JF7: -1.566944284 | JG7: -1.652645881 | JH7: -0.9680186636 | JI7: -0.9133472917 | JJ7: -0.5539921951 | JK7: -0.6658513119 | JM7: -0.1044711432 | JN7: 0.6800543443 | JO7: -0.1044711432 | JP7: -0.6666586875 | JQ7: -1.123554358 | JR7: 1.329485376 | JS7: 1.134743002 | JT7: -1.811402002
A8: E08000033 | B8: E4702 | C8: Calderdale | D8: Calderdale | E8: Metropolitan District | F8: 0.4998937746 | G8: -0.1235940204 | H8: -0.5015906318 | I8: -0.994894026 | J8: -0.7978196829 | K8: -1.145147118 | L8: -0.5015906318 | M8: -0.994894026 | N8: -0.0330539384 | O8: -0.01444895912 | P8: -0.8583049576 | Q8: -0.765093044 | R8: 0.9680174873 | S8: -0.2175111349 | T8: 0.9809157208 | U8: 0.9849908492 | V8: -0.1241173013 | W8: 1.554194343 | X8: -0.3044245186 | Y8: 0.652873298 | Z8: 0.2597466041 | AA8: -0.21606644 | AB8: -1.707324177 | AC8: -1.227556576 | AD8: -0.5771617912 | AE8: -0.5028595829 | AF8: -0.9073370514 | AG8: 0.5330558119 | AH8: -0.7494804095 | AI8: 0.5932686859 | AJ8: 0.6310782903 | AK8: 0.05592899397 | AL8: 0.4118911735 | AM8: 0.5047425853 | AN8: 1.686905626 | AO8: 0.8747793507 | AP8: 0.4787070799 | AQ8: -0.5180244786 | AR8: 0.7740279705 | AS8: 0.2812306252 | AT8: -0.07179020742 | AU8: 0.4421354907 | AV8: -0.2916633968 | AW8: -0.08899055462 | AX8: -0.710051344 | AY8: -0.2891948905 | AZ8: 0.4880521335 | BA8: 0.6887258653 | BB8: -0.862611791 | BC8: -1.434807446 | BD8: 0.3352020803 | BE8: -0.5145549478 | BF8: -1.139404738 | BG8: -0.2980546172 | BH8: -0.832852188 | BI8: -1.035420915 | BJ8: -0.2346759377 | BK8: 1.114766644 | BL8: 0.2819310928 | BM8: -0.4525316236 | BN8: 1.12984136 | BO8: -0.5354318433 | BP8: 0.9113258154 | BQ8: 0.3738096337 | BR8: -0.01058010987 | BS8: 1.611859886 | BT8: 0.63916168 | BU8: -0.05614788782 | BV8: -0.3784091305 | BW8: -1.014326862 | BX8: -0.694765416 | BY8: -0.7737151157 | BZ8: -0.577113564 | CA8: 0.6604244276 | CB8: -0.6157351205 | CC8: -0.3812627889 | CD8: 0.3312353266 | CE8: -0.1293794919 | CF8: 1.092434104 | CG8: 1.705143596 | CH8: 0.1244214557 | CI8: 0.591325556 | CJ8: -0.1662635865 | CK8: 0.354830995 | CL8: -0.1234146532 | CM8: 0.8324514144 | CN8: 0.647560919 | CO8: 0.4087627437 | CP8: 0.2510456571 | CQ8: 0.3007227522 | CR8: -0.3887714676 | CS8: -0.210199661 | CT8: -0.3825139907 | CU8: -0.5721606244 | CV8: -1.506332351 | CW8: -0.4098525099 | CX8: -0.01820829129 | CY8: -0.73069688 | CZ8: -2.054926954 | DA8: -1.632335807 | DB8: -0.3482002802 | DC8: -0.6654145053 | DD8: -0.5639083854 | DE8: -0.310487073 | DF8: -0.7592025792 | DG8: -0.6127866287 | DH8: -0.2389044242 | DI8: -0.2803333052 | DJ8: -0.2809330369 | DK8: -0.705512459 | DL8: -1.263426384 | DM8: -1.085924369 | DN8: -0.6908983528 | DO8: -0.8157206034 | DP8: -0.8008495862 | DQ8: -0.8569114434 | DR8: -0.2047481877 | DS8: -0.4900975507 | DT8: -0.6825420297 | DU8: -0.2807889119 | DV8: -0.4981206333 | DW8: -0.8636421534 | DX8: -1.311424517 | DY8: -1.142958587 | DZ8: -0.6255004237 | EA8: -1.552905848 | EB8: -1.218918206 | EC8: -0.5759120345 | ED8: -2.25 | EE8: -1.24977475 | EG8: -1.066807126 | EH8: -0.3805328771 | EI8: -0.4491909543 | EJ8: -0.7962422567 | EK8: -0.6649773668 | EL8: -0.1585201647 | EM8: 1.167593142 | EO8: 0.0120701545 | EP8: -0.5294756108 | EQ8: -0.8701894644 | ER8: -0.01105545179 | ES8: -1.506005357 | ET8: -0.9853732808 | EU8: 0.08499839657 | EV8: -0.3788233674 | EW8: -0.2423779187 | EX8: -0.2297821674 | EY8: 0.3914916638 | EZ8: -0.2946879964 | FA8: 0.5148781606 | FB8: 0.3171374649 | FC8: 0.5123513755 | FD8: 1.109170573 | FE8: -0.2433031172 | FF8: 1.078788922 | FG8: 0.3641412324 | FH8: -1.379463498 | FI8: -1.068354653 | FJ8: -1.367246305 | FK8: 0.3511543294 | FL8: -0.02359620126 | FM8: -0.07683860116 | FN8: 0.5223695646 | FO8: -0.1655232178 | FP8: -0.2075875143 | FQ8: 0.4129701419 | FR8: -0.188813139 | FS8: -0.4102636015 | FT8: -0.4646822149 | FU8: 0.3992779535 | FV8: 2.024991803 | FW8: -0.3960793281 | FX8: -0.8133007633 | FY8: -1.21272422 | FZ8: 1.937111419 | GA8: -0.008062982132 | GB8: -2.25 | GC8: 2.25 | GD8: -0.6270780933 | GE8: 0.6546739627 | GF8: -0.895269965 | GG8: -0.6848610798 | GH8: 0.2180716828 | GI8: -0.8500691886 | GJ8: 1.048204468 | GK8: -0.2551972321 | GL8: 0.1605359231 | GM8: -0.9763145862 | GN8: 1.133425096 | GO8: -0.7936097752 | GP8: 2.25 | GQ8: -0.3487732528 | GR8: -1.371192911 | GS8: -0.2534879918 | GT8: 0.8873302157 | GV8: -1.514024649 | GW8: -0.4421555975 | GX8: 0.532312826 | GY8: 0.6209203241 | GZ8: -0.2042596961 | HA8: -2.116292191 | HB8: -0.1579969927 | HC8: 0.8523873074 | HD8: 1.975352362 | HE8: 0.827864923 | HF8: 1.498439623 | HG8: -0.6249275025 | HH8: -0.4085382681 | HI8: -0.1241173013 | HJ8: 0.1074020738 | HK8: -0.3009848685 | HO8: -0.7718806884 | HP8: -0.9218766297 | HS8: 0.5372667681 | HT8: 1.073181965 | HU8: -0.8375504629 | HV8: 1.398180399 | HW8: -1.406644189 | HX8: -1.468412041 | HY8: 2.25 | HZ8: -0.9224357066 | IA8: 1.25409591 | IB8: -0.4818072096 | IC8: -0.7245502048 | ID8: -0.1352885841 | IG8: 0.3710054485 | IH8: -0.8324705967 | II8: -1.002779135 | IM8: -0.6249275025 | IN8: 0.4353695191 | IO8: 0.1011108314 | IP8: -0.4085382681 | IQ8: 1.293436549 | IR8: 1.678776901 | IS8: 0.1149059044 | IT8: 0.2462830525 | IU8: -1.16005632 | IV8: -0.2185638559 | IW8: 0.9942983329 | IX8: -0.2808193442 | IY8: -0.1042760037 | IZ8: -0.3991939913 | JB8: -0.006292777818 | JC8: 1.127286785 | JD8: 0.465973441 | JE8: -0.2247550293 | JF8: -1.438888048 | JG8: -0.3126666692 | JH8: -0.9680186636 | JI8: 1.433957779 | JJ8: -0.4233613986 | JK8: -1.005211703 | JM8: 1.299856668 | JN8: 0.3499611939 | JO8: 1.299856668 | JP8: -0.7122983908 | JQ8: -0.01538780042 | JR8: 0.405217969 | JS8: 0.5107860593 | JT8: 0.206476909
A9: E08000017 | B9: E4402 | C9: Doncaster | D9: Doncaster | E9: Metropolitan District | F9: -1.001972081 | G9: -1.337283256 | H9: -0.8835124326 | I9: -0.994894026 | J9: -0.05971835039 | K9: -0.3030967671 | L9: -0.8835124326 | M9: -0.994894026 | N9: -0.4169679254 | O9: -0.5184347814 | P9: -1.13810937 | Q9: -0.7873531703 | R9: -1.171589767 | S9: -0.6546282449 | T9: -1.236941344 | U9: -0.5980176933 | V9: -0.2788159945 | W9: -0.09942031435 | X9: 0.9414640637 | Y9: -0.5819541538 | Z9: 1.13133535 | AA9: 0.5859168231 | AB9: -0.4608515296 | AC9: -0.8198719897 | AD9: -0.6829939591 | AE9: -0.7415227351 | AF9: -0.8309955327 | AG9: 0.2549832527 | AH9: 0.8807191928 | AI9: -1.028139689 | AJ9: -0.6869342256 | AK9: -0.3343126758 | AL9: -0.1451936517 | AM9: -0.7831652597 | AN9: 1.903685495 | AO9: 1.809673546 | AP9: 0.1539423454 | AQ9: -0.2522840745 | AR9: -0.9040913069 | AS9: 0.6959935518 | AT9: -1.621983652 | AU9: -0.7083245105 | AV9: -1.205994998 | AW9: -1.263780719 | AX9: -0.3785210122 | AY9: -0.4613419264 | AZ9: 0.1073809338 | BA9: 0.03247021893 | BB9: -1.132544259 | BC9: -0.6459458053 | BD9: 0.2714601953 | BE9: -2.098220468 | BF9: -0.7682527414 | BG9: -0.8718973625 | BH9: -1.99538051 | BI9: -1.435048933 | BJ9: -0.1093107558 | BK9: -0.4534443925 | BL9: -1.203761248 | BM9: 0.5830513022 | BN9: 0.6070519711 | BO9: 1.948354895 | BP9: -0.3913317661 | BQ9: 2.25 | BR9: -0.3848029366 | BS9: -0.985646891 | BT9: 0.1744557849 | BU9: -0.5756633102 | BV9: -0.4029341661 | BW9: 0.2068213228 | BX9: -0.1345402177 | BY9: 0.1960070082 | BZ9: -0.454071577 | CA9: 0.08716219384 | CB9: -0.4581829209 | CC9: -0.7021911661 | CD9: -0.9064541833 | CE9: -0.7831107705 | CF9: 1.092434104 | CG9: 1.705143596 | CH9: -0.04127130757 | CI9: 0.1523317502 | CJ9: 0.08119122574 | CK9: -0.01997630956 | CL9: 0.03377891812 | CM9: 0.9974675903 | CN9: 0.06343175153 | CO9: 0.2002879662 | CP9: -0.02861133142 | CQ9: -0.3478280773 | CR9: 1.448834739 | CS9: 0.5186981121 | CT9: 0.0669863009 | CU9: 0.06591063963 | CV9: 0.04022384248 | CW9: -0.2405372236 | CX9: 0.3227265108 | CY9: 1.263738566 | CZ9: -0.4003902347 | DA9: -0.8114711876 | DB9: -1.079436817 | DC9: -0.709376339 | DD9: -0.8903742717 | DE9: -0.24417235 | DF9: -0.6062191792 | DG9: -0.4926243624 | DH9: -0.8226036217 | DI9: -0.8332461882 | DJ9: -0.8538827152 | DK9: -1.418292072 | DL9: -1.487286783 | DM9: -1.505684359 | DN9: -1.315911178 | DO9: -0.8810363453 | DP9: -1.10721056 | DQ9: -0.3882285357 | DR9: -0.1245100442 | DS9: -0.2684913299 | DT9: -0.4118619904 | DU9: -0.2099693653 | DV9: -0.3635814132 | DW9: -1.122983314 | DX9: -0.790384003 | DY9: -0.9792854478 | DZ9: -1.214349877 | EA9: -0.6840448164 | EB9: -1.067195117 | EC9: -0.9361040805 | ED9: -0.6658183113 | EE9: -0.8658745659 | EG9: 0.0209014895 | EH9: -0.0269510418 | EI9: 0.06522420677 | EJ9: -0.5700539663 | EK9: -0.3089126625 | EL9: -0.8642972039 | EM9: -0.1414257857 | EN9: 0.8337899414 | EO9: -0.5946995169 | EP9: -0.9516363445 | EQ9: 0.518950202 | ER9: -1.773741697 | ES9: -1.037151187 | ET9: -0.9336936093 | EU9: -0.1164140902 | EV9: 0.3002722748 | EW9: 0.7953896067 | EX9: 0.9517209858 | EY9: -0.7037849968 | EZ9: -1.351357368 | FA9: 0.5148781606 | FB9: 0.1393545172 | FC9: -0.2912743909 | FD9: -0.2780921519 | FE9: 0.9249127342 | FF9: -0.03566813477 | FG9: -0.3951261653 | FH9: -1.435652483 | FI9: -0.8793637596 | FJ9: 1.021617906 | FK9: 0.08065545802 | FL9: 0.2941912552 | FM9: 0.6836171962 | FN9: 0.9026135589 | FO9: 0.8430447037 | FP9: 0.6507986304 | FQ9: 0.2061610442 | FR9: -1.048070407 | FS9: -1.261073065 | FT9: -1.369294005 | FU9: -1.45059131 | FV9: -2.25 | FW9: -1.074497106 | FX9: -1.27017378 | FY9: -0.94630889 | FZ9: -1.79475064 | GA9: 1.147698734 | GB9: -0.02270749853 | GC9: 0.2310255516 | GD9: 0.7030156526 | GE9: 2.25 | GF9: 0.3900729041 | GG9: -0.7100949346 | GH9: -1.257821307 | GI9: -1.060852325 | GJ9: -1.290371404 | GK9: 0.09222828292 | GL9: 0.2135903441 | GM9: -1.858776208 | GN9: -2.035327109 | GO9: -2.25 | GP9: -0.8743775166 | GQ9: -1.555396852 | GR9: -1.183424898 | GS9: -0.2534879918 | GT9: -1.353301377 | GU9: -0.3030763663 | GV9: 0.143420335 | GW9: -0.317615253 | GX9: -0.2315383109 | GY9: -0.8444475602 | GZ9: -0.4756254198 | HA9: -0.5347346937 | HC9: -1.341505087 | HD9: -1.210644263 | HE9: -1.187710819 | HF9: -0.4808401463 | HG9: -0.2497350364 | HH9: -0.3257940619 | HI9: -0.2788159945 | HJ9: -0.8977150072 | HK9: -1.126814882 | HO9: 0.4808511666 | HP9: -0.0519049432 | HQ9: -0.7854571236 | HR9: -0.8870414898 | HS9: 0.5724700449 | HT9: 1.153004065 | HU9: -0.8951975653 | HV9: -0.292485773 | HW9: 0.7249558121 | HX9: -1.529970465 | HY9: -0.2537705862 | HZ9: -0.394004471 | IA9: 0.7264808012 | IB9: -0.258118281 | IC9: -0.4638888506 | ID9: -0.6041045704 | IF9: 0.1097698999 | IG9: 0.4483976326 | IH9: -1.22937535 | II9: -1.171209569 | IJ9: -0.9176798803 | IK9: -0.1595501145 | IL9: -0.2676226278 | IM9: -0.2497350364 | IN9: -0.7350767664 | IO9: 0.1011108314 | IP9: -0.3257940619 | IQ9: -0.447435104 | IR9: -0.7067934429 | IS9: 0.1149059044 | IT9: 0.1562521891 | IU9: -1.932299512 | IV9: 0.91747915 | IW9: -1.845323367 | IX9: -1.384367059 | IY9: -0.9224231128 | IZ9: 2.019621728 | JA9: 0.3425604289 | JB9: -0.6807388285 | JC9: -0.1802894553 | JD9: 0.6690865298 | JE9: -1.589557947 | JF9: -1.863535575 | JG9: 1.433692911 | JH9: 0.91438038 | JI9: 1.433957779 | JJ9: 1.891956857 | JK9: -1.210279747 | JL9: 0.6565064896 | JM9: -0.5102190754 | JN9: -1.746568137 | JO9: -0.5102190754 | JP9: -0.7145530499 | JQ9: -0.7734742364 | JR9: 1.396192553 | JS9: 1.535054665 | JT9: -1.097852084
A10: E06000011 | B10: E2001 | C10: East Riding of Yorkshire UA | D10: East Riding of Yorkshire | E10: Unitary Authority | F10: 0.9641068573 | G10: 0.756330675 | H10: 0.03309988941 | I10: 0.4483249853 | J10: 0.724169034 | K10: 0.8845141391 | L10: 0.03309988941 | M10: 0.4483249853 | N10: 1.279956063 | O10: 1.301734691 | P10: 0.6114533655 | Q10: -0.2255599825 | R10: 0.1927601217 | S10: -0.140855821 | T10: -0.2818855011 | U10: 0.1517840111 | V10: 1.150647937 | W10: -0.6880164795 | X10: 0.3079237355 | Y10: 0.7557755857 | Z10: -1.145467904 | AA10: 0.7233996682 | AB10: 0.6225354226 | AC10: 1.05677772 | AD10: -1.385289268 | AE10: -0.8173864718 | AF10: 0.8274827374 | AG10: 0.9725904225 | AH10: -0.4127956887 | AI10: 0.8878284967 | AJ10: 0.9838077134 | AK10: 0.2845354294 | AL10: 1.430382669 | AM10: 0.9806750903 | AN10: -0.7805266756 | AO10: 0.6627203259 | AP10: 0.7424861605 | AQ10: 0.2652023045 | AR10: -1.413276496 | AS10: 0.9401724768 | AT10: 1.23349089 | AU10: -0.3556394203 | AV10: -0.2366691801 | AW10: -0.2881681155 | AX10: 0.2115436703 | AY10: 0.4523493046 | AZ10: 0.6655231671 | BA10: 0.2630117963 | BB10: 0.4116556688 | BC10: 0.4558409677 | BD10: -0.6209261939 | BE10: -0.7729883631 | BF10: 0.7154723392 | BG10: 0.538264706 | BH10: -0.1592049685 | BI10: 0.1908877021 | BJ10: 0.3267378273 | BK10: 1.056597869 | BL10: -0.5251059548 | BM10: 0.6078389329 | BN10: 1.46306921 | BO10: 0.1349413594 | BP10: -2.25 | BQ10: -0.1740855123 | BR10: -0.2584549338 | BS10: 0.2672880607 | BT10: -0.03752244704 | BU10: 1.133330185 | BV10: 0.4132695047 | BW10: 0.7946961323 | BX10: 0.6042440749 | BY10: 0.7780031128 | BZ10: 0.3796223205 | CA10: 0.6604244276 | CB10: 1.521951155 | CC10: 2.146481205 | CD10: 2.232935815 | CE10: 2.226071413 | CH10: 0.8019037304 | CI10: 0.9222716969 | CJ10: 0.6234589176 | CK10: 0.3670155808 | CL10: 0.8715026643 | CM10: 1.014144562 | CN10: 0.9876477907 | CO10: 1.11296481 | CP10: 0.8919788237 | CQ10: 0.526204972 | CR10: 1.141282377 | CS10: -0.19480779 | CT10: -0.5781046994 | CU10: -0.6300535466 | CV10: -0.2577125959 | CX10: 1.411771037 | CY10: 1.263738566 | CZ10: 0.1011768535 | DA10: 0.5491007656 | DB10: 0.3917598937 | DC10: 0.5646759686 | DD10: 0.5001362606 | DE10: 0.3924997459 | DF10: 0.5179404724 | DG10: 0.4847746399 | DH10: 0.3332943451 | DI10: 0.2255815638 | DJ10: 0.2680261989 | DK10: 0.6888063505 | DL10: 0.6586073823 | DM10: 0.7017255531 | DN10: 0.2667359518 | DO10: 0.711572561 | DP10: 0.5255209309 | DQ10: -0.0233080535 | DR10: 0.7117607587 | DS10: 0.4196892136 | DT10: 0.1365346703 | DU10: 0.6897488742 | DV10: 0.4494795818 | DW10: 0.396813067 | DX10: 0.5780274997 | DY10: 0.5073764341 | DZ10: 0.3126694075 | EA10: 0.5506644873 | EB10: 0.2860290113 | EC10: 0.1916604416 | ED10: 0.7627306676 | EE10: 0.4445025167 | EG10: 1.291028616 | EH10: 0.6993421285 | EI10: 1.074308894 | EJ10: 1.771647858 | EK10: 1.390760473 | EL10: -0.1136858596 | EM10: -0.09266623675 | EN10: 1.179237469 | EO10: -0.4462461161 | EP10: -0.1447136144 | EQ10: 0.7206641827 | ER10: -0.7755627921 | ES10: 1.033201419 | ET10: 0.7211291751 | EU10: 0.5410109632 | EV10: 0.6478381174 | EW10: 0.7953896067 | EX10: 0.06976454642 | EY10: -0.450040989 | EZ10: 0.8539749328 | FA10: 0.7233140915 | FB10: -0.03209271415 | FC10: 1.196725761 | FD10: -0.7313090913 | FE10: 0.3308693627 | FF10: -1.161198624 | FG10: -0.2603410857 | FH10: 0.7652942542 | FI10: -2.212782666 | FJ10: 0.2570294969 | FK10: 1.030416828 | FL10: 1.558563868 | FM10: 1.323168376 | FN10: 1.42601937 | FO10: 1.432156727 | FP10: 0.905152241 | FQ10: 0.7589758206 | FR10: 0.4754506766 | FS10: 0.1703559787 | FT10: 0.002985446647 | FU10: 0.3992779535 | FV10: 0.3546541379 | FW10: 1.665949543 | FX10: -0.4909712959 | FY10: 0.4464171864 | FZ10: -0.8311518929 | GA10: -0.2422292863 | GB10: -0.4655617755 | GC10: -0.6815562519 | GD10: -0.9127712143 | GE10: 1.207488733 | GF10: 0.3900729041 | GG10: -0.7779426781 | GH10: 0.2180716828 | GI10: 1.05693226 | GJ10: 0.2248174992 | GK10: -0.7993236401 | GL10: -0.316521351 | GN10: -0.05828093314 | GO10: 1.268283246 | GP10: 0.4720307418 | GQ10: 0.6378662631 | GR10: -0.8272141084 | GS10: -0.3668862661 | GT10: 0.9807395323 | GU10: -0.1478690686 | GV10: 2.037704303 | GX10: -0.2849813707 | GY10: 1.38936745 | GZ10: 1.976605711 | HA10: -0.6106499241 | HB10: 1.155546633 | HC10: 0.8523873074 | HD10: 0.4698689831 | HE10: -0.1358600126 | HF10: 0.1994920444 | HG10: -0.9939113108 | HH10: 1.087176996 | HI10: 1.150647937 | HJ10: 0.4063674007 | HK10: -0.5562744447 | HO10: 0.9883499314 | HP10: -0.5258804976 | HQ10: 0.06425743388 | HR10: 0.006872290069 | HS10: 0.5372667681 | HT10: 0.3148720139 | HU10: -0.1457852342 | HV10: -0.4251024889 | HW10: 0.7057791711 | HX10: 0.881299509 | HY10: -0.2984940891 | HZ10: -1.205663334 | IA10: 0.7437698019 | IB10: 2.25 | IC10: -0.4638888506 | ID10: -1.245698891 | IE10: -0.467721193 | IF10: -0.08280551573 | IG10: 1.179959705 | IH10: -0.599069935 | II10: -0.5534493948 | IJ10: -0.1984902055 | IK10: -0.7432967816 | IL10: 0.5027830709 | IM10: -0.9939113108 | IN10: -0.2470956427 | IO10: 0.1011108314 | IP10: 1.087176996 | IQ10: -0.07365805446 | IR10: -0.3808758417 | IS10: 0.8588397963 | IT10: 0.07802674912 | IU10: 0.07544468892 | IV10: 1.632458507 | IW10: 0.9942983329 | IX10: 1.772632298 | IY10: -2.25 | IZ10: -0.9611177141 | JA10: -0.5522756073 | JE10: -0.4650577024 | JF10: 0.215829595 | JG10: 0.5669627138 | JH10: -0.9680186636 | JI10: -0.04131245106 | JJ10: -0.3738117861 | JK10: -0.05064718046 | JL10: 0.5561594531 | JM10: -0.03431760652 | JN10: -1.344935848 | JO10: -0.03431760652 | JP10: -0.6604148741 | JQ10: 0.9493583687 | JR10: 0.01208479809 | JS10: -0.1746265626 | JT10: 0.206476909
A11: E06000010 | B11: E2002 | C11: Kingston upon Hull UA | D11: Kingston upon Hull | E11: Unitary Authority | F11: -1.630025076 | G11: -1.428309948 | H11: -1.800124755 | I11: -1.613416459 | J11: -1.696574459 | K11: -1.81448607 | L11: -1.800124755 | M11: -1.613416459 | N11: -1.312862241 | O11: -1.389215512 | P11: -1.353351704 | Q11: -0.0153507369 | R11: -1.476601962 | S11: -0.01631633446 | T11: -1.268462343 | U11: -0.6590220467 | V11: -1.897268835 | W11: -0.4323839264 | X11: -0.2459277358 | Y11: -0.6334052977 | AA11: 1.662865777 | AB11: 0.9865975115 | AC11: 0.1192861963 | AD11: -0.8317405574 | AE11: -0.8173864718 | AF11: -1.06011486 | AG11: -1.173373094 | AH11: -1.633316377 | AI11: -2.147176344 | AJ11: -1.998567806 | AK11: -1.345132606 | AL11: 0.7806717005 | AM11: 1.202387596 | AN11: -1.275097553 | AO11: 0.5575469971 | AP11: -0.5441191809 | AQ11: 0.07846438872 | AR11: -1.340640665 | AS11: -0.3698781759 | AT11: -0.1976936917 | AU11: -1.059470164 | AV11: -0.923320455 | AW11: -1.327457181 | AX11: -1.183897279 | AY11: -1.775864387 | AZ11: -0.2043858657 | BA11: -0.6514763341 | BB11: -1.213322958 | BC11: -0.7649248067 | BD11: 0.8451371599 | BE11: 0.5582447252 | BF11: -2.25 | BG11: -1.563072397 | BH11: -2.157926948 | BI11: -2.25 | BJ11: -0.5186024205 | BK11: -0.5774947659 | BL11: -0.1189564177 | BM11: -1.112339261 | BN11: 0.3924832015 | BO11: -0.567344452 | BP11: -1.585429098 | BQ11: 0.6985893913 | BR11: -1.386583775 | BS11: -0.1554039095 | BT11: -0.4404389077 | BU11: -0.1665817083 | BV11: -0.7095755389 | BW11: -1.037532669 | BX11: -0.8833846678 | BY11: -0.9309761279 | BZ11: -0.7843556074 | CA11: -0.176815173 | CB11: 0.4002590708 | CC11: -0.6390740417 | CD11: -0.6852751366 | CE11: -0.647145391 | CH11: 0.2828311548 | CI11: 0.4862520912 | CJ11: 0.1333280963 | CK11: 0.9250662676 | CL11: 0.2193434483 | CM11: 0.4510668283 | CN11: 0.2431791274 | CO11: 0.2518883281 | CP11: 0.3437163807 | CQ11: 0.4636228133 | CR11: -0.1682533236 | CS11: 1.181195046 | CT11: 0.3035760491 | CU11: -0.03794826168 | CV11: 0.04022384248 | CW11: -0.5595545893 | CX11: -0.1749424369 | CY11: 1.263738566 | CZ11: -0.5713554164 | DA11: -1.167545648 | DB11: -2.029502903 | DC11: -1.521198953 | DD11: -1.774080653 | DE11: -1.093775126 | DF11: -1.196965478 | DG11: -1.206155267 | DH11: -1.164520651 | DI11: -1.266669478 | DJ11: -1.288487666 | DK11: -2.25 | DL11: -1.502007322 | DM11: -1.995388293 | DN11: -2.25 | DO11: -1.620906725 | DP11: -2.144282762 | DQ11: -0.9609138663 | DR11: -0.5990019808 | DS11: -0.8205666517 | DT11: -0.7428490992 | DU11: -0.4102726592 | DV11: -0.647298552 | DW11: -1.819792873 | DX11: -1.951137386 | DY11: -1.956357517 | DZ11: -1.806906047 | EA11: -1.909564551 | EB11: -1.940045909 | EC11: -1.737318204 | ED11: -0.6599479379 | EE11: -1.464970692 | EG11: -0.6499362725 | EH11: -1.013878389 | EI11: -0.14333435 | EJ11: -0.5692452961 | EK11: -0.4018156397 | EL11: -0.1309623228 | EM11: -0.3067925526 | EN11: 0.3752078066 | EO11: -0.3931537174 | EP11: -2.25 | EQ11: -2.239637702 | ER11: -1.647716168 | ES11: 0.7190472904 | ET11: 1.142267366 | EU11: -1.659648803 | EV11: -0.4585627616 | EW11: 1.210496617 | EX11: 0.5660403902 | EY11: 0.5518296387 | EZ11: 0.04906657142 | FA11: -0.1104296323 | FB11: -2.25 | FC11: 0.005004984937 | FD11: -0.6300107903 | FE11: -0.1884532134 | FF11: -1.278801624 | FG11: -0.6005035184 | FH11: 0.009140926164 | FI11: -1.068354653 | FJ11: -0.8376561676 | FK11: 0.6945617254 | FL11: 1.810793216 | FM11: 0.6975539482 | FN11: 0.09738463632 | FO11: -0.5214825835 | FP11: 0.49714254 | FQ11: 0.8892727672 | FR11: -1.276885028 | FS11: -1.420826165 | FT11: -1.106078301 | FU11: -2.25 | FV11: -0.6015022092 | FW11: -0.1561330555 | FX11: -1.750777543 | FY11: 2.25 | FZ11: 0.2308552189 | GA11: -1.053118611 | GB11: 1.376253774 | GC11: 0.7094615368 | GD11: -2.25 | GE11: 0.706853777 | GF11: -1.037171014 | GG11: -1.275392294 | GH11: -1.192591484 | GI11: -1.183841784 | GJ11: -1.761551478 | GK11: -0.1596257458 | GL11: -0.008350935723 | GM11: -0.8323785671 | GN11: -0.324097767 | GO11: -0.2740386319 | GP11: 2.25 | GQ11: 1.069153949 | GR11: -0.7221254779 | GS11: -0.4197291901 | GT11: -1.275857827 | GU11: -0.8681847956 | GV11: -0.9425275389 | GW11: -0.5650390856 | GX11: -0.2782428484 | GY11: -0.1475268021 | GZ11: -0.2637259979 | HA11: -0.05805475333 | HB11: -1.471540618 | HC11: -0.4570572494 | HD11: -2.116500624 | HE11: -0.5763159849 | HF11: -0.1191421823 | HG11: -1.538753289 | HH11: -1.140538805 | HI11: -1.897268835 | HJ11: -1.454213057 | HK11: -1.067764591 | HO11: 0.08306122111 | HP11: 1.946985805 | HQ11: -0.8219231818 | HR11: -0.7861112998 | HS11: 0.5177093921 | HT11: -1.042103689 | HU11: 2.25 | HV11: -0.3187465088 | HW11: 0.7057791711 | HX11: 0.05288790566 | HY11: 0.1555279292 | HZ11: -2.25 | IA11: 1.375796664 | IB11: -0.4569528842 | IC11: 0.4049823299 | ID11: 0.1144513967 | IF11: 1.617572927 | IG11: 0.9635914357 | IH11: -0.4649629699 | II11: -0.4220116187 | IJ11: -0.4148879928 | IK11: 1.108912289 | IL11: 0.7783264352 | IM11: -1.538753289 | IN11: -1.966291118 | IO11: -1.44925525 | IP11: -1.140538805 | IQ11: -0.447435104 | IR11: -1.304318303 | IS11: -0.3061460644 | IT11: -0.09507560138 | IU11: -2.25 | IV11: 0.3607066062 | IW11: -0.9841552536 | IX11: -0.7343020106 | IY11: 0.1181416484 | IZ11: 1.162370614 | JA11: 0.8992942557 | JC11: -1.673613985 | JD11: 1.136920569 | JE11: -1.032796332 | JF11: -1.503715214 | JG11: -2.185664982 | JH11: 0.91438038 | JI11: 1.433957779 | JJ11: 0.1487114001 | JK11: -0.5678541936 | JL11: -0.1498996008 | JM11: 1.196892243 | JN11: 0.1890957381 | JO11: 1.196892243 | JP11: -0.6944282999 | JQ11: -1.67019733 | JR11: -0.7766823512 | JS11: -0.7577609524 | JT11: -1.340464874
A12: E08000034 | B12: E4703 | C12: Kirklees | D12: Kirklees | E12: Metropolitan District | F12: -1.083892037 | G12: -0.4573585601 | H12: -0.6543593521 | I12: -0.5138210222 | J12: -0.3494486576 | K12: -0.4584348715 | L12: -0.6543593521 | M12: -0.5138210222 | N12: 0.04855400351 | O12: 0.1113578921 | P12: 0.3421113062 | Q12: -0.04119294954 | R12: 0.1342089299 | S12: 0.1100271676 | T12: 0.8656379914 | U12: 1.005285947 | V12: -0.4266755305 | W12: 0.870165645 | X12: -0.07075782342 | Y12: 0.4470687227 | Z12: 1.095760299 | AA12: 1.227503434 | AB12: -1.087144252 | AC12: -1.161303765 | AD12: 0.08991806101 | AE12: -0.5028595829 | AF12: -0.686622444 | AG12: 0.5713521154 | AH12: -0.2810301364 | AI12: 0.4301498786 | AJ12: 0.2536457121 | AK12: -0.4123268759 | AL12: -0.0365467238 | AM12: 0.4878811029 | AN12: -0.01829777626 | AO12: 0.5006008469 | AP12: 0.137937032 | AQ12: -0.2849974709 | AR12: -0.4898951567 | AS12: -0.06115190545 | AT12: -1.075630847 | AU12: -0.2814052097 | AV12: -0.2990495992 | AW12: -0.1563435782 | AX12: -0.2597158506 | AY12: -0.1497704033 | AZ12: 0.3376252729 | BA12: 0.4649345752 | BB12: -0.04898946533 | BC12: -0.7818023155 | BD12: -0.6209261939 | BE12: 0.3101748533 | BF12: 0.02023461907 | BG12: -0.6511611923 | BH12: -0.8492766147 | BI12: -0.1675296281 | BJ12: 0.2090896804 | BK12: 1.356356836 | BL12: -0.2081012947 | BM12: 0.292153977 | BN12: 0.6369896417 | BO12: -0.3164398905 | BP12: 0.7743727834 | BQ12: 0.131259297 | BR12: -0.4740902649 | BS12: -0.6012948319 | BT12: -1.200153326 | BU12: -0.3148328193 | BV12: -0.1445002163 | BW12: -0.4149123269 | BX12: -0.2688625588 | BY12: -0.3010052856 | BZ12: -0.2341321928 | CA12: 0.3656415277 | CB12: -0.3197669176 | CC12: -0.2750381413 | CD12: -0.2890739506 | CE12: -0.2727505682 | CF12: -0.9487674662 | CG12: -0.5222887202 | CH12: 0.7642865366 | CI12: 0.8907508793 | CJ12: 0.5238970564 | CK12: 1.518072272 | CL12: 0.6218622942 | CM12: 1.801697427 | CN12: 1.238657214 | CO12: 0.9507435033 | CP12: 0.8865264771 | CQ12: 1.448161384 | CR12: 0.5561620128 | CS12: -0.4595853754 | CT12: -0.8213142451 | CU12: -1.014546515 | CV12: 0.384166219 | CW12: -0.7171592295 | CX12: -0.8810157098 | CY12: 1.263738566 | CZ12: -0.9475684624 | DA12: -1.468434602 | DB12: 0.1283622568 | DC12: 0.1026935943 | DD12: 0.09715400767 | DE12: -0.3864197391 | DF12: -0.3377615795 | DG12: -0.3732090304 | DH12: 0.0910763091 | DI12: 0.001701178134 | DJ12: 0.02713571574 | DK12: 0.5112494005 | DL12: -0.2102749889 | DM12: 0.1064552051 | DN12: 0.1215433666 | DO12: -0.2811319136 | DP12: -0.1127795174 | DQ12: -0.1166077119 | DR12: -0.2369164567 | DS12: -0.2555546027 | DT12: -0.01870876382 | DU12: -0.2750445867 | DV12: -0.2765442407 | DW12: -0.510323064 | DX12: 0.07713960235 | DY12: -0.223152393 | DZ12: -0.2114486723 | EA12: 0.6916095813 | EB12: 0.07388724307 | EC12: -0.5594990629 | ED12: 0.1530458762 | EE12: -0.2837635233 | EF12: -0.2210115552 | EG12: 0.6318190502 | EH12: 0.1860149054 | EI12: 0.1174905357 | EJ12: -0.3639773227 | EK12: -0.1717231835 | EL12: -0.5049201941 | EM12: 0.1020638132 | EN12: 0.3880021566 | EO12: -0.4564639109 | EP12: 0.683310255 | EQ12: 0.5675225839 | ER12: 0.5690091652 | ES12: 0.187727946 | ET12: 0.5455199367 | EU12: 0.2170202289 | EV12: 0.6015721888 | EW12: 0.1727290915 | EX12: 0.7565688912 | EY12: -0.337530483 | EZ12: -1.491343153 | FA12: -0.3188655632 | FB12: 0.8639884731 | FC12: 0.8388464856 | FD12: 0.6033445219 | FE12: -0.02420396094 | FF12: -0.3572186807 | FG12: 0.5242606783 | FH12: 0.7130887981 | FI12: -1.068354653 | FJ12: -0.7536888598 | FK12: 0.2779852756 | FL12: 1.092464926 | FM12: -0.350168753 | FN12: -0.06949886132 | FO12: 0.7253560487 | FP12: 0.7284246512 | FQ12: 0.6959145282 | FR12: -0.9237827739 | FS12: -0.7775588481 | FT12: -0.5552319012 | FU12: -0.1747578307 | FV12: 0.8511296799 | FW12: 0.2471465112 | FX12: -0.5808864467 | FY12: -0.7866146266 | FZ12: -0.9316312929 | GA12: -0.7380447839 | GB12: -1.058815281 | GC12: -0.7579011289 | GD12: -0.0333461338 | GE12: -0.1376663632 | GG12: -0.3998093464 | GH12: 0.1340891471 | GI12: -0.7733963467 | GJ12: 0.7683333235 | GK12: -0.7511678852 | GL12: -1.478949334 | GM12: -1.184678509 | GN12: 0.6125476416 | GO12: 0.4660503677 | GP12: -0.1277950696 | GQ12: -0.6710637107 | GR12: 1.05208807 | GS12: -0.0682491195 | GT12: 0.6177996499 | GU12: 0.9478849713 | GV12: -0.6837581858 | GW12: -0.5650390856 | GX12: -0.6559905742 | GY12: 0.6209203241 | GZ12: -0.5486530491 | HA12: -0.4383438203 | HC12: 0.8523873074 | HD12: -0.7155904053 | HE12: -0.9206599554 | HF12: -1.143501016 | HG12: 0.9292732924 | HH12: -0.9393982439 | HI12: -0.4266755305 | HJ12: -0.5182845357 | HK12: -0.3868730275 | HO12: -0.9910464711 | HP12: 0.2271993313 | HS12: 0.5020634913 | HT12: 0.1153167635 | HU12: -0.1842166358 | HV12: -0.3092926439 | HW12: 0.7249558121 | HX12: 0.1809910154 | HY12: -0.3474446693 | HZ12: -0.2402355748 | IA12: -0.8981393351 | IB12: 0.9348893383 | IC12: -0.2901146145 | ID12: -0.1352885841 | IG12: -0.7159714836 | IH12: 1.12351372 | II12: 1.134848932 | IM12: 0.9292732924 | IN12: 0.6046447969 | IO12: 0.8762938722 | IP12: -0.9393982439 | IQ12: -0.7925249719 | IR12: -1.304318303 | IS12: 0.8588397963 | IT12: -0.09507560138 | IU12: -1.420714573 | IV12: -0.4053305675 | IW12: 0.9942983329 | IX12: -0.005093328953 | IY12: -0.59938042 | IZ12: -0.09870831246 | JA12: 0.8992942557 | JB12: 0.5207015296 | JC12: 0.9512181803 | JD12: 0.6902044311 | JE12: 0.3969983597 | JF12: -0.08602198476 | JG12: 0.5669627138 | JH12: 0.91438038 | JI12: -0.9133472917 | JJ12: 0.9460097101 | JK12: -1.382682085 | JM12: -0.6586650077 | JN12: -0.359479238 | JO12: -0.6586650077 | JP12: 0.0111941941 | JQ12: -0.2570536648 | JT12: -0.5960569154
A13: E08000035 | B13: E4704 | C13: Leeds | D13: Leeds | E13: Metropolitan District | F13: -0.3193057832 | G13: -0.487700791 | H13: -0.5779749919 | I13: -0.6512704519 | J13: -0.8392843888 | K13: -1.455408719 | L13: -0.5779749919 | M13: -0.6512704519 | N13: -0.1911504442 | O13: -0.2286366354 | P13: 0.03954132561 | Q13: -0.1706652473 | R13: 0.2341050319 | S13: 0.1067885106 | T13: -0.3341515444 | U13: -0.568450282 | V13: -0.2788159945 | W13: 1.170073021 | X13: -0.5059178806 | Y13: -0.53050301 | Z13: 0.2775341295 | AA13: 1.204589626 | AB13: -1.569896402 | AC13: -0.9876223737 | AD13: -0.316252781 | AE13: -0.5028595829 | AF13: -1.201483211 | AG13: 0.0602816202 | AH13: -0.7668784362 | AI13: -0.3365371745 | AJ13: -0.2148136426 | AK13: -0.6959192024 | AL13: -0.001655550674 | AM13: 0.2369182767 | AN13: -0.1499368454 | AO13: 0.5205432865 | AP13: 0.6365834401 | AQ13: -0.1127031503 | AR13: -1.098302594 | AS13: 0.1502459687 | AT13: -0.4125746962 | AU13: -0.4851505894 | AV13: 0.1560160919 | AW13: -0.1448640559 | AX13: -0.9663095058 | AY13: -0.755738924 | AZ13: -0.1852506141 | BA13: -0.020805328 | BB13: -0.391980454 | BC13: -0.334259742 | BD13: 0.7813952749 | BE13: 0.2212100278 | BF13: 1.203668224 | BG13: 0.4222000836 | BH13: -0.2240560336 | BI13: -1.008515503 | BJ13: -0.5495632544 | BK13: -0.6375634911 | BL13: 0.8627592596 | BM13: -0.1896783205 | BN13: 0.3763456198 | BO13: 1.250734877 | BP13: 0.6269399138 | BQ13: 0.6011074302 | BR13: 0.01942235632 | BS13: 0.2066521792 | BT13: 0.5018345404 | BU13: -0.1154372716 | BV13: -1.332114477 | BW13: -0.8223127976 | BX13: -1.131816245 | BY13: -1.051827387 | BZ13: -1.147547283 | CA13: 0.1782947718 | CB13: -0.1193121166 | CC13: -0.9023147339 | CD13: -0.7652927452 | CE13: -0.8641835335 | CF13: -0.4031207372 | CG13: -0.1126484956 | CH13: 0.6493576155 | CI13: 0.7924775426 | CJ13: 0.1371559957 | CK13: 0.2537176612 | CL13: 0.5532097618 | CM13: 0.7069548755 | CN13: 0.7944867529 | CO13: 0.7235630253 | CP13: 0.5984739493 | CQ13: 0.2101893981 | CR13: 1.08033185 | CS13: 1.065006023 | CT13: 2.25 | CU13: 0.7838832435 | CV13: -0.1024591242 | CW13: -0.2792369556 | CX13: -0.3073246049 | CY13: -0.6790297547 | CZ13: -0.4375638135 | DA13: -0.5560535284 | DB13: -0.501789043 | DC13: -0.7485048357 | DD13: -0.6597578865 | DE13: -0.5723117232 | DF13: -0.6825028882 | DG13: -0.633837762 | DH13: -0.5287923625 | DI13: -0.9491588338 | DJ13: -0.8034618831 | DK13: -0.6577199802 | DL13: -0.8329838634 | DM13: -0.7700784989 | DN13: -0.7620048946 | DO13: -0.8170690989 | DP13: -0.8133456302 | DQ13: -0.2014666767 | DR13: -0.3849074725 | DS13: -0.3751945788 | DT13: 0.05675245976 | DU13: -0.3191575164 | DV13: -0.2673696758 | DW13: -0.5065541571 | DX13: -0.8364040534 | DY13: -0.6985379302 | DZ13: -0.4670515613 | EA13: -0.7736564053 | EB13: -0.7321945882 | EC13: 0.5890192236 | ED13: -0.4650894782 | EE13: 0.1374020061 | EF13: 0.8963738779 | EG13: -0.5464408099 | EH13: -0.3784103554 | EI13: -1.384115398 | EJ13: -1.165745373 | EK13: -1.292911835 | EL13: -1.089340946 | EM13: -0.3226545516 | EN13: 0.5621442001 | EO13: -0.8472891161 | EP13: 0.356344624 | EQ13: -0.2785817876 | ER13: 0.8404603444 | ES13: -0.8411183047 | ET13: -0.3611855583 | EU13: -0.101518874 | EV13: -0.9406220863 | EW13: 0.7953896067 | EX13: 0.01914296925 | EY13: 0.6975329552 | EZ13: -0.1038952707 | FA13: 0.09800629866 | FB13: 0.1393545172 | FC13: 0.9377458243 | FD13: 0.8873084118 | FE13: -0.4322347302 | FF13: 0.7811124087 | FG13: -0.1122019085 | FH13: 0.8552084979 | FI13: -2.25 | FJ13: -0.2694232897 | FK13: -0.5361502669 | FL13: 0.9008312957 | FM13: -0.4373641084 | FN13: -0.2452683576 | FO13: -1.260840832 | FP13: 1.602571574 | FQ13: 0.4415732169 | FR13: 0.532360838 | FS13: 0.3057946446 | FT13: 0.1392507565 | FU13: -0.7414142261 | FV13: -0.8558888347 | FW13: -0.4423638395 | FX13: -0.4349939137 | FY13: -0.2004930173 | FZ13: 0.73988503 | GA13: -0.3278558067 | GB13: -1.076118529 | GC13: 1.272246549 | GD13: 1.487513807 | GE13: -0.3125545339 | GF13: 1.883161795 | GG13: -0.4062251805 | GH13: -0.7135599857 | GI13: -0.9095047106 | GJ13: -0.2984790609 | GK13: 0.6429033947 | GL13: 0.5506716211 | GM13: -0.6173985871 | GN13: -0.9233254563 | GO13: -0.1549421607 | GP13: 0.6344989598 | GQ13: -1.710622619 | GR13: -1.389037505 | GS13: -0.5103186268 | GT13: 0.03451516523 | GU13: -1.767991039 | GV13: -1.699417764 | GW13: -0.4789232311 | GX13: -1.679656337 | GY13: 0.3287702857 | GZ13: -0.9996620068 | HA13: 0.9698340127 | HB13: -0.9789617586 | HC13: -0.7281633843 | HD13: 0.1430559923 | HE13: 0.5352444821 | HF13: 0.5816531736 | HG13: -0.0593408948 | HH13: -1.498668914 | HI13: -0.2788159945 | HJ13: -0.5915602977 | HK13: -0.1321427863 | HO13: 0.08306122111 | HP13: -0.0519049432 | HS13: 0.5587798817 | HT13: 0.4346051641 | HU13: 0.315391585 | HV13: -0.31664565 | HW13: 0.7249558121 | HX13: 0.9798059892 | HY13: 1.00701737 | HZ13: 0.7765833496 | IA13: -0.4283472509 | IB13: 2.25 | IC13: 1.100079274 | ID13: 0.376163069 | IG13: -0.326554262 | IH13: 1.12351372 | II13: 1.134848932 | IM13: -0.0593408948 | IN13: -0.6811569407 | IO13: 0.8762938722 | IP13: -1.498668914 | IQ13: 0.7867678894 | IR13: 0.3411303909 | IS13: 0.6829796836 | IT13: 0.892259858 | IU13: -0.06967099866 | IV13: -0.1921308575 | IW13: -0.7135382145 | IX13: -0.2128280394 | IY13: 0.09343279419 | IZ13: 0.2788815607 | JA13: 1.267969583 | JB13: 2.09739156 | JC13: -0.2779023125 | JD13: 0.2932316769 | JE13: -0.863100228 | JF13: -0.3382123286 | JG13: 1.433692911 | JH13: 0.91438038 | JI13: -0.9133472917 | JJ13: 0.6757390965 | JK13: 0.3150272517 | JM13: -0.2280212535 | JN13: 0.4361846635 | JO13: -0.2280212535 | JP13: -0.8428602356 | JQ13: -0.327292353 | JT13: -0.5960569154
A14: E06000012 | B14: E2003 | C14: North East Lincolnshire UA | D14: North East Lincolnshire | E14: Unitary Authority | F14: 0.2268272553 | G14: -0.09325178957 | H14: -0.7307437123 | I14: -0.7199951667 | J14: -1.537948808 | K14: -1.987145439 | L14: -0.7307437123 | M14: -0.7199951667 | N14: -0.8244481279 | O14: -0.9604849016 | P14: -0.01911672458 | Q14: 0.7719455819 | R14: -0.0766681137 | S14: 0.06170301802 | T14: -0.5053282141 | U14: -0.6910934203 | V14: -0.6595579205 | W14: -0.01812597067 | X14: 0.3782608009 | Y14: 0.1126362878 | Z14: 2.234161926 | AA14: 0.1505544803 | AB14: 0.8245881767 | AC14: 0.09931584639 | AD14: -0.9766693788 | AE14: -0.8173864718 | AF14: -0.5573999353 | AG14: -0.9416787821 | AH14: -1.299916026 | AI14: -1.354642231 | AJ14: -1.569981698 | AK14: 0.3025264014 | AL14: 0.9830961964 | AM14: 1.403531706 | AN14: -0.2794401186 | AO14: 0.900182492 | AP14: -1.207726791 | AQ14: -0.5232987441 | AR14: 0.05051359844 | AS14: 0.7603559333 | AT14: 1.685022738 | AU14: -1.244778488 | AV14: -1.612269248 | AW14: -1.395879096 | AX14: -0.91587673 | AY14: -1.032049619 | AZ14: -0.306086193 | BA14: -0.1489895748 | BB14: -0.2139466575 | BC14: -0.6079727492 | BD14: 0.2714601953 | BE14: -0.4908689102 | BF14: -0.06779845694 | BG14: -0.1807024924 | BH14: -1.055228055 | BI14: -1.549042227 | BJ14: -0.6747671537 | BK14: -0.07773836739 | BL14: -0.6261841439 | BM14: 0.5431611501 | BN14: 1.525646154 | BO14: -0.6058039512 | BP14: 1.128546791 | BQ14: -0.7141264558 | BR14: -1.136238032 | BS14: -0.7865653864 | BT14: -1.714379194 | BU14: -0.7302943663 | BV14: 1.710746244 | BW14: 2.25 | BX14: 2.014028632 | BY14: 1.55145809 | BZ14: 2.25 | CA14: 0.3656415277 | CB14: -0.984961113 | CC14: -1.530804519 | CD14: -1.228684783 | CE14: -1.418833379 | CH14: 0.9486796528 | CI14: 1.742145432 | CJ14: 0.9033430079 | CK14: 1.600369425 | CL14: 1.16809906 | CM14: 0.5502935177 | CN14: 1.388489138 | CO14: 1.514059877 | CP14: 1.481645633 | CQ14: 1.503492013 | CR14: 1.819107614 | CS14: -1.048741592 | CT14: -0.4125987318 | CU14: -0.1653758101 | CX14: 1.148306385 | CY14: 1.263738566 | CZ14: 0.2339368885 | DA14: -0.5423237578 | DB14: -0.736559887 | DC14: -0.9166767798 | DD14: -0.8492202379 | DE14: -0.9516059313 | DF14: -0.8731554738 | DG14: -0.9102461256 | DH14: -1.22283577 | DI14: -1.154032099 | DJ14: -1.190107612 | DK14: -0.7661280836 | DL14: -0.5181797877 | DM14: -0.6313287595 | DN14: -0.9577818074 | DO14: -0.5980120329 | DP14: -0.7602630993 | DQ14: 0.1879930741 | DR14: -0.5660668596 | DS14: -0.3916498527 | DU14: -0.5385014795 | DV14: -0.2724310145 | DW14: -0.7329076077 | DX14: -0.8768786366 | DY14: -0.8266979514 | DZ14: -0.4992240085 | EA14: -0.6806641464 | EB14: -0.697064218 | EC14: -0.5493645829 | ED14: 0.0256535732 | EE14: -0.4640199961 | EG14: -0.7925057674 | EH14: -0.3477217317 | EI14: 2.25 | EJ14: 2.25 | EK14: 2.25 | EL14: 0.9491138387 | EO14: 1.126243082 | EP14: -0.564144657 | EQ14: -0.8610024419 | ER14: -0.07654262876 | ES14: -0.427565587 | ET14: -0.8031104905 | EU14: -0.2429268684 | EV14: -0.7099309674 | EW14: -0.0348244136 | EX14: -0.2051926717 | EY14: 0.4112163363 | EZ14: 0.5048901417 | FA14: 0.7233140915 | FB14: 1.511362834 | FC14: -0.0715259153 | FD14: 0.19558602 | FE14: 0.3968213876 | FF14: 0.5199838703 | FG14: -0.2041110147 | FH14: 2.25 | FI14: -1.283991761 | FJ14: 0.5347429088 | FK14: -0.1425360461 | FL14: -0.2695812392 | FM14: 0.5440524421 | FN14: -0.1917074846 | FO14: 0.9383682739 | FP14: -1.190515429 | FQ14: 0.5886314316 | FR14: -1.307007348 | FS14: -1.443772984 | FT14: -1.469947421 | FU14: -1.882106406 | FV14: -0.791326038 | FW14: 0.3680364021 | FX14: 1.457939352 | FY14: 1.413266604 | FZ14: 1.563978036 | GA14: 0.2399052355 | GB14: 0.5243151468 | GC14: 0.05539216177 | GD14: 1.505241476 | GE14: 0.68318571 | GF14: -2.234898277 | GG14: -0.6704958944 | GH14: -0.2674525913 | GI14: -1.183841784 | GJ14: -0.5530303839 | GK14: 1.818455166 | GL14: 2.25 | GM14: -0.4205232188 | GN14: 2.25 | GO14: -0.003890748681 | GP14: 2.25 | GQ14: 2.25 | GR14: 1.05208807 | GS14: -0.6324132701 | GT14: -0.04513243336 | GV14: 1.191078976 | GX14: 0.5280630836 | GY14: -0.6927487149 | GZ14: -0.3215717612 | HA14: 0.225271082 | HB14: 0.1703889137 | HC14: 0.8523873074 | HD14: 0.2715293139 | HE14: 1.274948601 | HF14: 1.498439623 | HG14: -0.9939113108 | HH14: 0.7357022472 | HI14: -0.6595579205 | HJ14: -0.5549847961 | HK14: 0.2945556 | HO14: 0.9883499314 | HP14: -0.0519049432 | HS14: 0.5548684065 | HT14: -0.1441050619 | HU14: 0.08480317543 | HV14: 1.398180399 | HW14: -1.406644189 | HX14: 2.25 | HY14: -0.006849531542 | HZ14: 1.019517824 | IA14: 0.2964361331 | IB14: -0.6806418129 | IC14: -0.6811066457 | ID14: -0.8253275699 | IE14: 0.2998503448 | IG14: -0.7719114378 | IH14: 1.12351372 | II14: 1.134848932 | IM14: -0.9939113108 | IN14: 0.4353695191 | IO14: 0.1011108314 | IP14: 0.7357022472 | IQ14: -0.447435104 | IR14: -0.3808758417 | IS14: 0.1149059044 | IT14: 1.247713842 | IU14: -1.452423323 | IV14: 0.5780088585 | IW14: 0.9942983329 | IX14: 1.772632298 | IY14: 0.3158148543 | IZ14: 2.25 | JA14: -1.405846104 | JB14: -0.1226746809 | JC14: 0.1084634517 | JD14: 0.1285586252 | JE14: 0.3969983597 | JF14: 1.488824214 | JG14: 0.5669627138 | JH14: 0.91438038 | JI14: 1.433957779 | JJ14: -0.2747125611 | JK14: 1.383014365 | JM14: -1.852418717 | JN14: -1.031314562 | JO14: -1.852418717 | JP14: -0.1142537519 | JQ14: -0.7259240247 | JR14: 1.470231989 | JS14: 0.8080302705 | JT14: -1.578176844
A15: E06000013 | B15: E2004 | C15: North Lincolnshire UA | D15: North Lincolnshire | E15: Unitary Authority | F15: -0.07354591585 | G15: -0.1842784822 | H15: -0.04328447076 | I15: -0.4450963074 | J15: -1.636157695 | K15: 0.5846363905 | L15: -0.04328447076 | M15: -0.4450963074 | N15: 0.1320194566 | O15: 0.05493494109 | P15: 0.2501446288 | Q15: 0.05103016795 | R15: 0.463912506 | S15: -0.1179254424 | T15: 1.367097641 | U15: 0.497304141 | V15: -0.01683562495 | W15: 0.1757485802 | X15: 0.5205596297 | Y15: 0.8072267295 | Z15: -0.8430799721 | AA15: 0.1963820953 | AB15: -0.1684640793 | AC15: -0.5997150751 | AD15: -1.603580486 | AE15: -0.8173864718 | AF15: 0.3183706699 | AG15: -0.3614178593 | AH15: -1.244654425 | AI15: -0.3906444337 | AJ15: -0.3927641452 | AK15: -0.09981154338 | AL15: 2.25 | AM15: 0.797216725 | AN15: 0.5368338449 | AO15: 0.956168061 | AP15: -0.2636242756 | AQ15: 0.3511477305 | AR15: -1.727857152 | AS15: 0.4763645588 | AT15: -1.387122584 | AU15: -0.882638675 | AV15: -0.7379557601 | AW15: -0.6823405755 | AX15: -0.7244251803 | AY15: -0.7150072093 | AZ15: -1.050955726 | BA15: 0.0895345938 | BB15: 0.04687645042 | BC15: 0.900634066 | BD15: 0.71765339 | BE15: -1.232787964 | BF15: -0.04026045229 | BG15: 0.09949771566 | BH15: -1.161738146 | BI15: -1.237213173 | BJ15: -0.6940900534 | BK15: 1.331080298 | BL15: -0.9588722228 | BM15: -0.07355053569 | BN15: 1.102564259 | BO15: -0.3343214766 | BP15: -0.6554419414 | BQ15: 0.05997634467 | BR15: -0.4944689983 | BS15: 0.6455382676 | BT15: 0.03230903301 | BU15: 0.9065546361 | BV15: 1.603917173 | BW15: 1.287992342 | BX15: 1.517497939 | BY15: 1.31757238 | BZ15: 1.590391874 | CA15: 0.1782947718 | CB15: -0.2356868995 | CC15: 0.7530814039 | CD15: 0.897225314 | CE15: 0.8199792682 | CF15: -1.15470455 | CH15: 0.6587880197 | CI15: 1.01319742 | CJ15: 0.6112004882 | CK15: 0.3281541958 | CL15: 0.7867002931 | CM15: 0.9064957758 | CN15: 0.6207284253 | CO15: 0.4622819029 | CP15: 0.3883166644 | CQ15: 0.3634723851 | CR15: 0.4227848358 | CS15: -0.640774121 | CT15: -0.6771055763 | CU15: -0.4761976862 | CV15: -1.506332351 | CX15: 0.2590376438 | CY15: 1.263738566 | CZ15: -0.4049296864 | DA15: 1.054493604 | DB15: -0.2046572828 | DC15: -0.4616318709 | DD15: -0.4146354093 | DE15: 0.05619181646 | DF15: -0.1141158909 | DG15: -0.08278297914 | DH15: -0.459591554 | DI15: -0.1119771654 | DJ15: -0.2597403802 | DK15: -0.09515466353 | DL15: -0.7026565609 | DM15: -0.4887636232 | DN15: 0.134647963 | DO15: -0.7989396379 | DP15: -0.4604108653 | DQ15: 0.2087876242 | DR15: 0.03823777236 | DS15: 0.042829488 | DU15: 0.02573931578 | DV15: 0.2591166864 | DW15: -0.8576059553 | DX15: -0.5953811803 | DY15: -0.7609546631 | DZ15: -0.8357180997 | EA15: -0.5212357239 | EB15: -0.8051371101 | EC15: 0.4246112983 | ED15: -0.4658125922 | EE15: 0.1895592982 | EG15: -0.4265477977 | EH15: -0.6579350802 | EI15: 1.111838152 | EJ15: 0.7817464555 | EK15: 0.9080773096 | EL15: -0.575450948 | EM15: -0.2137942709 | EO15: -0.5717526035 | EP15: -1.369999956 | EQ15: -0.4627766206 | ER15: -1.668268125 | ES15: 0.5556985613 | ET15: 1.091454433 | EU15: 0.0967088266 | EV15: -0.2082383993 | EW15: 1.002943112 | EX15: 0.7290752304 | EY15: -1.466689291 | EZ15: 0.9473649002 | FA15: 0.7233140915 | FB15: -0.03209271415 | FC15: 0.7529406458 | FD15: -0.05834543023 | FE15: 0.5302488463 | FF15: -0.5014504335 | FG15: 0.04677512032 | FH15: 1.373582481 | FI15: -0.5593363367 | FJ15: 2.25 | FK15: 1.030416828 | FL15: 0.4321686737 | FM15: 1.073030894 | FN15: 0.6302869424 | FO15: 1.432156727 | FP15: 0.9647286669 | FQ15: 1.224654202 | FR15: -0.6538133909 | FS15: -1.102649725 | FT15: -1.320015862 | FU15: -1.024287886 | FV15: -0.5086637581 | FW15: -0.4589516672 | FX15: -0.7347942327 | FY15: 0.6508958334 | FZ15: -1.613756743 | GA15: -0.5240521978 | GB15: 0.7033395778 | GC15: -0.5421050726 | GD15: 2.01901633 | GE15: -0.04330720195 | GF15: 2.25 | GG15: -0.258491168 | GH15: 1.039332508 | GI15: -1.04910531 | GJ15: 1.333794963 | GK15: 1.476319805 | GL15: 1.318486063 | GM15: -0.7178359046 | GN15: 0.1893993604 | GO15: -1.346715837 | GP15: 0.9259039152 | GQ15: 2.25 | GR15: 1.05208807 | GS15: -0.5808166206 | GT15: -0.4349176108 | GV15: 0.1589585772 | GX15: 0.8574492185 | GY15: -0.1475268021 | GZ15: 0.5563417015 | HA15: -0.1581262787 | HB15: 0.1703889137 | HC15: 0.8523873074 | HD15: 0.3368176637 | HE15: 0.4437809311 | HF15: 0.8908962635 | HG15: -0.0593408948 | HH15: -0.5731452094 | HI15: -0.01683562495 | HJ15: 0.5909082708 | HK15: -1.068037472 | HO15: 0.4808511666 | HP15: -1.264399809 | HS15: 0.5490011937 | HT15: 0.9933598651 | HU15: 1.103235318 | HV15: 1.398180399 | HW15: -1.406644189 | HX15: 1.547715971 | HY15: -1.36804017 | HZ15: 1.102179783 | IA15: -0.4504232817 | IB15: -0.3575355826 | IC15: -0.5942195277 | ID15: -1.245698891 | IE15: 0.2998503448 | IG15: 0.8162300017 | IH15: -0.4079706521 | II15: -0.3661536436 | IM15: -0.0593408948 | IN15: -0.4466958009 | IP15: -0.5731452094 | IQ15: -0.447435104 | IR15: -0.3808758417 | IS15: 1.354597903 | IT15: 0.02530695689 | IU15: -0.3378581352 | IV15: 0.5442426973 | IW15: 0.9942983329 | IX15: 1.772632298 | IY15: -1.372276572 | IZ15: -0.2678580838 | JB15: -0.5978868702 | JC15: -0.2049221377 | JD15: -0.3678715018 | JE15: 0.8314704726 | JF15: -0.5563483944 | JG15: -0.6005682402 | JH15: 0.91438038 | JI15: -0.04131245106 | JJ15: 1.225289344 | JK15: -1.191224752 | JM15: -0.2809590155 | JN15: -0.9038924225 | JO15: -0.2809590155 | JP15: -0.7261827481 | JQ15: 0.1434956798 | JR15: -1.704661891 | JS15: -1.547709971 | JT15: -1.340464874
A16: E10000023 | B16: E2721 | C16: North Yorkshire | D16: North Yorkshire | E16: County | F16: 1.018720161 | G16: 0.7866729059 | H16: 0.5677904106 | I16: 0.7232238446 | J16: 0.003497312839 | K16: 0.8935827548 | L16: 0.5677904106 | M16: 0.7232238446 | N16: 1.510140672 | O16: 1.511155431 | P16: -1.076663997 | Q16: -1.489790562 | R16: -0.7235078981 | S16: -0.905788452 | T16: 0.6435934127 | U16: 0.3799844216 | V16: 1.229815515 | W16: 0.620313657 | X16: -0.3044245186 | Y16: 0.7557755857 | Z16: -0.6829922433 | AA16: -0.6056011678 | AB16: 2.25 | AC16: 2.25 | AD16: -2.25 | AE16: 1.728766997 | AF16: 0.6374545879 | AG16: 1.194886599 | AH16: 0.766035219 | AI16: 0.6615491984 | AJ16: 0.3396502672 | AK16: 0.7490354656 | AL16: 1.467196148 | AM16: 1.328897561 | AN16: 0.01153218808 | AO16: 0.1251631513 | AP16: 0.9318867173 | AQ16: -0.08442050084 | AR16: -1.049782891 | AS16: -0.04786624206 | AT16: 1.099630396 | AU16: -0.03438339383 | AW16: -0.2518391698 | AX16: 1.72369146 | AY16: 1.645411114 | AZ16: 0.4751818551 | BA16: 1.439324627 | BB16: -0.2890106928 | BC16: -0.4297986649 | BD16: -0.1747329993 | BE16: -0.8067808913 | BF16: 0.4484566483 | BG16: 0.3527853266 | BH16: -0.7523463349 | BI16: 0.2572723174 | BJ16: -0.3407650137 | BK16: 1.044793996 | BL16: 0.5539239526 | BM16: 1.066201761 | BN16: 1.062977295 | BO16: 0.5120800878 | BP16: 0.1062010162 | BQ16: 0.037292553 | BR16: 1.651328613 | BS16: 0.8718125278 | BT16: 0.711866707 | BU16: 1.560553127 | BV16: 1.253830564 | BW16: 1.559995268 | BX16: 1.433419582 | BY16: 1.307704016 | BZ16: 1.4375789 | CA16: 1.307992109 | CB16: 0.3575165068 | CC16: 1.458222425 | CD16: 1.24205604 | CE16: 1.458502746 | CF16: 1.092434104 | CG16: -0.3430466501 | CH16: 0.4160216122 | CI16: -0.3644440074 | CJ16: 0.1715666932 | CK16: -0.2927378115 | CL16: 0.5380912336 | CM16: -0.1598356183 | CN16: -0.1939305378 | CO16: 0.6151213507 | CP16: 0.2540836082 | CQ16: 0.160385191 | CR16: -0.7715728609 | CS16: 1.108196346 | CT16: 0.3721055322 | CU16: -0.2535256221 | CV16: 0.7215941122 | CX16: 1.37125948 | CY16: -0.6368146396 | CZ16: 0.6612357959 | DA16: 0.6296183324 | DB16: 0.7256463898 | DC16: 0.7637089206 | DD16: 0.7465826564 | DE16: 0.5947756165 | DF16: 0.5805943851 | DG16: 0.6110349625 | DH16: 0.43596639 | DI16: 0.3966971116 | DJ16: 0.4361675009 | DK16: 0.6620203639 | DL16: 0.8976422306 | DM16: 0.8434604859 | DN16: 0.5622114189 | DO16: 0.8439949515 | DP16: 0.7460615591 | DQ16: 0.7203172299 | DR16: 1.177106336 | DS16: 1.020688469 | DT16: 0.7928408696 | DU16: 1.38775319 | DV16: 1.166909144 | DW16: 0.8162754021 | DX16: 1.114765356 | DY16: 1.017675411 | DZ16: 0.82272396 | EA16: 0.9581966275 | EB16: 0.7381267757 | EC16: 0.3975780863 | ED16: 0.3876478151 | EE16: 0.5116629379 | EF16: -0.02821153615 | EG16: -0.4706204982 | EH16: -0.5613676376 | EI16: 1.038695696 | EJ16: 0.5758640606 | EK16: 0.7543370237 | EL16: 0.4364947325 | EM16: 0.2504147347 | EN16: 0.5485236966 | EO16: -0.1825036912 | EP16: 0.6911926797 | EQ16: 0.8606048311 | ER16: 0.337570124 | ES16: 0.264288273 | ET16: 0.3405931143 | EU16: 0.4368515693 | EV16: 0.9042297815 | EW16: 0.7953896067 | EX16: 0.5660403902 | EY16: -1.637333102 | EZ16: -1.241393969 | FA16: 0.3064422296 | FB16: 0.1625573045 | FC16: 1.167711248 | FD16: 0.4503635698 | FE16: -0.2433031172 | FF16: 0.287402211 | FG16: 0.7371268676 | FH16: 0.2210751804 | FI16: -0.3563715497 | FJ16: -0.3554212226 | FK16: -0.497935192 | FL16: 0.08926167573 | FM16: -0.06255834921 | FN16: 0.372016016 | FO16: 0.1369762845 | FP16: 0.02927913561 | FQ16: -1.246415168 | FR16: 0.4943635632 | FS16: 0.0468423317 | FT16: 0.1212357916 | FU16: 0.988665903 | FV16: 1.293231147 | FW16: -0.6534013544 | FX16: 0.2388061223 | FY16: 0.6554971494 | FZ16: -1.028375104 | GA16: 0.8268279003 | GB16: 0.2784314054 | GC16: -1.3083212 | GD16: 0.8329980382 | GE16: -0.3718827596 | GF16: 0.3900729041 | GG16: -0.2665389367 | GH16: 0.3900443229 | GI16: -0.5662890995 | GJ16: 0.7683333235 | GK16: 0.01439733074 | GL16: -0.2724024273 | GM16: 2.039609617 | GN16: 0.376153611 | GO16: 1.214082741 | GP16: -1.131550153 | GQ16: 0.1960988452 | GR16: 1.05208807 | GS16: -0.05339802938 | GT16: 0.3613631224 | GU16: 0.877730342 | GV16: -0.3291171663 | GW16: -0.1713658404 | GX16: -0.866915272 | HG16: -0.2497350364 | HH16: 0.3902321024 | HI16: 1.229815515 | HJ16: 1.10496239 | HL16: -0.4121660484 | HM16: 2.25 | HN16: -0.1188832824 | HO16: 0.08306122111 | HP16: -0.9218766297 | HQ16: -0.138711999 | HR16: -0.2885974525 | HX16: 0.285074671 | HY16: -1.158716654 | HZ16: 1.081113365 | IA16: -0.8357740546 | ID16: -1.641141944 | IE16: 0.2998503448 | IF16: -0.3394983127 | IG16: 0.6342650311 | IJ16: 1.126874066 | IK16: 0.1168260995 | IL16: 0.8590994213 | IM16: -0.2497350364 | IN16: 1.29887554 | IO16: -1.44925525 | IP16: 0.3902321024 | IQ16: -0.447435104 | IR16: -0.7067934429 | IS16: 0.6829796836 | IT16: 0.8218246104 | IU16: 0.8800212518 | IV16: 0.3607066062 | IW16: -1.148307182 | IX16: -0.7694096 | IY16: -0.9722431804 | IZ16: -0.04223528476 | JA16: 1.267969583 | JB16: 0.3882276134 | JJ16: 0.1171798285 | JK16: -0.7983288977 | JL16: 0.5162379334 | JM16: -0.394290193 | JN16: -1.311466957 | JO16: -0.394290193 | JP16: -0.7914723674 | JQ16: 1.0652604 | JT16: -0.8498835318
A17: E08000018 | B17: E4403 | C17: Rotherham | D17: Rotherham | E17: Metropolitan District | F17: -0.9200521255 | G17: -1.276598794 | H17: -0.9598967928 | I17: -0.6512704519 | J17: -0.3485803013 | K17: -0.1497007237 | L17: -0.9598967928 | M17: -0.6512704519 | N17: -0.2930810845 | O17: -0.3189269881 | P17: 0.6912986725 | Q17: 0.6262606948 | R17: -1.544712025 | S17: -1.156817594 | T17: -1.243734613 | U17: 0.6439611796 | V17: -0.8350336921 | W17: 0.3994996243 | X17: 0.7094730643 | Y17: 0.369892007 | Z17: 0.1352339262 | AA17: 0.3109511329 | AB17: -1.155919082 | AC17: -1.431736167 | AD17: 0.6318978651 | AE17: -0.7415227351 | AF17: -0.6413826246 | AG17: 0.9004588868 | AH17: 1.236093054 | AI17: 0.1581592579 | AJ17: 0.7684388702 | AK17: -0.4708115531 | AL17: 0.1714858822 | AM17: -0.1349706598 | AN17: 0.7655022838 | AO17: 0.6599858886 | AP17: -0.7602245339 | AQ17: 0.2755238924 | AR17: 0.8750943377 | AS17: 1.581387334 | AT17: -1.005806473 | AU17: -1.163635274 | AV17: -1.080927831 | AW17: -0.9319033869 | AX17: -0.7847873573 | AY17: -1.011158379 | AZ17: 0.08361075062 | BA17: -0.3833911014 | BB17: 0.06208904939 | BC17: 0.3143441775 | BD17: 0.7813952749 | BE17: -0.3246945816 | BF17: -0.7024729303 | BG17: -1.055121603 | BH17: -0.2834412206 | BI17: -0.7808848044 | BJ17: -1.497491352 | BK17: 0.3972349573 | BL17: -0.3892903067 | BM17: 0.9739034253 | BN17: 0.5537541736 | BO17: -1.881012261 | BP17: 0.156101125 | BQ17: 0.1301394341 | BR17: -0.3360505008 | BS17: -0.8969111958 | BT17: -0.2805434993 | BU17: -0.3187094863 | BV17: -0.4246637013 | BW17: -0.1686883542 | BX17: -0.3119156022 | BY17: -0.09814814133 | BZ17: -0.515276262 | CA17: -0.00236135796 | CB17: -0.7345563972 | CC17: -1.343526578 | CD17: -1.581874484 | CE17: -1.467215405 | CH17: 0.4207572235 | CI17: 0.0675647675 | CJ17: 0.4707040696 | CK17: -0.0192382102 | CL17: 0.4041845806 | CM17: 0.8329705481 | CN17: 0.4960288169 | CO17: 0.1846247576 | CP17: 0.07051485727 | CQ17: 0.5912506195 | CR17: 0.7968402488 | CS17: 1.28155292 | CT17: 0.952483821 | CU17: 1.015502513 | CV17: -0.68586153 | CW17: -1.301854521 | CX17: 0.1644017292 | CY17: 1.263738566 | CZ17: -0.3367486191 | DA17: -0.997984606 | DB17: -0.5319300492 | DC17: -0.03619316423 | DD17: -0.2426263545 | DE17: -0.7920341309 | DF17: -0.1785642519 | DG17: -0.4270705255 | DH17: -1.001088429 | DI17: -0.3601890652 | DJ17: -0.5998322586 | DK17: -1.093767015 | DL17: -0.7605185576 | DM17: -0.9477957116 | DN17: -0.8486941647 | DO17: -0.3835877747 | DP17: -0.6127400914 | DQ17: 0.15068318 | DR17: 0.1812605187 | DS17: 0.1361278488 | DT17: 0.294568032 | DU17: 0.3049868806 | DV17: 0.244564 | DW17: -0.8433221997 | DX17: -0.8596697728 | DY17: -0.8869386016 | DZ17: -0.32689657 | EA17: 0.06030653879 | EB17: -0.2637601403 | EC17: -1.498010551 | ED17: -2.173979045 | EE17: -1.947982012 | EG17: 1.71173191 | EH17: 1.541873701 | EI17: -0.8253123168 | EJ17: -0.9278969353 | EK17: -0.9086226343 | EL17: -0.9402968624 | EM17: -0.07591827174 | EN17: 0.7613747179 | EO17: -0.9637506313 | EP17: -0.1636090541 | EQ17: 0.3593773452 | ER17: -0.5321005136 | ES17: 1.446613 | ET17: -0.3663026945 | EU17: 1.405030007 | EV17: 0.3974649368 | EW17: 0.7953896067 | EX17: 1.661064269 | EY17: 1.482507495 | EZ17: -0.07777085298 | FA17: 1.557057815 | FB17: -0.1656005874 | FC17: -0.3205474004 | FD17: 0.09925369586 | FE17: 0.7073848054 | FF17: -0.8621265339 | FG17: -0.3483765786 | FH17: 0.3637662117 | FI17: -0.8793637596 | FJ17: 1.246709385 | FK17: 1.917721425 | FL17: 2.25 | FM17: 1.995006522 | FN17: 1.370801373 | FO17: 2.209017981 | FP17: 0.4021352683 | FQ17: 0.328663928 | FR17: -1.411769999 | FS17: -1.455259004 | FT17: -1.259345008 | FU17: -0.8827944434 | FV17: -1.39823712 | FW17: 2.25 | FX17: 0.2020250189 | FY17: -0.01176078572 | FZ17: 0.04374354057 | GA17: -0.7906906041 | GB17: 0.3255589935 | GC17: 2.25 | GD17: -0.04028155843 | GE17: 0.2839408158 | GF17: 0.753727569 | GG17: -0.6014076592 | GH17: -1.322310861 | GI17: -1.107168942 | GJ17: -1.290371404 | GK17: 0.82168031 | GL17: 0.1518079307 | GM17: -0.4912117727 | GN17: -0.2264111993 | GO17: -0.6231123283 | GP17: 0.9566426001 | GQ17: 1.030978395 | GR17: 1.05208807 | GS17: -0.0682491195 | GT17: 0.6177996499 | GU17: -1.973609499 | GV17: -0.6172801773 | GW17: -0.15084786 | GX17: 0.7049585023 | GY17: -0.1475268021 | GZ17: 0.03824606477 | HA17: -1.863507102 | HB17: 0.49877482 | HC17: -0.4570572494 | HD17: 0.8953171982 | HE17: 2.25 | HF17: 2.090191772 | HG17: -0.6249275025 | HH17: -0.2843094906 | HI17: -0.8350336921 | HJ17: -0.9509180651 | HK17: -1.042132939 | HO17: 0.4808511666 | HP17: -0.5258804976 | HQ17: -2.25 | HR17: -2.092629542 | HS17: 0.5509569313 | HT17: 0.6341604145 | HU17: -0.7414719589 | HV17: -0.4303546361 | HW17: 0.5887482919 | HX17: 0.4414013069 | HY17: 2.25 | HZ17: -0.1897651151 | IA17: 0.379566671 | IB17: 0.08984227461 | IC17: 0.535313007 | ID17: -0.3744215727 | IF17: -0.6166583521 | IG17: 1.082614275 | IH17: 0.3890189629 | II17: 0.4149731421 | IJ17: -0.824767346 | IK17: -0.06751805308 | IL17: -0.7759817601 | IM17: -0.6249275025 | IN17: 0.2303885567 | IO17: 0.8762938722 | IP17: -0.2843094906 | IQ17: -1.697553652 | IR17: -1.304318303 | IS17: 1.194145297 | IT17: 0.4845598426 | IU17: -2.25 | IV17: 1.096337703 | IW17: 0.9942983329 | IX17: 0.1995950886 | IY17: -0.4506628654 | IZ17: -0.755120806 | JB17: -0.6896168847 | JC17: -0.1108294178 | JD17: 0.1299724307 | JE17: -0.4650577024 | JF17: -0.5563483944 | JG17: 1.433692911 | JH17: 0.91438038 | JI17: -0.9133472917 | JJ17: -0.5359741542 | JK17: -1.123171197 | JL17: 0.4814063836 | JM17: 1.33443619 | JN17: 0.2868280208 | JO17: 1.33443619 | JP17: -0.4923540948 | JQ17: -0.5872033696 | JT17: -1.340464874
A18: E08000019 | B18: E4404 | C18: Sheffield | D18: Sheffield | E18: Metropolitan District | F18: -0.5650656505 | G18: -0.9428342542 | H18: -0.3488219114 | I18: -0.1701974481 | J18: -0.6097087796 | K18: -0.5911469754 | L18: -0.3488219114 | M18: -0.1701974481 | N18: -0.453420839 | O18: -0.4694005286 | P18: -0.004893100829 | Q18: 0.2420472332 | R18: -1.039529847 | S18: -0.5977319142 | T18: -1.041417887 | U18: 1.14346041 | V18: -0.9609999281 | W18: -0.3036375111 | X18: 0.2980441945 | Y18: -0.3761495785 | Z18: 0.5443470109 | AA18: -0.170238825 | AB18: -0.5093970049 | AC18: -0.5679608043 | AD18: 0.5646114957 | AE18: -0.7415227351 | AF18: -0.3530135075 | AG18: 1.103812544 | AH18: 1.335571136 | AI18: -0.4816152047 | AJ18: -0.3989451654 | AK18: 0.9788658054 | AL18: 0.2770831796 | AM18: 0.5269926472 | AN18: -1.671027127 | AO18: 0.1102282429 | AP18: 0.2295520484 | AQ18: -0.120169157 | AR18: -0.4654515792 | AS18: 0.2681671398 | AT18: -0.2525829213 | AU18: 0.2938000902 | AV18: 0.3877075147 | AW18: -0.2953647334 | AX18: -0.3104426386 | AY18: -0.4604417529 | AZ18: 1.220027777 | BA18: 0.01650728206 | BB18: 0.8917646711 | BC18: 0.9943010867 | BE18: 0.6131663483 | BF18: -0.232378439 | BG18: -0.3834585878 | BH18: -0.7735206341 | BI18: -0.9232858501 | BJ18: -0.6570327017 | BK18: -0.07840898479 | BL18: -0.00685427838 | BM18: 0.7028606389 | BN18: 0.1967038069 | BO18: 2.25 | BP18: -2.058182355 | BQ18: -0.551300227 | BR18: -0.7969476988 | BS18: -0.857029985 | BT18: -0.4078576369 | BU18: -0.8310895405 | BV18: 0.7519733549 | BW18: 0.9152566442 | BX18: 0.8568644985 | BY18: 0.5860464781 | BZ18: 1.056673336 | CA18: 0.2710990752 | CB18: 0.3427155578 | CC18: 0.09248564411 | CD18: 0.007621849787 | CE18: 0.07074625712 | CF18: 1.092434104 | CG18: -0.2492023213 | CH18: -0.3912601804 | CI18: -0.1201649457 | CJ18: -1.246122955 | CK18: 0.2479758442 | CL18: -0.553928958 | CM18: 0.9625606864 | CN18: 0.04067958888 | CO18: -0.1792739227 | CP18: -0.2098915077 | CQ18: -0.02000161346 | CR18: 1.271128046 | CS18: 1.006261446 | CT18: 0.7161954203 | CU18: -0.05100396754 | CV18: 0.1587229601 | CW18: -0.5509912028 | CX18: -0.4446759844 | CY18: -0.6368146396 | CZ18: -0.6542711514 | DA18: -0.7512519972 | DB18: 0.1372057705 | DC18: -0.1672250216 | DD18: -0.07312428147 | DE18: -0.1026989694 | DF18: -0.3655282191 | DG18: -0.2738044711 | DH18: -0.2563216539 | DI18: -0.6738483736 | DJ18: -0.5476638713 | DK18: -0.485981586 | DL18: -0.4496749828 | DM18: -0.4812300463 | DN18: -0.1355321249 | DO18: -0.4007067033 | DP18: -0.3037218385 | DQ18: 0.7805476413 | DR18: 0.06189659751 | DS18: 0.2565023696 | DT18: 0.8673121968 | DU18: -0.03555387026 | DV18: 0.1824105223 | DW18: -0.1905713413 | DX18: 0.4831580396 | DY18: 0.1646141267 | DZ18: -0.1378528009 | EA18: -0.1426587302 | EB18: -0.2602997655 | EC18: 1.311558959 | ED18: 1.869106971 | EE18: 1.739374048 | EG18: 1.013541383 | EH18: 1.382873968 | EI18: -0.5146404945 | EJ18: -0.0140133355 | EK18: -0.2870776727 | EL18: -0.8732717801 | EM18: 0.1483922061 | EN18: -0.1485475775 | EO18: -0.448411544 | EP18: 0.3801730124 | EQ18: 0.4973394981 | ER18: 0.1677442838 | ES18: 1.09415409 | ET18: 0.1181533991 | EU18: 1.040098269 | EV18: 0.6958442919 | EW18: -0.8650384339 | EX18: -0.2787666096 | EY18: 0.6274543399 | EZ18: 1.214158829 | FA18: 0.09800629866 | FB18: -1.054999343 | FC18: -0.2912743909 | FD18: 0.2748156602 | FE18: 0.3216057443 | FF18: -0.9045136539 | FG18: -0.4944225191 | FH18: -0.7860167472 | FI18: 1.163149741 | FJ18: 1.501111241 | FK18: 0.2779852756 | FL18: -1.610453714 | FM18: -0.4811381115 | FN18: -0.285148626 | FO18: -1.280252957 | FP18: 0.08452297225 | FQ18: -0.1850632283 | FR18: -0.1372636062 | FS18: -0.03149892178 | FT18: 0.1031751359 | FU18: -0.4585405665 | FV18: 0.1904948958 | FW18: -0.09689133192 | FX18: -0.3100957386 | FY18: 0.176464257 | FZ18: -0.4936733059 | GA18: -0.8451812549 | GB18: -0.5149066794 | GC18: 2.25 | GD18: -0.4689485101 | GE18: 0.6068626391 | GF18: 1.222512822 | GG18: -0.7457981733 | GH18: -1.386078464 | GI18: -1.114577712 | GJ18: -1.048815536 | GK18: -0.02625204512 | GL18: -0.3383376124 | GM18: -0.5433338993 | GN18: -0.4508863913 | GO18: 0.7121295353 | GP18: 0.4457552339 | GQ18: -0.1739789414 | GR18: 1.05208807 | GS18: -0.4197291901 | GT18: 0.3613631224 | GU18: -1.163829443 | GV18: -0.8145085293 | GW18: -0.710758921 | GX18: -0.4019625764 | GY18: -0.3472085598 | GZ18: -0.4109663657 | HA18: 1.409694628 | HB18: -2.128312431 | HC18: -1.063795056 | HD18: 0.3368176637 | HE18: -0.1358600126 | HF18: -0.0184157536 | HG18: -0.0593408948 | HH18: -1.656303809 | HI18: -0.9609999281 | HJ18: -0.276534605 | HK18: -0.9153027301 | HQ18: -2.25 | HR18: -1.907419896 | HS18: 0.4433913632 | HT18: -1.121925789 | HU18: -0.5300992501 | HV18: -0.2299852217 | HW18: 0.5734400342 | HX18: -0.8182553119 | HY18: 2.25 | HZ18: -1.102593331 | IA18: 0.8381178926 | IB18: -0.3326812572 | IC18: 0.1877645348 | ID18: -0.3744215727 | IF18: -0.05770367651 | IG18: -1.320477044 | IH18: -1.681113782 | II18: -1.89463768 | IJ18: -0.9297878689 | IK18: 0.5794992913 | IL18: 1.044451996 | IM18: -0.0593408948 | IN18: -0.5731169961 | IO18: -2.25 | IP18: -1.656303809 | IQ18: -0.447435104 | IR18: -0.03288284662 | IS18: 0.1149059044 | IT18: 0.3350629151 | IU18: -0.2732714785 | IV18: 0.2922484545 | IW18: -0.4205991978 | IX18: -0.2808193442 | IY18: -0.227908306 | IZ18: -0.1363302674 | JA18: 0.1212728183 | JB18: -0.2039954297 | JC18: 1.177873876 | JD18: -0.1669917369 | JE18: -0.863100228 | JF18: -0.9244756551 | JG18: -1.773802013 | JH18: -0.9680186636 | JI18: 1.433957779 | JJ18: -0.8062447678 | JK18: -0.5515213406 | JL18: -0.9290746236 | JM18: -0.4650578782 | JN18: 1.045609941 | JO18: -0.4650578782 | JP18: -0.2700799654 | JQ18: -0.5034117927 | JR18: -0.7781843678 | JS18: -0.6740509042 | JT18: -1.097852084
A19: E08000036 | B19: E4705 | C19: Wakefield | D19: Wakefield | E19: Metropolitan District | F19: -0.6196789543 | G19: -1.246256563 | H19: -1.189049873 | I19: -0.7887198815 | J19: -0.6337335451 | K19: -0.5786995317 | L19: -1.189049873 | M19: -0.7887198815 | N19: -0.0330539384 | O19: -0.0826220131 | P19: 0.8938343271 | Q19: 0.5369831928 | R19: -0.4387360026 | S19: -0.8621330096 | T19: -1.012698129 | U19: 1.332915713 | V19: -0.7042779581 | W19: -0.01812597067 | X19: -0.2037843076 | Y19: -1.482349171 | Z19: -0.3628167857 | AA19: 0.5400892081 | AB19: 0.5253803744 | AC19: -0.2185655332 | AD19: -0.8681272214 | AE19: -0.5028595829 | AF19: -1.320980042 | AG19: 0.03523982017 | AH19: -0.6095008893 | AI19: -0.3219654603 | AJ19: -0.7305036223 | AK19: -0.6380461305 | AL19: 0.1551554476 | AM19: -0.4089754584 | AN19: 0.6096186931 | AO19: 0.2134045828 | AP19: 0.8225899421 | AQ19: 0.5980749006 | AR19: 0.1494583394 | AS19: 0.2550961904 | AT19: -0.4548249404 | AU19: -1.32531756 | AV19: -0.8282027726 | AW19: -1.297992946 | AX19: -1.221531163 | AY19: -0.7380271066 | AZ19: -0.1476177869 | BA19: -0.05646664417 | BB19: -0.6914135297 | BC19: -2.25 | BD19: 0.01649265555 | BE19: -1.121163001 | BF19: 0.486866348 | BG19: 0.04987850907 | BH19: -1.120478213 | BI19: -1.299229426 | BJ19: -1.592753222 | BK19: -0.3598990499 | BL19: -0.3965720308 | BM19: 0.1622486616 | BN19: 0.4297578796 | BO19: 0.5205844043 | BP19: 0.4282458445 | BQ19: -0.771843343 | BR19: -0.2938768204 | BS19: 0.230828179 | BT19: -0.5962930414 | BU19: -0.3612706898 | BV19: -0.2349995569 | BW19: -0.5158180082 | BX19: -0.3677179283 | BY19: -0.4856950232 | BZ19: -0.2343102808 | CA19: 0.08716219384 | CB19: -0.7412934057 | CC19: 0.1186740591 | CD19: -0.2923542 | CE19: -0.0499907411 | CF19: 1.092434104 | CG19: 1.705143596 | CH19: 0.8487106042 | CI19: 0.5230569509 | CJ19: 0.9575481519 | CK19: 0.9823817824 | CL19: 0.8352847178 | CM19: 1.242840489 | CN19: 0.8962161724 | CO19: 0.7833750046 | CP19: 0.6680541536 | CQ19: 0.4804461846 | CR19: -0.3447458618 | CS19: 0.8895436594 | CT19: 0.1173825144 | CU19: -0.3108049223 | CV19: -0.6517966096 | CX19: 0.6484729496 | CY19: 1.263738566 | CZ19: -0.7085939504 | DA19: -1.330902308 | DB19: -0.5755963794 | DC19: -0.3996239628 | DD19: -0.4896689374 | DE19: -0.8835414036 | DF19: -0.6694491985 | DG19: -0.7793180304 | DH19: -0.6411465353 | DI19: -0.7259087814 | DJ19: -0.7281835874 | DK19: -0.9871779119 | DL19: -0.9197701188 | DM19: -0.9999598499 | DN19: -0.930766962 | DO19: -0.6305535623 | DP19: -0.7928357208 | DQ19: -0.09702277348 | DR19: 0.1560376259 | DS19: 0.009385719427 | DT19: -0.3247245894 | DU19: 0.1474174045 | DV19: -0.1099139741 | DW19: -0.6877024437 | DX19: -0.3855785727 | DY19: -0.5501357513 | DZ19: -0.5850654148 | EA19: -0.1567981977 | EB19: -0.5007247117 | EC19: 0.1489652666 | ED19: 0.1651707691 | EE19: 0.1478572693 | EG19: 0.4525348373 | EH19: 0.4787384701 | EI19: -0.2160009319 | EJ19: -0.4451710919 | EK19: -0.3746977874 | EL19: -0.04923702588 | EM19: -0.3403107475 | EN19: 0.1884990688 | EO19: -0.9078460484 | EP19: -0.2578478951 | EQ19: 0.1552852225 | ER19: -0.5097551425 | ES19: 0.4966679038 | ET19: 0.5078036966 | EU19: 0.5873842093 | EV19: 0.07317100543 | EW19: -0.2423779187 | EX19: 0.09518426559 | EY19: -1.079988042 | EZ19: 0.1937296132 | FA19: 0.3064422296 | FB19: -0.5353812876 | FC19: 0.6080830411 | FD19: -0.1122981723 | FE19: -0.1489371431 | FF19: 0.5199838703 | FG19: -0.2084400482 | FH19: -1.322520158 | FI19: -0.4886971142 | FJ19: -0.870259221 | FK19: -0.4179022615 | FL19: -0.3804159678 | FM19: 1.003569577 | FN19: 0.772554457 | FO19: 0.4945849201 | FP19: 0.1957113242 | FQ19: -0.3488263213 | FR19: -1.559736336 | FS19: -1.501289665 | FT19: -1.482734856 | FU19: -1.024287886 | FV19: -0.447504372 | FW19: -0.3268386517 | FX19: 0.1394932695 | FY19: 0.4086661199 | FZ19: -1.192985606 | GA19: -0.3278558067 | GB19: -0.5988633724 | GC19: -0.664632132 | GD19: 0.8217500077 | GE19: 0.2942756989 | GF19: -0.5680595122 | GG19: -0.1028501737 | GH19: -0.9238778883 | GI19: -0.7963438007 | GJ19: -1.048815536 | GK19: -0.1981491542 | GL19: -0.3238110714 | GM19: 1.689247932 | GN19: 0.6533703986 | GO19: -0.6087913212 | GP19: -0.2778726364 | GQ19: 0.4884119669 | GR19: 1.05208807 | GS19: -0.3022120722 | GT19: 0.6177996499 | GU19: -0.3534458933 | GV19: -0.1425528679 | GW19: -0.3793534218 | GX19: 0.2332173608 | GY19: 0.3287702857 | GZ19: 0.1924451163 | HA19: -1.724439783 | HB19: 0.6629677732 | HC19: 0.8523873074 | HD19: 0.1430559923 | HE19: 0.1839210028 | HF19: -0.0184157536 | HG19: -0.0593408948 | HH19: -0.1176058238 | HI19: -0.7042779581 | HJ19: -0.06730105442 | HK19: -1.239221515 | HQ19: -1.89230851 | HR19: -1.942639947 | HS19: 0.4785946401 | HT19: 0.6740714645 | HU19: -0.3379422422 | HV19: 1.398180399 | HW19: -1.406644189 | HX19: -1.406027176 | HY19: -0.982282461 | HZ19: 0.6429970652 | IA19: -0.1012491349 | IB19: 0.7112004097 | IC19: 0.4049823299 | ID19: -0.1352885841 | IF19: 0.1513927671 | IG19: -0.1095611929 | IH19: -0.4717054575 | II19: -0.8281497932 | IJ19: -0.7155006159 | IK19: -0.7391375784 | IL19: -1.382038527 | IM19: -0.0593408948 | IN19: 0.1009353515 | IO19: 0.8762938722 | IP19: -0.1176058238 | IQ19: -1.113606807 | IR19: -1.01376562 | IS19: 1.194145297 | IT19: 0.496872946 | IU19: -0.7819513305 | IV19: 0.8274199605 | IW19: 0.9942983329 | IX19: 1.772632298 | IY19: -0.6241871144 | IZ19: 0.5069757651 | JA19: 1.742795227 | JB19: -0.3522409938 | JC19: 0.1943006087 | JD19: -1.835757865 | JE19: 0.8314704726 | JF19: 0.05732941962 | JG19: 1.433692911 | JH19: 0.91438038 | JI19: -0.9133472917 | JJ19: -0.5224606235 | JK19: -1.244760214 | JL19: 1.28701057 | JM19: -0.4523869424 | JN19: -0.454823259 | JO19: -0.4523869424 | JP19: -0.8720203019 | JQ19: -0.3241286132 | JR19: -0.3759428213 | JS19: -0.3356698652 | JT19: -1.340464874
A20: E06000014 | B20: E2701 | C20: York UA | D20: York | E20: Unitary Authority | F20: 0.9094935534 | G20: 0.1798282883 | H20: 0.2622529699 | I20: 0.4483249853 | J20: 0.3585865955 | K20: 0.02620669206 | L20: 0.2622529699 | M20: 0.4483249853 | N20: 1.279956063 | O20: 1.261526602 | P20: 0.8065762919 | Q20: -0.4577699403 | R20: -0.5820587924 | S20: -1.103212149 | T20: 0.9379697735 | U20: 0.3057762313 | V20: 0.4510945183 | W20: 0.107140219 | X20: -0.026923743 | Y20: 1.193110308 | Z20: -0.6118421416 | AA20: -0.2389802475 | AB20: 1.423938548 | AC20: 1.683923625 | AD20: 0.6410987871 | AE20: 1.728766997 | AF20: 1.321068501 | AG20: 0.2002981857 | AH20: -0.278329264 | AI20: -1.143339054 | AJ20: -1.852946644 | AK20: -1.015487663 | AL20: 1.086330009 | AM20: 1.445155664 | AN20: 0.06448365846 | AO20: -0.1676008354 | AP20: 0.6304890725 | AQ20: -0.1068236188 | AR20: 0.0752274359 | AS20: 0.5928088278 | AT20: 2.25 | AU20: -0.03433133524 | AW20: -0.2518335012 | AX20: 1.617655687 | AY20: 0.7455054019 | AZ20: 0.4808631191 | BA20: 0.8674723682 | BB20: 0.3339873301 | BC20: 0.6597505537 | BD20: 0.08023454049 | BE20: 0.8694758033 | BF20: 1.251234998 | BG20: 1.202579491 | BH20: 0.6157869447 | BI20: 0.6377880879 | BJ20: -0.9149239452 | BK20: -0.3867950087 | BL20: 1.30406141 | BM20: 1.304329682 | BN20: 0.2236494834 | BO20: 0.5120800878 | BP20: 0.1062010162 | BQ20: 0.037292553 | BR20: 1.567431588 | BT20: 1.260474651 | BU20: 0.2327106067 | BV20: 0.1068324634 | BW20: 0.1208584386 | BX20: 0.1254598198 | BY20: 0.4311274552 | BZ20: -0.1875841448 | CA20: 0.8670522561 | CB20: 0.6939161829 | CC20: 1.544363624 | CD20: 1.265001351 | CE20: 1.443092095 | CF20: 1.092434104 | CG20: -0.3430466501 | CH20: 0.4160216122 | CI20: -0.3644440074 | CJ20: 0.1715666932 | CK20: -0.2927378115 | CL20: 0.5380912336 | CM20: -0.1598356183 | CN20: -0.1939305378 | CO20: 0.6151213507 | CP20: 0.2540836082 | CQ20: 0.160385191 | CR20: -0.7715728609 | CS20: 1.108196346 | CT20: 0.3721055322 | CU20: -0.2535256221 | CV20: 1.179982546 | CX20: 1.359697421 | CY20: -0.73069688 | CZ20: -0.5423783574 | DA20: 0.3580428374 | DB20: 0.3573054093 | DC20: 0.006083737348 | DD20: 0.1731987346 | DE20: 1.771597747 | DF20: 0.203802508 | DG20: 0.7823434412 | DH20: 1.675595646 | DI20: -0.243414068 | DJ20: 0.3495731663 | DK20: -0.2553318273 | DL20: 0.1573948178 | DM20: 0.00275452292 | DN20: -0.1084737926 | DO20: -0.06346885568 | DP20: -0.06840667224 | DQ20: 0.1483023375 | DR20: 1.346583633 | DS20: 0.8754709311 | DT20: 0.08366764391 | DU20: 1.343994969 | DV20: 0.8329941558 | DW20: -0.06169162272 | DX20: 0.5051538891 | DY20: 0.2758827791 | DZ20: 0.1200894704 | EA20: 0.4791015358 | EB20: 0.1759624132 | EC20: 0.8213750238 | ED20: 0.06532714852 | EE20: 0.6336756627 | EG20: 0.2771930709 | EH20: 0.3962128241 | EI20: -0.04486656676 | EJ20: 0.4876864814 | EK20: 0.2096839543 | EL20: -0.6830930729 | EM20: -0.2518547531 | EO20: -0.4307397836 | EP20: -0.2142591661 | EQ20: 0.3008471721 | ER20: -0.5609937013 | ES20: 0.2170144851 | ET20: -0.6535443513 | EU20: -0.6150232096 | EV20: -1.027739082 | EW20: 0.1727290915 | EX20: 1.268587886 | EY20: -1.745757764 | EZ20: -0.6119438427 | FA20: 0.9317500224 | FB20: 0.47915908 | FC20: 0.9052606707 | FD20: -0.972926451 | FE20: 0.01689736089 | FF20: 1.160195613 | FG20: 0.2020827007 | FH20: -1.395592444 | FI20: -2.212782666 | FJ20: -1.668786296 | FK20: -2.003755747 | FL20: 0.4552758213 | FM20: 1.713734448 | FN20: 1.773478849 | FO20: 2.25 | FP20: -0.6177652348 | FQ20: 0.5736083316 | FR20: 1.218047162 | FS20: 1.071510197 | FT20: 0.8563459129 | FU20: 0.988665903 | FV20: -0.8235244487 | FW20: 0.1968676573 | FY20: -0.2228855967 | FZ20: -0.9686820281 | GB20: 0.01641126299 | GC20: -1.317814721 | GE20: -0.05490766924 | GF20: 1.883161795 | GG20: -0.7100949346 | GH20: 0.6587390062 | GI20: -1.253105856 | GJ20: 1.048204468 | GK20: 0.1724136707 | GL20: 0.286263474 | GM20: 2.177776174 | GN20: -0.8952621393 | GO20: 0.3221756804 | GP20: 0.8355208235 | GQ20: -0.9805197176 | GR20: -1.122426479 | GS20: 2.25 | GT20: 1.173937689 | GV20: 0.09711356924 | GX20: 0.685921444 | GY20: 0.3287702857 | GZ20: 1.017128004 | HA20: -0.1867151873 | HB20: 0.8271607264 | HC20: 0.8523873074 | HD20: 0.5377955228 | HE20: -0.0582941829 | HF20: 0.08754418123 | HG20: -0.4381989308 | HH20: 1.087176996 | HI20: 0.4510945183 | HJ20: 0.3861119347 | HK20: -0.5560990453 | HO20: 1.696223917 | HP20: 0.5459500494 | HS20: 0.3749405472 | HT20: 0.6740714645 | HU20: 0.507548593 | HV20: -0.5093994509 | HW20: 0.6358565947 | HX20: -1.486082274 | HY20: -1.983444301 | HZ20: -0.3088890997 | IA20: -0.224722581 | IB20: -0.6806418129 | IC20: -0.5942195277 | ID20: 0.1144513967 | IE20: -0.467721193 | IG20: 0.6620342729 | IH20: -0.7543184728 | II20: -0.7056079538 | IM20: -0.4381989308 | IN20: 0.7373739631 | IO20: 0.8762938722 | IP20: 1.087176996 | IQ20: -0.07365805446 | IR20: -0.03288284662 | IS20: 1.663203008 | IT20: 0.1949950336 | IU20: 0.3934176413 | IV20: 0.9904371652 | IW20: 0.9942983329 | IX20: 1.772632298 | IY20: -1.750233076 | IZ20: -1.883998583 | JA20: -0.5522756073 | JB20: 1.593684096 | JC20: 0.5787324446 | JD20: -0.2882177903 | JE20: 0.3969983597 | JF20: 0.215829595 | JG20: 0.5669627138 | JH20: 0.91438038 | JI20: -0.9133472917 | JJ20: 0.6036669329 | JK20: -1.31462853 | JM20: -0.08019364003 | JN20: -0.08808862154 | JO20: -0.08019364003 | JP20: -0.7495901734 | JQ20: 1.183190075 | JR20: 0.108424936 | JS20: 0.2572862636 | JT20: 0.206476909

Sheet SP_filter (hidden)
A1: Spend per head | B1: code | C1: code | D1: code | E1: SP001 | F1: SP002 | G1: SP003 | H1: SP004 | I1: SP005 | J1: SP006 | K1: SP007 | L1: SP008 | M1: SP009 | N1: SP010 | O1: SP011 | P1: SP012 | Q1: SP013 | R1: SP014 | S1: SP015 | T1: SP016 | U1: SP017 | V1: SP018 | W1: SP019 | X1: SP020 | Y1: SP021 | Z1: SP022 | AA1: SP023 | AB1: SP024 | AC1: SP025 | AD1: SP026 | AE1: SP027 | AF1: SP028 | AG1: SP029 | AH1: SP030 | AI1: SP031 | AJ1: SP032 | AK1: SP033 | AL1: SP034 | AM1: SP035 | AN1: SP036 | AO1: SP037 | AP1: SP038 | AQ1: SP039 | AR1: SP040 | AS1: SP041 | AT1: SP042 | AU1: SP043 | AV1: SP044 | AW1: SP045 | AX1: SP046 | AY1: SP047 | AZ1: SP048 | BA1: SP049 | BB1: SP050 | BC1: SP051 | BD1: SP052 | BE1: SP053 | BF1: SP054 | BG1: SP055 | BH1: SP056 | BI1: SP057 | BJ1: SP058 | BK1: SP059 | BL1: SP060 | BM1: SP061 | BN1: SP062 | BO1: SP063 | BP1: SP064 | BQ1: SP065 | BR1: SP066 | BS1: SP067 | BT1: SP068 | BU1: SP069 | BV1: SP070 | BW1: SP071 | BX1: SP072 | BY1: SP073 | BZ1: SP074 | CA1: SP075 | CB1: SP076 | CC1: SP077 | CD1: SP078 | CE1: SP079 | CF1: SP080 | CG1: SP081 | CH1: SP082 | CI1: SP083 | CJ1: SP084 | CK1: SP085 | CL1: SP086 | CM1: SP087 | CN1: SP088 | CO1: SP089 | CP1: SP090 | CQ1: SP091 | CR1: SP092 | CS1: SP093 | CT1: SP094 | CU1: SP095 | CV1: SP096 | CW1: SP097 | CX1: SP098 | CY1: SP099 | CZ1: SP100 | DA1: SP101 | DB1: SP102 | DC1: SP103 | DD1: SP104 | DE1: SP105 | DF1: SP106 | DG1: SP107 | DH1: SP108 | DI1: SP109 | DJ1: SP110 | DK1: SP111 | DL1: SP112 | DM1: SP113 | DN1: SP114 | DO1: SP115 | DP1: SP116 | DQ1: SP117 | DR1: SP118 | DS1: SP119 | DT1: SP120 | DU1: SP121 | DV1: SP122 | DW1: SP123 | DX1: SP124 | DY1: SP125 | DZ1: SP126 | EA1: SP127 | EB1: SP128 | EC1: SP129
A2: code | D2: Programme | E2: Education | F2: Education | G2: Education | H2: Education | I2: Education | J2: Education | K2: Education | L2: Highways | M2: Highways | N2: Highways | O2: Highways | P2: Highways | Q2: Highways | R2: Highways | S2: Highways | T2: Highways | U2: Highways | V2: Highways | W2: Highways | X2: Highways | Y2: Highways | Z2: Highways | AA2: Highways | AB2: Social Care - Children | AC2: Social Care - Children | AD2: Social Care - Children | AE2: Social Care - Children | AF2: Social Care - Children | AG2: Social Care - Children | AH2: Social Care - Children | AI2: Social Care - Children | AJ2: Social Care - Children | AK2: Social Care - Adults | AL2: Social Care - Adults | AM2: Social Care - Adults | AN2: Social Care - Adults | AO2: Social Care - Adults | AP2: Social Care - Adults | AQ2: Social Care - Adults | AR2: Social Care - Adults | AS2: Public Health | AT2: Public Health | AU2: Public Health | AV2: Public Health | AW2: Public Health | AX2: Public Health | AY2: Public Health | AZ2: Public Health | BA2: Public Health | BB2: Public Health | BC2: Public Health | BD2: Public Health | BE2: Public Health | BF2: Public Health | BG2: Public Health | BH2: Public Health | BI2: Public Health | BJ2: Public Health | BK2: Public Health | BL2: Housing | BM2: Housing | BN2: Housing | BO2: Housing | BP2: Housing | BQ2: Housing | BR2: Housing | BS2: Housing | BT2: Cultural | BU2: Cultural | BV2: Cultural | BW2: Cultural | BX2: Cultural | BY2: Cultural | BZ2: Cultural | CA2: Environmental & Regulatory | CB2: Environmental & Regulatory | CC2: Environmental & Regulatory | CD2: Environmental & Regulatory | CE2: Environmental & Regulatory | CF2: Environmental & Regulatory | CG2: Environmental & Regulatory | CH2: Environmental & Regulatory | CI2: Environmental & Regulatory | CJ2: Environmental & Regulatory | CK2: Environmental & Regulatory | CL2: Environmental & Regulatory | CM2: Environmental & Regulatory | CN2: Environmental & Regulatory | CO2: Environmental & Regulatory | CP2: Environmental & Regulatory | CQ2: Environmental & Regulatory | CR2: Environmental & Regulatory | CS2: Environmental & Regulatory | CT2: Environmental & Regulatory | CU2: Environmental & Regulatory | CV2: Environmental & Regulatory | CW2: Environmental & Regulatory | CX2: Environmental & Regulatory | CY2: Environmental & Regulatory | CZ2: Environmental & Regulatory | DA2: Environmental & Regulatory | DB2: Environmental & Regulatory | DC2: Environmental & Regulatory | DD2: Planning | DE2: Planning | DF2: Planning | DG2: Planning | DH2: Planning | DI2: Planning | DJ2: Planning | DK2: Planning | DL2: Planning | DM2: Police | DN2: Fire | DO2: Central | DP2: Central | DQ2: Central | DR2: Central | DS2: Central | DT2: Central | DU2: Central | DV2: Central | DW2: Central | DX2: Central | DY2: Central | DZ2: Central | EA2: Central | EB2: Other | EC2: Total
A3: code | B3: DCLG Code | C3: Local Authority Name | D3: LA Type | E3: Early years | F3: Primary schools | G3: Secondary schools | H3: Special schools | I3: Services to Young People and other Community Learners | J3: Other Strategic Functions | K3: TOTAL EDUCATION SERVICES | L3: Transport planning, policy and strategy | M3: Capital charges relating to construction projects | N3: Structural maintenance | O3: Environmental, safety and routine maintenance | P3: Winter service | Q3: Street lighting (including energy costs) | R3: Traffic management and road safety: congestion charging | S3: Traffic management and road safety: road safety education and safe routes (including school crossing patrols) | T3: Traffic management and road safety: other | U3: Parking services | V3: Public transport: statutory concessionary fares | W3: Public transport: discretionary concessionary fares | X3: Public transport: support to operators | Y3: Public transport: co-ordination | Z3: Airports, harbours and toll facilities | AA3: TOTAL HIGHWAYS AND TRANSPORT SERVICES | AB3: Childrens social care: Service strategy | AC3: Childrens social care: Commissioning and social work | AD3: Childrens social care: Children looked after | AE3: Childrens social care: Family support services | AF3: Childrens social care: Youth justice | AG3: Childrens social care: Childrens and Young Peoples Safety | AH3: Childrens social care: Asylum seekers | AI3: Childrens social care: Other childrens and families services | AJ3: TOTAL CHILDRENS SOCIAL CARE | AK3: Social care strategy - adults | AL3: Older people (aged 65 or over) including older mentally ill | AM3: Adults aged under 65 with physical disability or sensory impairment | AN3: Adults aged under 65 with learning disabilities | AO3: Adults aged under 65 with mental health needs | AP3: Other adult social care - asylum seekers - lone adults | AQ3: Other adult social care - other | AR3: TOTAL ADULT SOCIAL CARE | AS3: Sexual health services - STI testing and treatment (prescribed functions) | AT3: Sexual health services - Contraception (prescribed functions) | AU3: Sexual health services - Advice, prevention and promotion (non-prescribed functions) | AV3: NHS health check programme (prescribed functions) | AW3: Health protection - Local authority role in health protection (prescribed functions) | AX3: National child measurement programme (prescribed functions) | AY3: Public health advice (prescribed functions) | AZ3: Obesity - adults | BA3: Obesity - children | BB3: Physical activity - adults | BC3: Physical activity - children | BD3: Substance misuse - Drug misuse - adults | BE3: Substance misuse - Alcohol misuse - adults | BF3: Substance misuse - (drugs and alcohol) - youth services | BG3: Smoking and tobacco - Stop smoking services and interventions | BH3: Smoking and tobacco - Wider tobacco control | BI3: Children 5–19 public health programmes | BJ3: Miscellaneous public health services | BK3: TOTAL PUBLIC HEALTH | BL3: Housing strategy, advice, advances, enabling, renewals and licensing | BM3: Homelessness | BN3: Housing benefits: rent allowances and rent rebates - discretionary payments | BO3: Housing benefits administration | BP3: Other council property - travellers sites and non-HRA housing | BQ3: Housing welfare: Supporting People | BR3: Other welfare services | BS3: TOTAL HOUSING SERVICES (GFRA only) | BT3: Archives | BU3: Culture and heritage (excluding Archives) | BV3: Recreation and sport | BW3: Open spaces | BX3: Tourism | BY3: Library service | BZ3: TOTAL CULTURAL AND RELATED SERVICES | CA3: Cemetery, cremation and mortuary services | CB3: Regulatory services: Trading standards | CC3: Regulatory services: Water safety | CD3: Regulatory services: Food safety | CE3: Regulatory services: Environmental protection; noise and nuisance | CF3: Regulatory services: Housing standards | CG3: Regulatory services: Health and safety | CH3: Regulatory services: Port health (excluding levies) | CI3: Regulatory services: Port health levies | CJ3: Regulatory services: Pest control | CK3: Regulatory services: Public conveniences | CL3: Regulatory services: Animal and public health; infectious disease | CM3: Regulatory services: Licensing - Alcohol and entertainment licensing; taxi licensing | CN3: Community safety (Crime reduction) | CO3: Community safety (Safety services) | CP3: Community safety (CCTV) | CQ3: Defences against flooding | CR3: Land drainage and related work (excluding levy / Special levies) | CS3: Land drainage and related work - Levy / Special levies | CT3: Coast protection | CU3: Agriculture and fisheries services | CV3: Street cleansing (not chargeable to Highways) | CW3: Waste collection | CX3: Waste disposal | CY3: Trade waste | CZ3: Recycling | DA3: Waste minimisation | DB3: Climate change costs | DC3: TOTAL ENVIRONMENTAL AND REGULATORY SERVICES | DD3: Building control | DE3: Development control | DF3: Planning policy | DG3: Environmental initiatives | DH3: Economic development | DI3: Community development | DJ3: Economic research | DK3: Business Support | DL3: TOTAL PLANNING AND DEVELOPMENT SERVICES | DM3: TOTAL POLICE SERVICES | DN3: TOTAL FIRE AND RESCUE SERVICES | DO3: Coroners court services | DP3: Other court services | DQ3: Corporate and democratic core | DR3: Local tax collection: council tax discounts - locally funded | DS3: Local tax collection: council tax support administration | DT3: Local tax collection: other | DU3: Emergency planning | DV3: Central services to the public: other | DW3: Non-distributed costs - retirement benefits | DX3: Non-distributed costs - costs of unused shares of IT facilities and other assets | DY3: Non-distributed costs - depreciation / impairment of surplus costs etc | DZ3: Non-distributed costs - revenue expenditure on surplus assets | EA3: TOTAL CENTRAL SERVICES | EB3: TOTAL OTHER SERVICES (exclude Public Health) | EC3: TOTAL SERVICE EXPENDITURE
A4: E08000016 | B4: E4401 | C4: Barnsley | D4: Metropolitan District | E4: 0.3384234405 | F4: 1.208557167 | G4: 1.870583967 | H4: -0.8560878785 | I4: 0.3546064322 | J4: 1.010367762 | K4: 1.844811376 | L4: -0.6476184177 | N4: 1.131265927 | O4: 0.01075452726 | P4: 0.6232883422 | Q4: 0.1210719387 | R4: -0.08796024686 | S4: -0.8013454512 | T4: -0.2037426191 | U4: 0.3890973213 | V4: -1.093065274 | W4: 2.25 | X4: -0.8357624767 | Y4: -0.4586193023 | Z4: 0.05625194524 | AA4: -0.08557216457 | AB4: 0.07760212972 | AC4: 0.504530462 | AD4: -0.8056659139 | AE4: -0.3362711641 | AF4: 0.9250038315 | AG4: 0.09762915082 | AH4: -0.6353227821 | AI4: 0.6842650575 | AJ4: -0.2835968756 | AK4: 0.6625126269 | AL4: -0.03693239928 | AM4: -1.070107899 | AN4: -0.3928219813 | AO4: 0.8394826507 | AP4: -0.3389026767 | AQ4: -1.178132826 | AR4: -0.471852061 | AS4: -0.7698191825 | AT4: 1.621684981 | AU4: 0.3210041667 | AV4: 1.040276073 | AW4: -0.5754523658 | AX4: -0.3865787546 | AY4: -0.5033652096 | AZ4: -0.1601938671 | BA4: 0.6678532152 | BB4: -0.7946266675 | BC4: -0.6803044917 | BD4: -0.3958490989 | BE4: -0.1500126114 | BF4: -0.7949122337 | BG4: 2.25 | BH4: -0.146808633 | BI4: 0.7205673965 | BJ4: 1.758122167 | BK4: 0.5633942431 | BL4: -0.7789696161 | BM4: -0.3870576766 | BN4: -0.58611318 | BO4: -0.2104396454 | BP4: -0.5969039676 | BQ4: 0.2364859128 | BR4: -0.2954347273 | BS4: -0.2926087823 | BT4: 0.4070080155 | BU4: 0.2968839781 | BV4: -0.1719307174 | BW4: -0.1085878527 | BX4: -0.3382572757 | BY4: -1.153000855 | BZ4: -0.3610809491 | CA4: 1.441705515 | CB4: -0.4979710064 | CC4: -0.2281699239 | CD4: 0.1573843741 | CE4: 0.6641322102 | CF4: -0.644959687 | CG4: 0.219376969 | CH4: 0.002059654478 | CI4: -0.2409228024 | CJ4: 0.597118418 | CK4: -0.4668164867 | CL4: 2.25 | CM4: -0.6430615671 | CN4: 0.1607221562 | CO4: 1.626379852 | CP4: -0.5384969062 | CQ4: -0.500335937 | CR4: -0.4302266324 | CS4: -0.186236814 | CT4: -0.2759622356 | CU4: 0.2237041351 | CV4: -0.193167291 | CW4: 0.7063854273 | CX4: 0.6884646351 | CY4: -0.5568258366 | CZ4: -1.041031559 | DA4: -0.4793120144 | DB4: -0.4396796307 | DC4: 0.5415076998 | DD4: 1.687873592 | DE4: 0.3900042256 | DF4: 1.038855894 | DG4: -0.03102406993 | DH4: -0.6877321001 | DI4: 2.25 | DJ4: 2.25 | DK4: 2.25 | DL4: 1.496631413 | DM4: -0.08438259321 | DN4: -0.3141114291 | DO4: 1.047186127 | DP4: -0.2258610743 | DQ4: 0.8034807361 | DR4: -0.1824822795 | DS4: 2.25 | DT4: 0.3643951785 | DU4: -0.7396547333 | DV4: 1.364678265 | DW4: -0.7913230739 | DX4: -0.1004779276 | DZ4: -0.2189942408 | EA4: 0.839990303 | EB4: -0.4720809248 | EC4: 0.665071593
A5: E08000032 | B5: E4701 | C5: Bradford | D5: Metropolitan District | E5: 2.197558647 | F5: 1.175671647 | G5: 1.313532758 | H5: 0.05051803528 | I5: -0.5603512158 | J5: 0.8921325781 | K5: 1.697761786 | L5: -0.6902873734 | N5: -0.3519131436 | O5: 1.204841757 | P5: 0.5283223806 | Q5: 0.2545192966 | R5: -0.08796024686 | S5: 2.203994787 | T5: -0.5189345703 | U5: 0.006387510301 | V5: -1.093065274 | W5: -0.3266060424 | X5: -0.7224344293 | Y5: -0.4586193023 | Z5: 0.05625194524 | AA5: -0.5253110651 | AB5: -0.5650027015 | AC5: -0.2944038666 | AD5: 0.6636463889 | AE5: 1.358769978 | AF5: -0.543834505 | AG5: -0.1601768415 | AH5: -0.4669932414 | AI5: 0.2520503602 | AJ5: 0.278623517 | AK5: -0.3494278317 | AL5: -0.8092883239 | AM5: -1.019524112 | AN5: -0.7074726781 | AO5: -0.4123559139 | AP5: 0.1747333462 | AQ5: -0.2990140961 | AR5: -1.154175985 | AS5: -0.3064396054 | AT5: 0.4483925379 | AU5: -0.2877153121 | AV5: -1.456944728 | AW5: -0.454433609 | AX5: -0.4197001138 | AY5: 0.1741594073 | AZ5: 0.3456620608 | BA5: 0.3809386985 | BB5: 0.7519613184 | BC5: 1.873764111 | BD5: 1.416855591 | BE5: -0.3658638555 | BF5: -0.2051637495 | BG5: -0.3810161026 | BH5: -0.4224569909 | BI5: 0.8325205475 | BJ5: -0.01006425727 | BK5: 0.197338983 | BL5: -0.9766735371 | BM5: -0.1332002596 | BN5: 0.4575236809 | BO5: 0.1417218091 | BP5: -0.2495357097 | BQ5: 1.232848042 | BR5: -0.2954347273 | BS5: 0.4265578066 | BT5: 1.044777921 | BU5: 0.4476945939 | BV5: -0.7847343065 | BW5: 0.3275572603 | BX5: 0.0757469159 | BY5: -1.133758484 | BZ5: -0.3256854945 | CA5: -0.7862113483 | CB5: -0.6511263283 | CC5: -0.2281699239 | CD5: -0.2789958399 | CE5: 0.8316927692 | CF5: 2.25 | CG5: -0.09065525616 | CH5: 0.002059654478 | CI5: -0.1959730772 | CJ5: -0.7973335417 | CK5: -0.1521994922 | CL5: -0.3317203581 | CM5: -1.002158671 | CN5: 0.63872905 | CO5: -0.6446217518 | CP5: 0.5134308551 | CQ5: 0.9517122022 | CR5: -0.4302266324 | CS5: -0.186236814 | CT5: -0.2759622356 | CU5: 0.2237041351 | CV5: -0.1441337604 | CW5: -0.2305112054 | CX5: 0.3042877305 | CY5: -0.422192348 | CZ5: 0.2671015627 | DA5: -0.4793120144 | DB5: 2.010044764 | DC5: 0.04890743165 | DD5: -0.7472311704 | DE5: -1.033983565 | DF5: -0.1386146742 | DG5: -0.4894190197 | DH5: 2.045072375 | DI5: 2.25 | DJ5: -0.0917332001 | DK5: 0.6843903847 | DL5: 2.157696705 | DM5: -0.08438259321 | DN5: -0.3141114291 | DO5: -1.230614235 | DP5: 0.7885352135 | DQ5: -0.5333354549 | DR5: -0.1824822795 | DS5: 1.005504714 | DT5: 0.04270210576 | DU5: -0.4227326864 | DV5: 0.1094058709 | DW5: -0.1555074759 | DX5: -0.1004779276 | DZ5: -2.25 | EA5: -0.4529569257 | EB5: -0.4720809248 | EC5: 0.5002430199
A6: E08000033 | B6: E4702 | C6: Calderdale | D6: Metropolitan District | E6: 1.518043393 | F6: -0.07562143016 | G6: -0.1079495546 | H6: -0.4909967339 | I6: -0.2987634723 | J6: -0.02115540131 | K6: -0.0003693340829 | L6: -0.5476517203 | N6: 0.07060718645 | O6: 0.1077930788 | P6: 0.9166623433 | Q6: -0.04556258931 | R6: -0.08796024686 | S6: 0.6027088899 | T6: 0.08150173119 | U6: -0.03664306296 | V6: -1.093065274 | W6: -0.3266060424 | X6: -0.8357624767 | Y6: -0.4586193023 | Z6: 0.05625194524 | AA6: -0.9191936285 | AB6: -0.1014172347 | AC6: 0.3326543298 | AD6: 0.2192668033 | AE6: -0.9907353493 | AF6: -0.3544428318 | AG6: -0.6108324499 | AH6: -0.5923297617 | AI6: -0.3326886769 | AJ6: -0.3526257868 | AK6: -0.2177404576 | AL6: -0.1726429902 | AM6: 0.2843056236 | AN6: -0.6151786821 | AO6: -0.7766806249 | AP6: -0.0946251768 | AQ6: -0.1691140457 | AR6: -0.5873398057 | AS6: 0.7808016132 | AT6: -1.027170848 | AU6: -0.5848582914 | AV6: -1.756938605 | AW6: -0.2752399404 | AX6: -0.4537166449 | AY6: -0.5033652096 | AZ6: 2.147118859 | BA6: 0.8980932594 | BB6: 0.7089360411 | BC6: 0.7877221447 | BD6: -0.4475070841 | BE6: 1.230088663 | BF6: 0.7498448015 | BG6: 1.143768881 | BH6: 0.01576566253 | BI6: 0.1202131928 | BJ6: -0.956292193 | BK6: -0.3252218715 | BL6: -0.1720483182 | BM6: -0.4756033784 | BN6: -0.58611318 | BO6: -0.2009694582 | BP6: 0.0133375666 | BQ6: -0.6007147955 | BR6: -0.2954347273 | BS6: -0.6293724081 | BT6: 0.02151878863 | BU6: 0.3205061847 | BV6: -0.3407398324 | BW6: 1.610600395 | BX6: 0.064443462 | BY6: -0.4207391555 | BZ6: 0.2624410834 | CA6: -0.09705060334 | CB6: -1.014552907 | CC6: 2.25 | CD6: -0.3799472815 | CE6: 0.2377724476 | CF6: -0.02389612178 | CG6: -0.4603186795 | CH6: 0.002059654478 | CI6: -0.2409228024 | CJ6: -0.5011264261 | CK6: -0.01915346345 | CL6: 0.1188105781 | CM6: 0.1154179556 | CN6: 0.8304202817 | CO6: 1.08371786 | CP6: -0.1890376923 | CQ6: 2.25 | CR6: -0.4302266324 | CS6: -0.186236814 | CT6: -0.2759622356 | CU6: 0.2237041351 | CV6: -0.3251659217 | CW6: 0.476107597 | CX6: 0.3171918462 | CY6: 0.2502613999 | CZ6: 0.9461120363 | DA6: 2.25 | DB6: -0.4396796307 | DC6: 0.7153047436 | DD6: 0.8383651064 | DE6: 0.4634385014 | DF6: 0.2786843516 | DG6: -0.480975828 | DH6: -0.6795311297 | DI6: -0.8766528355 | DJ6: 0.2326779678 | DK6: 0.6008417385 | DL6: -0.4984597968 | DM6: -0.08438259321 | DN6: -0.3141114291 | DO6: -0.1982445764 | DP6: 0.5638858073 | DQ6: -0.1330243044 | DR6: -0.1824822795 | DS6: -0.01049181296 | DT6: -0.5135501448 | DU6: -0.6648792059 | DV6: 0.9432214242 | DW6: -0.2697081898 | DX6: -0.1004779276 | DZ6: -0.2189942408 | EA6: -0.230065799 | EB6: -0.4720809248 | EC6: -0.2672085268
A7: E08000017 | B7: E4402 | C7: Doncaster | D7: Metropolitan District | E7: -0.6263040272 | F7: -0.5556264532 | G7: -0.9420305316 | H7: -0.4822247707 | I7: -0.6605684891 | J7: -0.5983177945 | K7: -1.138014117 | L7: 0.09116521254 | N7: -0.4483270903 | O7: -0.03543114448 | P7: 0.1604477778 | Q7: -0.04009468027 | R7: -0.08796024686 | S7: 0.1923981557 | T7: -0.7286550874 | U7: 0.5627413971 | V7: -1.093065274 | W7: -0.3266060424 | X7: -0.8357624767 | Y7: -0.4586193023 | Z7: 0.05625194524 | AA7: -0.7383183709 | AB7: -0.2333105647 | AC7: 0.806116929 | AD7: 0.7658896209 | AE7: 1.225179708 | AF7: -0.6383275668 | AG7: 1.008954937 | AH7: -0.6353227821 | AI7: -1.112239536 | AJ7: 0.5585301309 | AK7: -0.2970365043 | AL7: 0.2510867868 | AM7: -0.5585014429 | AN7: -0.05212332665 | AO7: -1.111622542 | AP7: -0.323504095 | AQ7: -0.5275997895 | AR7: -0.3914974427 | AS7: 0.2034080867 | AT7: -0.8361420734 | AU7: -0.6948678357 | AV7: 0.2084987173 | AW7: -0.5754523658 | AX7: 0.01938168893 | AY7: 2.25 | AZ7: 1.264808315 | BA7: 0.023335098 | BB7: -0.5148940705 | BC7: -0.6803044917 | BD7: 1.759683756 | BE7: -0.7735546396 | BF7: 2.25 | BG7: 1.877806724 | BH7: -0.5580164533 | BI7: -1.632838461 | BJ7: -1.023766234 | BK7: 0.4383867641 | BL7: 0.1089265807 | BM7: -0.6728948203 | BN7: 0.2838461291 | BO7: -0.4255504943 | BP7: 0.3667806271 | BQ7: 0.5027625574 | BR7: -0.2954347273 | BS7: -0.05524216469 | BT7: -0.2332085778 | BU7: -0.04542773105 | BV7: -0.265771082 | BW7: 0.7542653153 | BX7: 0.3506153135 | BY7: -0.3465185811 | BZ7: 0.01277986566 | CA7: -1.167298535 | CB7: -0.6125554438 | CC7: -0.2281699239 | CD7: 0.1610526678 | CE7: -0.3150763353 | CF7: -0.644959687 | CG7: -0.8171057644 | CH7: 0.002059654478 | CI7: -0.2409228024 | CJ7: 0.4703759502 | CK7: -0.4043653265 | CL7: 0.9816797817 | CM7: -0.08117438349 | CN7: 0.8096252373 | CO7: 2.25 | CP7: 0.02305919966 | CQ7: 1.291611972 | CR7: -0.4630340803 | CS7: 2.25 | CT7: -0.2759622356 | CU7: 0.2237041351 | CV7: -0.05413771972 | CW7: 0.151006974 | CX7: 0.2791361004 | CY7: 0.2502613999 | CZ7: 0.0493195858 | DA7: -0.4793120144 | DB7: -0.4396796307 | DC7: 0.4332884447 | DD7: 0.5268751869 | DE7: -0.486798453 | DF7: -0.5608623754 | DG7: -0.954357443 | DH7: -0.112385695 | DI7: 0.9624132114 | DJ7: 0.3194063869 | DK7: -1.003596733 | DL7: -0.236066863 | DM7: -0.08438259321 | DN7: -0.3141114291 | DO7: -0.8770669746 | DP7: -0.2258610743 | DQ7: -0.1932887005 | DR7: -0.1824822795 | DS7: 0.09095091472 | DT7: 0.46050584 | DU7: -0.02421408353 | DV7: -0.5208462785 | DW7: 0.8622632798 | DX7: 1.03142945 | DZ7: -0.2189942408 | EA7: 0.1212005661 | EB7: -0.6615938067 | EC7: -0.5338718477
A8: E06000011 | B8: E2001 | C8: East Riding of Yorkshire UA | D8: Unitary Authority | E8: -0.5522976867 | F8: -0.6898335147 | G8: 0.1867627201 | H8: -1.319328999 | I8: -0.2670609613 | J8: 0.8090080109 | K8: -0.3216335588 | L8: -0.4952235882 | N8: 1.507929399 | O8: 0.9608266856 | P8: 1.889185168 | Q8: -0.5628419733 | R8: -0.08796024686 | S8: 0.1270548757 | T8: -0.02034630511 | U8: 0.2992626484 | V8: -0.3578752754 | W8: -0.3266060424 | X8: 0.6709606378 | Y8: -0.4586193023 | Z8: 0.05625194524 | AA8: 0.8201992 | AB8: -0.6571470429 | AC8: -1.094973993 | AD8: -0.6838931238 | AE8: -0.4773174802 | AF8: -0.7050248814 | AG8: 0.0372097617 | AH8: -0.6090523358 | AI8: 0.08569328811 | AJ8: -1.309260732 | AK8: -0.561199092 | AL8: -0.1957491816 | AM8: -0.4126056247 | AN8: -1.374957821 | AO8: -0.7886067255 | AP8: -0.3389026767 | AQ8: -0.3440435215 | AR8: -1.103900789 | AS8: -1.118699148 | AT8: 0.2168541009 | AU8: -0.4030160308 | AV8: -0.2200339838 | AW8: -0.3503163914 | AX8: 0.09256198938 | AY8: -0.4157359603 | AZ8: -0.38041426 | BA8: -0.327954227 | BB8: -0.1155102261 | BC8: 0.6925890805 | BD8: -0.8298745998 | BE8: -0.5839384055 | BF8: -0.3158533292 | BG8: -0.4998262987 | BH8: -0.2433826176 | BI8: -0.6055632991 | BJ8: -0.6429790981 | BK8: -1.197779789 | BL8: -0.7035602461 | BM8: -0.6904690003 | BN8: -0.58611318 | BO8: -0.5296739877 | BP8: -0.2710736462 | BQ8: -0.7233727078 | BR8: -0.583350152 | BS8: -0.9178237266 | BT8: 1.424014502 | BU8: 0.02398440573 | BV8: 0.9424189891 | BW8: -1.06933987 | BX8: 0.3946137039 | BY8: -0.2832936474 | BZ8: -0.02492799268 | CA8: 1.211187571 | CB8: 0.4973975589 | CC8: 0.9851010404 | CD8: 0.7473927267 | CE8: -0.4164211656 | CF8: 1.124459044 | CG8: 0.4614021254 | CH8: 0.002059654478 | CI8: 1.132409593 | CJ8: -0.2328311348 | CK8: 0.7158041717 | CL8: 1.189393254 | CM8: 0.1633884696 | CN8: -0.6532503129 | CO8: -0.5763036164 | CP8: -0.5708120979 | CQ8: 1.685018743 | CR8: 2.25 | CS8: -0.186236814 | CT8: 1.420940629 | CU8: -1.401957808 | CV8: -0.2989725474 | CW8: 1.168946249 | CX8: 0.5735268409 | CY8: 0.2502613999 | CZ8: -1.120553713 | DA8: -0.4793120144 | DB8: -0.4396796307 | DC8: 0.5943969753 | DD8: 0.6013075171 | DE8: 0.5885856963 | DF8: -0.249567121 | DG8: -0.4264468815 | DH8: 1.342969527 | DI8: -0.4842675258 | DJ8: -0.3153518808 | DK8: -0.1930047229 | DL8: 0.6648578741 | DM8: -0.08438259321 | DN8: -0.3141114291 | DO8: 0.6642008834 | DP8: -0.2258610743 | DQ8: -0.7341739042 | DR8: -0.1824822795 | DS8: 0.883794719 | DT8: 0.457894018 | DU8: -0.3258740786 | DV8: 1.005561875 | DW8: 1.306491562 | DX8: 2.25 | DZ8: -0.2189942408 | EA8: 0.4914248809 | EB8: -0.3339595746 | EC8: -0.4344515812
A9: E06000010 | B9: E2002 | C9: Kingston upon Hull UA | D9: Unitary Authority | E9: -0.8575966826 | F9: 0.2288489297 | G9: 0.6014573352 | H9: -0.005066826003 | I9: 0.465680245 | J9: -0.9972773144 | K9: 0.2619395571 | L9: 0.2730770606 | N9: -0.8242401048 | O9: -0.2567703016 | P9: -0.7804569019 | Q9: 0.0631576688 | R9: -0.08796024686 | S9: -0.6033628234 | T9: -0.7099705783 | U9: 0.1791098559 | V9: 0.7289438317 | W9: 0.7954455609 | X9: 0.04738369122 | Y9: -0.3795098554 | Z9: 0.2640365705 | AA9: 0.2418902757 | AB9: -0.1975250199 | AC9: 0.7625238812 | AD9: 1.825516425 | AE9: 1.591608516 | AF9: 1.430693013 | AG9: -0.5452121243 | AH9: -0.1267468091 | AI9: -0.07692985704 | AJ9: 1.565803754 | AK9: -0.1691307599 | AL9: 2.25 | AM9: -2.023706505 | AN9: -0.6143209312 | AO9: -0.004895020704 | AP9: 0.1372867954 | AQ9: 0.06698060197 | AR9: 0.9436708588 | AS9: 0.8265898018 | AT9: -0.7545276436 | AU9: -0.4341937739 | AV9: 0.8499336836 | AW9: -0.2233213997 | AX9: -0.4537166449 | AY9: -0.3396937418 | AZ9: -0.9618469053 | BA9: 1.914999622 | BB9: -0.7946266675 | BC9: -0.6803044917 | BD9: 1.840715588 | BE9: 0.7512838502 | BF9: 1.350864345 | BG9: 0.7299794057 | BH9: 0.550400535 | BI9: -0.03504395846 | BJ9: 1.731661544 | BK9: 1.271489955 | BL9: 1.540489165 | BM9: -0.6054733416 | BN9: 2.25 | BO9: 0.9286700772 | BP9: -0.5615596615 | BQ9: 0.2389960074 | BR9: -0.2954347273 | BS9: 0.5848978181 | BT9: 0.2309824341 | BU9: 2.25 | BV9: -0.03773394236 | BW9: 1.750300027 | BX9: 1.741000914 | BY9: -0.8302529734 | BZ9: 1.101812288 | CA9: -0.0178833177 | CB9: 0.3482615065 | CC9: -0.2281699239 | CD9: 1.13080278 | CE9: -1.036213323 | CF9: -0.644959687 | CG9: -0.7220958889 | CH9: 2.25 | CI9: -0.2409228024 | CJ9: 2.25 | CK9: -0.4267243838 | CL9: -0.5842196343 | CM9: -1.079754386 | CN9: 2.25 | CO9: -0.5203628342 | CP9: 2.25 | CQ9: 2.25 | CR9: -0.2465546325 | CS9: -0.186236814 | CT9: -0.2759622356 | CU9: 0.2237041351 | CV9: 0.2135871882 | CW9: -0.04062670728 | CX9: 0.6151477691 | CY9: 1.05495266 | CZ9: 1.640470665 | DA9: -0.4793120144 | DB9: -0.4396796307 | DC9: 1.254105183 | DD9: 0.430550995 | DE9: 0.02045154235 | DF9: 0.3521682553 | DG9: 0.1500120323 | DH9: 2.25 | DI9: 2.033562266 | DJ9: -0.3153518808 | DK9: 0.09946031297 | DL9: 2.25 | DM9: -0.08438259321 | DN9: -0.3141114291 | DO9: -0.3652541231 | DP9: -0.2258610743 | DQ9: 0.1010575536 | DR9: -0.07674510856 | DS9: 2.25 | DT9: -1.062800956 | DU9: -0.08330124481 | DV9: -0.8738074865 | DW9: 0.9724457279 | DX9: -0.1004779276 | DZ9: -0.2189942408 | EA9: 0.3518898528 | EB9: -0.4720809248 | EC9: 0.5927751381
A10: E08000034 | B10: E4703 | C10: Kirklees | D10: Metropolitan District | E10: -0.0360212326 | F10: 0.6499339037 | G10: 0.3094327707 | H10: -0.3925655118 | I10: -0.4302320067 | J10: -0.9436425926 | K10: 0.2264294674 | L10: -0.7572045897 | N10: -0.4164392603 | O10: 0.03546872574 | P10: 1.284648474 | Q10: -0.3468291889 | R10: -0.08796024686 | S10: -0.1682667071 | T10: 0.3260592534 | U10: 0.2895071547 | V10: -1.087623234 | W10: -0.3266060424 | X10: -0.7082275205 | Y10: -0.4586193023 | Z10: 0.05625194524 | AA10: -0.9798477386 | AB10: -0.28643904 | AC10: 0.3028058982 | AD10: 0.304634483 | AE10: 0.6111659587 | AF10: -0.6617558564 | AG10: 0.03065326206 | AH10: -0.2124568998 | AI10: -0.5219552631 | AJ10: 0.0149066604 | AK10: -0.2890005413 | AL10: -0.6505140787 | AM10: -0.009993461241 | AN10: -0.9880900331 | AO10: -0.2884414136 | AP10: -0.3389026767 | AQ10: -0.1161990032 | AR10: -0.9670318026 | AS10: -0.2713165486 | AT10: 1.014592644 | AU10: -0.57799316 | AV10: -0.2329403311 | AW10: 0.5152105047 | AX10: -0.3852359968 | AY10: -0.1846287181 | AZ10: 0.1128190859 | BA10: -0.3010030513 | BB10: 0.656349591 | BC10: -0.6803044917 | BD10: 0.3862334191 | BE10: -0.3943221714 | BF10: -0.7949122337 | BG10: 0.6737897831 | BH10: -0.6382521255 | BI10: -0.307938816 | BJ10: 0.188000806 | BK10: -0.1015882373 | BL10: -0.1551355171 | BM10: -0.2194134951 | BN10: -0.02910476384 | BO10: -0.2404204771 | BP10: -0.2108778749 | BQ10: -0.1363090424 | BR10: -0.2954347273 | BS10: -0.2918669279 | BT10: 0.09084160445 | BU10: 0.5077139245 | BV10: 0.4388513531 | BW10: -0.2562933971 | BX10: -0.2597104254 | BY10: 0.9440486174 | BZ10: 0.2859413764 | CA10: -0.4436577755 | CB10: -0.9535587296 | CC10: 1.304382873 | CD10: -0.3302785853 | CE10: 0.09341569098 | CF10: -0.644959687 | CG10: -0.4635690173 | CH10: 0.002059654478 | CI10: -0.2409228024 | CJ10: -0.7201488029 | CK10: -0.3081828298 | CL10: -0.09561482465 | CM10: -0.9508413767 | CN10: 0.2115234728 | CO10: 0.7930927554 | CP10: -0.2497538413 | CQ10: 0.2193255523 | CR10: 0.2706597543 | CS10: -0.186236814 | CT10: -0.2759622356 | CU10: 0.2237041351 | CV10: -0.06301584245 | CW10: -0.1628050181 | CX10: -0.2014472463 | CY10: 0.3353440551 | CZ10: 0.06556536778 | DA10: -0.4793120144 | DB10: -0.4396796307 | DC10: -0.3350358293 | DD10: -0.3936254787 | DE10: -0.1179859048 | DF10: -0.5282639574 | DG10: 0.5799815699 | DH10: -0.3039807357 | DI10: 0.5522416626 | DJ10: 1.62361429 | DK10: 0.2689306376 | DL10: -0.1112041508 | DM10: -0.08438259321 | DN10: -0.3141114291 | DO10: -0.1829426546 | DP10: -0.2258610743 | DQ10: -0.2192072903 | DR10: 0.8588521727 | DS10: -0.2674499126 | DT10: 0.1036519361 | DU10: -0.3929759486 | DV10: 0.3447261661 | DW10: -0.8236691142 | DX10: -0.1004779276 | DZ10: -0.2189942408 | EA10: -0.4880520684 | EB10: -1.104402964 | EC10: -0.2522070113
A11: E08000035 | B11: E4704 | C11: Leeds | D11: Metropolitan District | E11: -0.498958302 | F11: 0.2747434339 | G11: -0.08842506058 | H11: -1.402446866 | I11: -0.4303956954 | J11: 1.079534663 | K11: -0.02853900913 | L11: -0.5823975818 | N11: -1.049416635 | O11: 0.4335943119 | P11: -0.2152337742 | Q11: 1.965017942 | R11: -0.08796024686 | S11: -0.8037488822 | T11: -0.0009633097736 | U11: 0.1240101842 | V11: -1.093065274 | W11: -0.3266060424 | X11: -0.8357624767 | Y11: -0.4586193023 | Z11: 0.05625194524 | AA11: -0.653069248 | AB11: -0.2410999918 | AC11: 1.583883636 | AD11: 0.4510827012 | AE11: 0.001150859286 | AF11: -0.0682807797 | AG11: -0.6851117813 | AH11: -0.5289716264 | AI11: -0.5213987157 | AJ11: 0.4360898917 | AK11: -0.3199626341 | AL11: 0.2941003743 | AM11: 0.2366061265 | AN11: 1.14859511 | AO11: 0.2360877403 | AP11: -0.2711255862 | AQ11: -2.25 | AR11: 0.1632555505 | AS11: -0.1634219369 | AT11: 0.2640799506 | AU11: -0.3882141378 | AV11: -0.280683323 | AW11: 0.8812548927 | AX11: 0.3082984103 | AY11: -0.1370511027 | AZ11: -0.05238590252 | BA11: 0.1391481504 | BB11: -0.2501861736 | BC11: 1.126497522 | BD11: 0.2341045744 | BE11: 0.009525469673 | BF11: 0.2761493669 | BG11: -0.7612866811 | BH11: -0.1152643667 | BI11: -0.2069202871 | BJ11: -0.3152778334 | BK11: -0.2926321739 | BL11: -1.098890506 | BM11: -0.0915239278 | BN11: 0.6735056693 | BO11: 0.1265695097 | BP11: -0.3007113195 | BQ11: -0.2038443603 | BR11: 0.06482679274 | BS11: -0.2724984115 | BT11: 0.2449829243 | BU11: 1.787291005 | BV11: 0.9809757552 | BW11: 0.3539696869 | BX11: 0.2227525878 | BY11: 0.18815367 | BZ11: 0.8193894041 | CA11: 0.3485523048 | CB11: -0.8030124072 | CC11: -0.2281699239 | CD11: -0.4574216436 | CE11: 0.3541552822 | CF11: 0.1911569265 | CG11: 0.1111157162 | CH11: 0.002059654478 | CI11: -0.2409228024 | CJ11: 0.2754204015 | CK11: -0.4111597814 | CL11: -0.3498366317 | CM11: 0.01241150303 | CN11: -0.5578582802 | CO11: 1.05305762 | CP11: 0.2573670967 | CQ11: 0.7781594101 | CR11: 1.029456257 | CS11: -0.1307400162 | CT11: -0.2759622356 | CU11: 0.2237041351 | CV11: -0.001934025282 | CW11: 0.1106392396 | CX11: -0.2607204405 | CY11: 0.4090585665 | CZ11: 0.8822161747 | DA11: 0.691981779 | DB11: 1.485998608 | DC11: 0.128275987 | DD11: -0.1048613967 | DE11: -0.3102923168 | DF11: 0.06950462346 | DG11: -0.5726548179 | DH11: 0.09193176355 | DI11: 0.1869687101 | DJ11: -0.3153518808 | DK11: -0.1930047229 | DL11: -0.09322713652 | DM11: -0.08438259321 | DN11: -0.3141114291 | DO11: 0.4149981568 | DP11: -2.25 | DQ11: -0.343655718 | DR11: -0.1824822795 | DS11: -0.2820253229 | DT11: -0.06846494162 | DU11: -0.3210140957 | DV11: -2.25 | DW11: 0.386398651 | DX11: -0.1004779276 | DZ11: -0.2189942408 | EA11: -1.371722565 | EB11: -1.372761136 | EC11: -0.2023060836
A12: E06000012 | B12: E2003 | C12: North East Lincolnshire UA | D12: Unitary Authority | E12: -0.2300594617 | F12: -1.56915652 | G12: -1.765447925 | H12: -1.40918707 | I12: 0.7702473207 | J12: 0.938572015 | K12: -1.715253189 | L12: -0.6714276152 | N12: -0.06805616005 | O12: 0.6821607795 | P12: -1.261755325 | Q12: -0.2736199622 | R12: -0.08796024686 | S12: -1.487299677 | T12: 1.534746172 | U12: 0.1458100319 | V12: 0.01462785184 | W12: -0.3266060424 | X12: -0.688921395 | Y12: -0.4586193023 | Z12: 0.05625194524 | AA12: -0.05260669428 | AB12: -0.3802787273 | AC12: -0.8558476505 | AD12: 1.075209319 | AE12: 1.992622335 | AF12: 1.248507645 | AG12: 0.634238533 | AH12: -0.6353227821 | AI12: -0.6141397477 | AJ12: 0.4836433657 | AK12: -0.1492772042 | AL12: 1.668208391 | AM12: -0.8179716334 | AN12: -0.3894629181 | AO12: 1.780402046 | AP12: -0.3389026767 | AQ12: -0.5036270274 | AR12: 0.7921835023 | AS12: -0.8985778223 | AT12: 0.2424436252 | AU12: 0.03839517284 | AV12: -1.756938605 | AW12: 2.25 | AX12: -0.4537166449 | AY12: -0.5033652096 | AZ12: -0.3454044571 | BA12: -0.250796861 | BB12: -0.7946266675 | BC12: -0.6803044917 | BD12: 0.3386508629 | BE12: 2.25 | BF12: 0.2126427752 | BG12: 0.7352410929 | BH12: -0.6382521255 | BI12: 0.8520363135 | BJ12: 0.32085267 | BK12: 0.4015927696 | BL12: 1.995738325 | BM12: -0.6624207263 | BN12: 0.3766950233 | BO12: -0.05155095016 | BP12: -0.2108778749 | BQ12: 0.6981596423 | BR12: -0.2954347273 | BS12: 0.4088297825 | BT12: -0.8259866166 | BU12: 0.2848275403 | BV12: 1.700660968 | BW12: -0.7759267169 | BX12: 0.05149918416 | BY12: -0.4616222757 | BZ12: 0.2086483014 | CA12: -0.8220588422 | CB12: 0.4541727834 | CC12: -0.2281699239 | CD12: 0.7250895012 | CE12: 1.416598373 | CF12: -0.644959687 | CG12: -0.7220958889 | CH12: -2.25 | CI12: -0.2409228024 | CJ12: -0.6398311043 | CK12: 0.03072072698 | CL12: -0.5842196343 | CM12: 0.2241263298 | CN12: 1.397713281 | CO12: -0.5980246577 | CP12: -0.8851342302 | CQ12: -0.6381662904 | CR12: 2.25 | CS12: -0.186236814 | CT12: 1.155494068 | CU12: 0.2237041351 | CV12: -0.1656093318 | CW12: 1.199407634 | CX12: 0.3032349978 | CY12: 0.2502613999 | CZ12: -1.120553713 | DA12: -0.4793120144 | DB12: -0.4396796307 | DC12: 0.3556992415 | DD12: -0.6240112625 | DE12: 0.7943754394 | DF12: -1.362704908 | DG12: 2.181584677 | DH12: 1.278671425 | DI12: -0.6904857574 | DJ12: -0.3153518808 | DK12: 0.678927933 | DL12: 0.7118648627 | DM12: -0.08438259321 | DN12: -0.3141114291 | DO12: 0.9848125786 | DP12: -0.2258610743 | DQ12: -0.4379107034 | DR12: -2.25 | DS12: 0.64109286 | DT12: 0.004819712119 | DU12: -0.002898368786 | DV12: -0.001752865982 | DW12: -0.29294816 | DX12: -0.1004779276 | DZ12: 2.25 | EA12: -0.3503450549 | EB12: -0.4646325894 | EC12: -0.5782732234
A13: E06000013 | B13: E2004 | C13: North Lincolnshire UA | D13: Unitary Authority | E13: -1.228117192 | F13: 0.02801477306 | G13: -1.024129869 | H13: -1.32405684 | I13: -0.3720384777 | J13: -0.5328305776 | K13: -1.050350251 | L13: -0.5081759512 | N13: -0.07308553704 | O13: 0.4348682397 | P13: 1.456903233 | Q13: 0.05175100299 | R13: -0.08796024686 | S13: 0.549082336 | T13: -0.02353314894 | U13: 0.3888931797 | V13: -0.3539191826 | W13: -0.3266060424 | X13: -0.673841893 | Y13: 2.25 | Z13: 0.05625194524 | AA13: 0.3551994547 | AB13: 2.25 | AC13: -1.686174969 | AD13: -0.6638003361 | AE13: 2.212205679 | AF13: 0.0692629342 | AG13: 0.2180252962 | AH13: -0.6353227821 | AI13: 0.1565974246 | AJ13: 0.0394849454 | AK13: -0.3881107517 | AL13: 0.3192440962 | AM13: -1.043120217 | AN13: -2.25 | AO13: -0.4479758509 | AP13: -0.3389026767 | AQ13: 0.8576564862 | AR13: -1.308993597 | AS13: -0.1861314798 | AT13: -0.9746740664 | AU13: -0.5451409947 | AV13: -0.7475153474 | AW13: 0.2618741718 | AX13: 0.5430572335 | AY13: 0.527619734 | AZ13: -0.6082558346 | BA13: 2.094109436 | BB13: -0.1862629044 | BC13: 0.9369576005 | BD13: -0.8410397374 | BE13: 0.7788846052 | BF13: 2.25 | BG13: 0.6174052833 | BH13: 1.388669191 | BI13: -0.3750310504 | BJ13: -0.5528198198 | BK13: -0.322531292 | BL13: 0.3304739308 | BM13: -0.401067144 | BN13: 0.01417658251 | BO13: -0.7259901575 | BP13: -0.2546900876 | BQ13: -0.3362977636 | BR13: -0.2954347273 | BS13: -0.4790513065 | BT13: -0.4789647562 | BU13: 1.384188914 | BV13: -0.08367418124 | BW13: 0.6160393381 | BX13: 0.1452692345 | BY13: -0.6274608895 | BZ13: 0.259070461 | CA13: -1.119583274 | CB13: 0.9392351496 | CC13: 2.25 | CD13: -0.9808137833 | CE13: 0.9658220659 | CF13: -0.644959687 | CG13: -0.4029377152 | CH13: 0.002059654478 | CI13: 2.25 | CJ13: 0.5355984786 | CK13: 0.1674772027 | CL13: 0.8477975497 | CM13: -0.06865494702 | CN13: 1.41386782 | CO13: -0.6461588087 | CP13: 1.574370459 | CQ13: -0.6381662904 | CR13: -0.4302266324 | CS13: -0.186236814 | CT13: -0.2759622356 | CU13: 1.004377823 | CV13: -0.4554338592 | CW13: -0.3500614752 | CX13: 0.5903163001 | CY13: 2.25 | CZ13: 0.9440133594 | DA13: 2.25 | DB13: -0.4396796307 | DC13: 0.6281763231 | DD13: 0.371755709 | DE13: -0.2611216011 | DF13: 0.5380970636 | DG13: 0.1873027956 | DH13: 0.117345417 | DI13: 0.9551299574 | DJ13: -0.3153518808 | DK13: -0.1930047229 | DL13: 0.3271363369 | DM13: -0.08438259321 | DN13: -0.3141114291 | DO13: 0.4233049143 | DP13: -0.2258610743 | DQ13: 0.0255861966 | DR13: -0.1824822795 | DS13: 1.267622722 | DT13: 0.3049158698 | DU13: -0.3548634507 | DV13: -0.04978251919 | DW13: -0.5646608956 | DX13: -0.1004779276 | DZ13: -0.2189942408 | EA13: -0.1011154549 | EB13: 0.1652705587 | EC13: -0.5821720354
